{"text_format":"1","workbook":"xlsx","n_sheets":10,"sheets":["Instructions","Post-visit Report - Part 1","Part 1a - Nationalities cont.","Post-visit Report - Part 2","Part 2a - Site visits cont.","Part 2b - Site visits cont.","Part 3 - South Georgia","Site Reference Data","myvariables","Variables"],"not_rendered":{"charts":0,"images":0,"macros":1,"external_links":1,"defined_names":23,"comments":0,"pivot_tables":0},"unopened":[],"bounds":{"document_bytes":16777216,"sheet_cells":100000,"rows_first":2000,"rows_last":500,"rows_between":2000,"halvings":0,"cell_chars":16384,"cell_head_chars":4096},"cells_cut":0,"cells_raw":0,"read":"whole","date_system":"1900"}

{"sheet":"Instructions","index":0,"n_rows":89,"n_cols":16,"rows_kept":89,"cut":false,"hidden":false,"merged":[[19,1,27,18],[87,2,87,10],[87,14,87,17],[88,2,94,17],[89,19,89,21],[30,2,30,10],[30,14,30,17],[31,2,44,17],[48,2,84,17],[32,19,32,21],[35,0,35,1],[47,2,47,10],[47,15,47,17],[1,1,1,14],[3,1,3,14],[5,1,5,14],[6,1,16,18],[18,1,18,14]]}
[]
[null,"POST-VISIT REPORT FORM"]
[]
[null,"PVR 2019-20 Rev.2 (January 21, 2020) provided by NSF and IAATO         "]
[]
[null,"About this Form"]
[null,"\nThe form consists of two parts, both of which are to be completed by an authorized person (e.g. expedition leader or captain) and submitted to an appropriate national authority and to IAATO.\n\nTo submit the PVR to IAATO, please use one of the following methods for inclusion in the comprehensive tourism database:\n\n1)  Enter voyage information directly in the IAATO PVR online form.\n   • For instructions, please see the 'Instructions' tab on the 'Add PVR' form page.\n   • Use this link to access the online PVR form: http://apps.iaato.org/iaato/pvr\n\n2) Or upload the Excel PVR file using the IAATO PVR upload tool.\n\nThe Expedition record (Part 1) must be completed for every expedition regardless of whether any landings or visits to sites were made.  \n\nThe Site Visit record (Part 2) should only be completed if visits or landings were made. For cruise only vessels, you may include waterways.\n\nOTHER THAN DATA ENTRY, PLEASE DO NOT MODIFY THIS DOCUMENT IN ANY WAY AS THE FORM WILL NOT IMPORT CORRECTLY.\n\nPLEASE USE A BLANK, UNUSED PVR FORM FOR EACH VOYAGE. DO NOT CUT AND PASTE FROM PREVIOUSLY FILED PVR."]
[]
[]
[]
[]
[]
[]
[]
[]
[]
[]
[]
[null,"Instructions for Filling Out this Form"]
[null,"\nAs the form will be processed in our online web application, it is important that the form be completed carefully and accurately. Please use the following instructions as guidelines while completing the data required in the worksheets. (When the PVR is uploaded into the database, if there are areas that have information entered incorrectly, they will be rejected and must be corrected before saving the PVR).\n\nThroughout this form, please use only the following date format: DD-Mmm-YY (e.g. 12-Jan-20).\n\nAt the end of each trip, and within 30 days, please complete one of the two above methods of filing the PVRs for IAATO and also send to your national authority. All completed PVRs must be received by IAATO not later than 31-Mar-2020.\n\nPlease contact pvr@iaato.org if you have any questions."]
[]
[]
[]
[]
[]
[]
[]
[]
[]
[]
[null,null,"PART 1 - Expedition Data",null,null,null,null,null,null,null,null,null,null,null,"View Part 1 - Expedition Page"]
[null,null,"\nThe Expedition Record is completed for each expedition.\n\nExpedition Details\n   • Voyage/Flight Number should have the following format: a three character ship code followed immediately (no space) by embarkation date as DDMMMYYYY, \n      e.g. XXX28JAN2020. See also the corresponding scheduled expedition's number in the IAATO Ship Scheduler.\n   • Vessel Name should be the name of the vessel in full e.g. Lyubov Orlova and not just Orlova. No prefix (e.g. MV or MS) is necessary. \n   • Expeditions are categorized as either:  Ship based, Motor Yacht based, Sailing Vessel based, Motor Vehicle based, Aircraft or Land based.\n\nObservers\n   • This section should only be used to list designated observers or national representatives. Scientific personnel transported should be listed under point 5 of the record of expedition section. \n\nNationalities\n   • Nationalities should be selected from the drop-down menu provided.\n   • If all of the available nationality lines have been used and there is more data to enter, please use the spreadsheet labeled “Part 1a – Nationalities contd.” and enter the additional Nationalities. This eliminates the need for a continuation sheet.\n\nReport on Expedition\n   • Please use point 5 to list any environmental disturbances, incidents, scientific support or transport, and medical evacuations which took place. \n   • Signature and date line – Where the form is filled in electronically please use this section to note the name of who was responsible for completing the form and the date the form is filled out. "]
[]
[]
[]
[]
[]
[]
[]
[]
[]
[]
[]
[]
[]
[]
[]
[null,null,"PART 2 - Site Visit Data                                                                                        ",null,null,null,null,null,null,null,null,null,null,null,null,"View Part 2 - Site Visit Page"]
[null,null,"\nComplete one line of the Site Visit record wherever expedition members disembark or journey beyond base or camp. Cruise only vessels please list the areas cruised through noting dates and registering \"Ship Cruise\" as the activity. \n\nDate\n   • All lines of activity must be filled in with the date. For example, if landings occur in the morning and afternoon, the date must be filled in on all lines for all landings that day.\n\nSite Names (throughout the form the recognised English name is used):\n   • Select Site Names from the drop-down menus provided.\n   • Please enter cruises of narrow waterways in this section, e.g. Lemaire Channel, Errera Channel, Neumayer Channel etc. Note: if the ship makes two transits of the same channel list the transit only once.\n   • If you have used all of the available Site Visit lines and still have data to enter, please use the spreadsheet labeled “Part 2a/b – Site Visits contd.” and enter the additional Information. This eliminates the need for a continuation sheet.\n\n   • You will notice that the site coordinates are not filled in. At any time just click on the 'Update Site Coordinates' button (cell 3C) and they should auto-fill.\n\n   • If you have a site that is not listed in the drop-down menu, please type in the site name (column B) and make sure to also enter latitude and longitude coordinates in columns C and D. Then for the PVR file upload, please request a new site using the Ship Scheduler 'Request Site' form (http://apps.iaato.org/iaato/scheduler/).\n\nTimes\n   • Enter Times using UTC and a standard 24-hour format.  (i.e. hh:mm - e.g.  14:35). Note it is necessary to insert ‘:’ between the hours and minutes. For example if the local time is 09:00 (UTC-3) then enter 12:00 (UTC) should be entered.\n   • If landings span the midnight period please still enter the last passenger (pax) ashore time on the same line: it is not necessary to create a separate line with a separate date for the departure time.\n\nActivities at Site\n   • Select up to three activities per Site Visit entry. Use additional lines if the number of passengers differs per activity or more than three activities occurred.\n\nEXAMPLE:\n                      Date            Site visited   1st pax arrive   Last pax depart     Pax    Staff    Crew   Other   Total                        Activities\n                 01-Dec-19        Vernadsky         11:00                 15:00              25        3         2         0        30         Small Boat Landing | Station Visit    \n                 01-Dec-19        Vernadsky         15:00                 16:30               3         2         0         0         5          Scuba Diving \n\n   • If you select 'Other' as an Activity, please enter full details in Cell M40. \n     \n   • If a station is visited by small boat, record in the activities section both small boat landing and station visit, provided the same number of people participated in both activities.\n   • The activity station visit should only be listed when the station is actively occupied. Unoccupied stations should not include the activity station visit. (Please note that Goudier Island (Port Lockroy) is a Historic Site and Monument and NOT a station so should not be listed as Station Visit.)\n   • Where the activity is an onboard activity such as ‘Ship cruise’ or ‘Anchoring only’ the total complement of passengers, staff and crew should be listed."]
[]
[]
[]
[]
[]
[]
[]
[]
[]
[]
[]
[]
[]
[]
[]
[]
[]
[]
[]
[]
[]
[]
[]
[]
[]
[]
[]
[]
[]
[]
[]
[]
[]
[]
[]
[]
[]
[]
[null,null,"PART 3 - South Georgia",null,null,null,null,null,null,null,null,null,null,null,"View Part 3 - South Georgia"]
[null,null,"\nExpedition Details\n\n   • Visit permit number: The permit number should have the following format: 2019-20 / xxx. XXX will be allotted by the South Georgia Government at the time the permit is issued.\n   • Permit holder: Enter the name of the permit holder such as the expedition leader.\n   • Last landfall before arrival at SGSSI: Enter the last place the vessel landed before arrival at South Georgia from the drop down list.\n   • Date at last landfall: Enter the date of the last landfall prior to arriving at South Georgia using the format DD-Mmm-YY.\n   • First landfall after departure from SGSSI: Enter the next place the vessel landed after leaving South Georgia.\n   • Date at next landfall: Enter the date of the next landfall after visiting South Georgia using the format DD-Mmm-YY.\n\nReport on Expedition\n\nFill in information as indicated, or Enter 'None' if none."]

{"sheet":"Post-visit Report - Part 1","index":1,"n_rows":80,"n_cols":15,"rows_kept":80,"cut":false,"hidden":false,"merged":[[7,14,8,15],[7,7,7,8],[8,7,8,8],[9,7,9,12],[9,1,9,6],[12,9,12,12],[11,1,11,3],[11,4,11,5],[13,9,13,12],[33,1,33,3],[32,1,32,3],[38,1,38,3],[37,1,37,3],[36,1,36,3],[34,1,34,3],[35,1,35,3],[12,4,12,6],[22,6,22,8],[12,7,12,8],[29,1,29,3],[20,6,20,8],[28,1,28,3],[15,1,15,12],[23,9,23,12],[21,6,21,8],[23,6,23,8],[13,4,13,6],[20,1,20,5],[21,1,21,5],[22,1,22,5],[23,1,23,5],[1,1,1,8],[1,9,1,12],[30,1,30,3],[31,1,31,3],[21,9,21,12],[5,1,5,3],[7,9,7,12],[8,9,8,12],[11,7,11,8],[7,1,7,6],[8,1,8,6],[26,1,26,3],[17,1,17,12],[16,1,16,12],[10,7,10,12],[13,7,13,8],[10,1,10,6],[27,1,27,3],[11,9,11,12],[22,9,22,12],[20,9,20,12],[12,1,12,3],[13,1,13,3],[14,1,14,12],[44,1,44,3],[39,1,39,3],[43,1,43,3],[42,1,42,3],[41,1,41,3],[40,1,40,3],[56,12,57,12],[69,1,69,12],[57,1,57,3],[56,1,56,3],[65,1,65,12],[68,1,68,12],[64,11,64,12],[67,11,67,12],[56,11,57,11],[56,8,57,8],[56,9,57,9],[56,10,57,10],[66,1,66,12],[49,1,49,3],[53,1,53,3],[54,1,54,3],[45,1,45,3],[46,1,46,3],[78,9,78,12],[78,3,78,7],[78,1,78,2],[72,1,72,12],[73,1,73,12],[74,1,74,9],[74,11,74,12],[75,1,75,12],[76,1,76,12],[47,1,47,3],[50,1,50,3],[51,1,51,3],[52,1,52,3],[48,1,48,3],[70,1,70,12],[71,1,71,12],[58,2,58,10],[59,2,59,10],[60,2,60,10],[61,2,61,10],[67,1,67,9],[64,1,64,9],[55,1,55,3]]}
[]
[null,"POST-VISIT REPORT FORM: PART 1 - Expedition Record",null,null,null,null,null,null,null,"View Instructions for this Page",null,null,null,null,"2019-2020"]
[null,"The Expedition Record is completed for every Expedition."]
[null,"Please submit both Part 1 and Part 2 to an appropriate national authority within three months of"]
[null,"the activity having taken place."]
[]
[null,"A:","Expedition Details"]
[null,"Company name:",null,null,null,null,null,"Voyage/Flight number:",null,null,null,null,null,null,"Voyage Number Example"]
[null,null,null,null,null,null,null,"Voyage Name:"]
[null,"Expedition Leaders(s) name:",null,null,null,null,null,"Vessel/Aircraft name:"]
[]
[null,"Expedition is:",null,null,null,null,"based","Captain's/Commander's name:"]
[null,"Port of Embarkation:",null,null,null,null,null,"Port of Disembarkation:"]
[null,"Date of Embarkation:",null,null,null,null,null,"Date of Disembarkation:"]
[null,"Actual itinerary traveled: please provide description of route, giving dates:"]
[null,"(Note: If you consider that the Site Visit Record (SVR) provides an adequate description of itinerary, simply write \"See SVR\")"]
[]
[]
[]
[null,"B:","Observers"]
[null,"Name:",null,null,null,null,"Name:",null,null,"Name:"]
[]
[null,"Affiliation:",null,null,null,null,"Affiliation:",null,null,"Affiliation:"]
[]
[]
[null,"C:","Record of Expedition numbers by nationality"]
[null,"Nationality",null,null,"Pax","Staff","Crew","Other","Nationality","Pax","Staff","Crew","Other"]
[]
[]
[]
[]
[]
[]
[]
[]
[]
[]
[]
[]
[]
[]
[]
[]
[]
[]
[]
[]
[]
[]
[]
[]
[]
[]
[]
[]
[]
[null,null,null,null,null,null,null,null,"TOTAL",{"$f":"SUM(E28:E58,J28:J56,'Part 1a - Nationalities cont.'!J38:J39)","v":0},{"$f":"SUM(F28:F58,K28:K56,'Part 1a - Nationalities cont.'!K38:K39)","v":0},{"$f":"SUM(G28:G58,L28:L56,'Part 1a - Nationalities cont.'!L38:L39)","v":0},{"$f":"SUM(H28:H58,M28:M56,'Part 1a - Nationalities cont.'!M38:M39)","v":0}]
[]
[null,"Pax:","Passengers: members of the expedition that are not staff, crew, observers or national representatives."]
[null,"Staff:","Expedition personnel, guides, lecturers and small boat drivers (exclude crew serving these functions)."]
[null,"Crew:","Vessels captain and officers, helicopter pilots, and crew and hotel / catering staff (excluding above)."]
[null,"Other:","Individuals who are not tour/expedition staff, pax or crew: e.g. observers, national representatives or scientists."]
[]
[null,"D:","Report on Expedition by Expedition Leader  (please be brief)"]
[null,"1. Has an expedition meteorological report been submitted to the World Meteorological Organization? ",null,null,null,null,null,null,null,null,"select:"]
[null,"2. List any unusual incidents affecting people or the environment:"]
[]
[null,"3. If there were any unusual events, has an incident report be prepared: ",null,null,null,null,null,null,null,null,"select:"]
[null,"4. If the answer to 3. is yes, to whom will the incident report be provided?"]
[]
[null,"5. Any other comments or information "]
[null,"(e.g. observations of disturbance to wildlife or the physical environment, changes from expedition Advance Notification, etc.)"]
[]
[]
[null,"6. Was citizen science included in the educational content of the voyage?",null,null,null,null,null,null,null,null,"select:"]
[null,"7. If the answer to 6. is yes, please give the title and a brief description of the project:"]
[]
[]
[null,"Signature:",null,null,null,null,null,null,"Date:"]
[null,null,null,"Expedition Leader or Vessel Captain"]

{"sheet":"Part 1a - Nationalities cont.","index":2,"n_rows":43,"n_cols":15,"rows_kept":43,"cut":false,"hidden":false,"merged":[[7,1,7,3],[8,1,8,3],[9,1,9,3],[2,9,2,12],[1,1,1,10],[21,1,21,3],[10,1,10,3],[11,1,11,3],[12,1,12,3],[13,1,13,3],[14,1,14,3],[15,1,15,3],[16,1,16,3],[17,1,17,3],[18,1,18,3],[19,1,19,3],[20,1,20,3],[33,1,33,3],[22,1,22,3],[23,1,23,3],[24,1,24,3],[25,1,25,3],[26,1,26,3],[27,1,27,3],[28,1,28,3],[29,1,29,3],[30,1,30,3],[31,1,31,3],[32,1,32,3],[39,2,39,10],[40,2,40,10],[41,2,41,10],[42,2,42,10],[34,1,34,3],[35,1,35,3],[36,1,36,3],[37,1,37,3],[37,8,38,8],[37,11,38,11],[37,9,38,9],[37,10,38,10],[37,12,38,12],[38,1,38,3]]}
[]
[null,"POST-VISIT REPORT FORM: PART 1a - Expedition Record (Addendum)",null,null,null,null,null,null,null,null,null,null,null,null,"2019-2020"]
[null,null,null,null,null,null,null,null,null,"View Instructions for this Page"]
[]
[]
[]
[null,"C:","Record of Expedition numbers by nationality"]
[null,"Nationality",null,null,"Pax","Staff","Crew","Other","Nationality","Pax","Staff","Crew","Other"]
[]
[]
[]
[]
[]
[]
[]
[]
[]
[]
[]
[]
[]
[]
[]
[]
[]
[]
[]
[]
[]
[]
[]
[]
[]
[]
[]
[]
[]
[null,null,null,null,null,null,null,null,"TOTAL Part 1a",{"$f":"SUM(E9:E39,J9:J37)","v":0},{"$f":"SUM(F9:F39,K9:K37)","v":0},{"$f":"SUM(G9:G39,L9:L37)","v":0},{"$f":"SUM(H9:H39,M9:M37)","v":0}]
[]
[null,"Pax:","Passengers: members of the expedition that are not staff, crew, observers or national representatives."]
[null,"Staff:","Expedition personnel, guides, lecturers and small boat drivers (exclude crew serving these functions)."]
[null,"Crew:","Vessels captain and officers, helicopter pilots, and crew and hotel / catering staff (excluding above)."]
[null,"Other:","Individuals who are not tour/expedition staff, pax or crew: e.g. observers, national representatives or scientists."]

{"sheet":"Post-visit Report - Part 2","index":3,"n_rows":42,"n_cols":16,"rows_kept":42,"cut":false,"hidden":false,"merged":[[41,1,41,5],[5,2,5,3],[5,6,5,10],[3,2,3,3],[3,5,3,6],[40,1,40,5],[5,11,5,14],[22,11,22,12],[28,11,28,12],[38,1,38,5],[39,1,39,5],[8,11,8,12],[9,11,9,12],[13,11,13,12],[14,11,14,12],[15,11,15,12],[29,11,29,12],[30,11,30,12],[23,11,23,12],[24,11,24,12],[35,11,35,12],[33,11,33,12],[1,0,1,3],[0,4,0,5],[3,0,3,1],[0,7,0,9],[0,0,0,3],[3,9,3,12],[3,7,3,8],[0,12,0,14],[1,12,1,14],[3,13,3,14],[0,10,0,11],[1,10,1,11],[26,11,26,12],[31,11,31,12],[38,12,38,14],[32,11,32,12],[27,11,27,12],[39,12,41,14],[36,11,36,12],[6,2,6,3],[10,11,10,12],[6,11,7,14],[20,11,20,12],[21,11,21,12],[12,11,12,12],[16,11,16,12],[6,6,6,10],[11,11,11,12],[17,11,17,12],[18,11,18,12],[19,11,19,12],[34,11,34,12],[25,11,25,12]]}
["POST-VISIT REPORT FORM: PART 2 - Site Visit Record",null,null,null,"View Instructions for this Page",null,null,"Voyage Number:",null,null,{"$f":"T('Post-visit Report - Part 1'!J8)","v":""}]
["Complete one line of the Site Visit Record wherever Expedition members disembark or journey beyond base or camp.              ",null,null,null,null,null,null,"Embarkation Date:",null,null,{"$f":"IF('Post-visit Report - Part 1'!E14 = 0, \"\", 'Post-visit Report - Part 1'!E14)","v":""}]
[]
["Tour Company or Name:",null,{"$f":"CONCATENATE(T('Post-visit Report - Part 1'!D8), \" \", T('Post-visit Report - Part 1'!B9))","v":" "},null,"Vessel Name:",{"$f":"CONCATENATE(T('Post-visit Report - Part 1'!J10), \" \", T('Post-visit Report - Part 1'!H11))","v":" "},null,"Voyage Name:",null,{"$f":"T('Post-visit Report - Part 1'!J9)","v":""}]
[]
["Date","Site visited","Site Latitude/Longitude",null,"1st pax arrive","Last pax depart","Number of people",null,null,null,null,"Activities at Site"]
[null,null,null,null,"shore/site","shore/site","making site visit",null,null,null,null,"Select up to three activities per Site Visit entry. \nUse additional lines if the number of passengers differs per activity or more than three activities occurred."]
[null,null,"Latitude","Longitude","(in GMT)","(in GMT)","Pax","Staff","Crew","Other","Total",null,null,null,null,"Activity Example"]
[null,null,null,null,null,null,null,null,null,null,{"$f":"SUM(G9:J9)","v":0}]
[null,null,null,null,null,null,null,null,null,null,0]
[null,null,null,null,null,null,null,null,null,null,0]
[null,null,null,null,null,null,null,null,null,null,{"$f":"SUM(G12:J12)","v":0}]
[null,null,null,null,null,null,null,null,null,null,{"$f":"SUM(G13:J13)","v":0}]
[null,null,null,null,null,null,null,null,null,null,{"$f":"SUM(G14:J14)","v":0}]
[null,null,null,null,null,null,null,null,null,null,0,null,null,"  "]
[null,null,null,null,null,null,null,null,null,null,0]
[null,null,null,null,null,null,null,null,null,null,0]
[null,null,"","",null,null,null,null,null,null,0]
[null,null,null,null,null,null,null,null,null,null,0]
[null,null,null,null,null,null,null,null,null,null,0]
[null,null,null,null,null,null,null,null,null,null,0]
[null,null,null,null,null,null,null,null,null,null,0]
[null,null,null,null,null,null,null,null,null,null,0]
[null,null,null,null,null,null,null,null,null,null,0]
[null,null,null,null,null,null,null,null,null,null,0]
[null,null,null,null,null,null,null,null,null,null,0]
[null,null,null,null,null,null,null,null,null,null,0]
[null,null,null,null,null,null,null,null,null,null,0]
[null,null,null,null,null,null,null,null,null,null,0]
[null,null,null,null,null,null,null,null,null,null,0]
[null,null,null,null,null,null,null,null,null,null,0]
[null,null,null,null,null,null,null,null,null,null,0]
[null,null,null,null,null,null,null,null,null,null,0]
[null,null,null,null,null,null,null,null,null,null,0]
[null,null,null,null,null,null,null,null,null,null,0]
[null,null,null,null,null,null,null,null,null,null,0]
[null,null,null,null,null,null,null,null,null,null,0]
[]
["Pax:","Passengers: members of the expedition that are not staff, crew, observers or national representatives.",null,null,null,null,null,null,null,null,null," ","OTHER ACTIVITY DESCRIPTION"]
["Staff:","Expedition personnel, guides, lecturers and boat drivers (exclude crew serving these functions)."]
["Crew:","Vessels captain and officers, helicopter pilots, and crew and hotel / catering staff (excluding above)."]
["Other:","Individuals who are not tour/expedition staff, pax or crew: e.g. observers, national representatives or scientists."]

{"sheet":"Part 2a - Site visits cont.","index":4,"n_rows":42,"n_cols":16,"rows_kept":42,"cut":false,"hidden":false,"merged":[[35,11,35,12],[36,11,36,12],[38,1,38,5],[38,12,38,14],[39,1,39,5],[39,12,41,14],[40,1,40,5],[41,1,41,5],[34,11,34,12],[23,11,23,12],[24,11,24,12],[25,11,25,12],[26,11,26,12],[27,11,27,12],[28,11,28,12],[29,11,29,12],[30,11,30,12],[31,11,31,12],[32,11,32,12],[33,11,33,12],[22,11,22,12],[11,11,11,12],[12,11,12,12],[13,11,13,12],[14,11,14,12],[15,11,15,12],[16,11,16,12],[17,11,17,12],[18,11,18,12],[19,11,19,12],[20,11,20,12],[21,11,21,12],[10,11,10,12],[3,0,3,1],[3,2,3,3],[3,5,3,6],[6,2,6,3],[6,6,6,10],[6,11,7,14],[8,11,8,12],[9,11,9,12],[3,13,3,14],[5,2,5,3],[5,6,5,10],[5,11,5,14],[3,7,3,8],[3,9,3,12],[0,0,0,5],[0,7,0,9],[0,10,0,11],[0,12,0,14],[1,0,1,3],[1,4,1,5],[1,10,1,11],[1,12,1,14]]}
["POST-VISIT REPORT FORM: PART 2a - Site Visit Record (Addendum)",null,null,null,null,null,null,"Voyage Number:",null,null,{"$f":"T('Post-visit Report - Part 1'!J8)","v":""}]
["Complete one line of the Site Visit Record wherever Expedition members disembark or journey beyond base or camp.              ",null,null,null,"View Instructions for this Page",null,null,"Embarkation Date:",null,null,{"$f":"IF('Post-visit Report - Part 1'!E14 = 0, \"\", 'Post-visit Report - Part 1'!E14)","v":""}]
[]
["Tour Company or Name:",null,{"$f":"CONCATENATE(T('Post-visit Report - Part 1'!D8), \" \", T('Post-visit Report - Part 1'!B9))","v":" "},null,"Vessel Name:",{"$f":"CONCATENATE(T('Post-visit Report - Part 1'!J10), \" \", T('Post-visit Report - Part 1'!H11))","v":" "},null,"Voyage Name:",null,{"$f":"T('Post-visit Report - Part 1'!J9)","v":""}]
[]
["Date","Site visited","Site Latitude/Longitude",null,"1st pax arrive","Last pax depart","Number of people",null,null,null,null,"Activities at Site"]
[null,null,null,null,"shore/site","shore/site","making site visit",null,null,null,null,"Select up to three activities per Site Visit entry. \nUse additional lines if the number of passengers differs per activity or more than three activities occurred."]
[null,null,"Latitude","Longitude","(in GMT)","(in GMT)","Pax","Staff","Crew","Other","Total",null,null,null,null,"Activity Example"]
[null,null,null,null,null,null,null,null,null,null,{"$f":"SUM(G9:J9)","v":0}]
[null,null,null,null,null,null,null,null,null,null,0]
[null,null,null,null,null,null,null,null,null,null,0]
[null,null,null,null,null,null,null,null,null,null,{"$f":"SUM(G12:J12)","v":0}]
[null,null,null,null,null,null,null,null,null,null,{"$f":"SUM(G13:J13)","v":0}]
[null,null,null,null,null,null,null,null,null,null,{"$f":"SUM(G14:J14)","v":0}]
[null,null,null,null,null,null,null,null,null,null,0,null,null,"  "]
[null,null,null,null,null,null,null,null,null,null,0]
[null,null,null,null,null,null,null,null,null,null,0]
[null,null,"","",null,null,null,null,null,null,0]
[null,null,null,null,null,null,null,null,null,null,0]
[null,null,null,null,null,null,null,null,null,null,0]
[null,null,null,null,null,null,null,null,null,null,0]
[null,null,null,null,null,null,null,null,null,null,0]
[null,null,null,null,null,null,null,null,null,null,0]
[null,null,null,null,null,null,null,null,null,null,0]
[null,null,null,null,null,null,null,null,null,null,0]
[null,null,null,null,null,null,null,null,null,null,0]
[null,null,null,null,null,null,null,null,null,null,0]
[null,null,null,null,null,null,null,null,null,null,0]
[null,null,null,null,null,null,null,null,null,null,0]
[null,null,null,null,null,null,null,null,null,null,0]
[null,null,null,null,null,null,null,null,null,null,0]
[null,null,null,null,null,null,null,null,null,null,0]
[null,null,null,null,null,null,null,null,null,null,0]
[null,null,null,null,null,null,null,null,null,null,0]
[null,null,null,null,null,null,null,null,null,null,0]
[null,null,null,null,null,null,null,null,null,null,0]
[null,null,null,null,null,null,null,null,null,null,0]
[]
["Pax:","Passengers: members of the expedition that are not staff, crew, observers or national representatives.",null,null,null,null,null,null,null,null,null," ","OTHER ACTIVITY DESCRIPTION"]
["Staff:","Expedition personnel, guides, lecturers and boat drivers (exclude crew serving these functions)."]
["Crew:","Vessels captain and officers, helicopter pilots, and crew and hotel / catering staff (excluding above)."]
["Other:","Individuals who are not tour/expedition staff, pax or crew: e.g. observers, national representatives or scientists."]

{"sheet":"Part 2b - Site visits cont.","index":5,"n_rows":42,"n_cols":16,"rows_kept":42,"cut":false,"hidden":false,"merged":[[0,0,0,5],[0,7,0,9],[0,10,0,11],[0,12,0,14],[1,0,1,3],[1,4,1,5],[1,10,1,11],[1,12,1,14],[10,11,10,12],[3,0,3,1],[3,2,3,3],[3,5,3,6],[6,2,6,3],[6,6,6,10],[6,11,7,14],[8,11,8,12],[9,11,9,12],[3,13,3,14],[5,2,5,3],[5,6,5,10],[5,11,5,14],[3,7,3,8],[3,9,3,12],[22,11,22,12],[11,11,11,12],[12,11,12,12],[13,11,13,12],[14,11,14,12],[15,11,15,12],[16,11,16,12],[17,11,17,12],[18,11,18,12],[19,11,19,12],[20,11,20,12],[21,11,21,12],[34,11,34,12],[23,11,23,12],[24,11,24,12],[25,11,25,12],[26,11,26,12],[27,11,27,12],[28,11,28,12],[29,11,29,12],[30,11,30,12],[31,11,31,12],[32,11,32,12],[33,11,33,12],[35,11,35,12],[36,11,36,12],[38,1,38,5],[38,12,38,14],[39,1,39,5],[39,12,41,14],[40,1,40,5],[41,1,41,5]]}
["POST-VISIT REPORT FORM: PART 2b - Site Visit Record (Addendum)",null,null,null,null,null,null,"Voyage Number:",null,null,{"$f":"T('Post-visit Report - Part 1'!J8)","v":""}]
["Complete one line of the Site Visit Record wherever Expedition members disembark or journey beyond base or camp.              ",null,null,null,"View Instructions for this Page",null,null,"Embarkation Date:",null,null,{"$f":"IF('Post-visit Report - Part 1'!E14 = 0, \"\", 'Post-visit Report - Part 1'!E14)","v":""}]
[]
["Tour Company or Name:",null,{"$f":"CONCATENATE(T('Post-visit Report - Part 1'!D8), \" \", T('Post-visit Report - Part 1'!B9))","v":" "},null,"Vessel Name:",{"$f":"CONCATENATE(T('Post-visit Report - Part 1'!J10), \" \", T('Post-visit Report - Part 1'!H11))","v":" "},null,"Voyage Name:",null,{"$f":"T('Post-visit Report - Part 1'!J9)","v":""}]
[]
["Date","Site visited","Site Latitude/Longitude",null,"1st pax arrive","Last pax depart","Number of people",null,null,null,null,"Activities at Site"]
[null,null,null,null,"shore/site","shore/site","making site visit",null,null,null,null,"Select up to three activities per Site Visit entry. \nUse additional lines if the number of passengers differs per activity or more than three activities occurred."]
[null,null,"Latitude","Longitude","(in GMT)","(in GMT)","Pax","Staff","Crew","Other","Total",null,null,null,null,"Activity Example"]
[null,null,null,null,null,null,null,null,null,null,{"$f":"SUM(G9:J9)","v":0}]
[null,null,null,null,null,null,null,null,null,null,0]
[null,null,null,null,null,null,null,null,null,null,0]
[null,null,null,null,null,null,null,null,null,null,{"$f":"SUM(G12:J12)","v":0}]
[null,null,null,null,null,null,null,null,null,null,{"$f":"SUM(G13:J13)","v":0}]
[null,null,null,null,null,null,null,null,null,null,{"$f":"SUM(G14:J14)","v":0}]
[null,null,null,null,null,null,null,null,null,null,0,null,null,"  "]
[null,null,null,null,null,null,null,null,null,null,0]
[null,null,null,null,null,null,null,null,null,null,0]
[null,null,"","",null,null,null,null,null,null,0]
[null,null,null,null,null,null,null,null,null,null,0]
[null,null,null,null,null,null,null,null,null,null,0]
[null,null,null,null,null,null,null,null,null,null,0]
[null,null,null,null,null,null,null,null,null,null,0]
[null,null,null,null,null,null,null,null,null,null,0]
[null,null,null,null,null,null,null,null,null,null,0]
[null,null,null,null,null,null,null,null,null,null,0]
[null,null,null,null,null,null,null,null,null,null,0]
[null,null,null,null,null,null,null,null,null,null,0]
[null,null,null,null,null,null,null,null,null,null,0]
[null,null,null,null,null,null,null,null,null,null,0]
[null,null,null,null,null,null,null,null,null,null,0]
[null,null,null,null,null,null,null,null,null,null,0]
[null,null,null,null,null,null,null,null,null,null,0]
[null,null,null,null,null,null,null,null,null,null,0]
[null,null,null,null,null,null,null,null,null,null,0]
[null,null,null,null,null,null,null,null,null,null,0]
[null,null,null,null,null,null,null,null,null,null,0]
[null,null,null,null,null,null,null,null,null,null,0]
[]
["Pax:","Passengers: members of the expedition that are not staff, crew, observers or national representatives.",null,null,null,null,null,null,null,null,null," ","OTHER ACTIVITY DESCRIPTION"]
["Staff:","Expedition personnel, guides, lecturers and boat drivers (exclude crew serving these functions)."]
["Crew:","Vessels captain and officers, helicopter pilots, and crew and hotel / catering staff (excluding above)."]
["Other:","Individuals who are not tour/expedition staff, pax or crew: e.g. observers, national representatives or scientists."]

{"sheet":"Part 3 - South Georgia","index":6,"n_rows":21,"n_cols":7,"rows_kept":21,"cut":false,"hidden":false,"merged":[[0,0,0,5],[0,6,0,7],[6,5,6,8],[6,0,6,4],[7,5,7,8],[7,0,7,4],[4,0,4,4],[4,7,4,8],[5,0,5,4],[5,5,5,6],[5,7,5,8],[20,0,20,4],[19,0,19,4],[11,0,11,8],[8,0,8,2],[8,3,8,4],[8,5,8,6],[8,7,8,8],[16,0,16,8],[17,0,17,8],[18,0,18,8],[12,0,12,8],[13,0,13,8],[14,0,14,8],[15,0,15,8]]}
["POST-VISIT REPORT FORM: PART 3 - South Georgia",null,null,null,null,null,"View Instructions for this Page"]
[]
[]
["A:","Expedition Details"]
["Company name:",null,null,null,null,"Permit number:","2019-20/"]
[{"$f":"T('Post-visit Report - Part 1'!B9)","v":""},null,null,null,null,"Permit holder (e.g. Expedition Leader):"]
["Last landfall before arrival at SGSSI:",null,null,null,null,"First landfall after departure from SGSSI:"]
[]
["Date at last landfall:",null,null,null,null,"Date at next landfall:"]
[]
["B:","Report on Expedition"]
["1. Any actions taken in case of emergency (Enter 'None' if none):"]
[]
["2. Any changes from the intended itinerary as details on Application Form (Enter 'None' if none):"]
[]
["3. Any accidents, injuries, or near-misses involving the environment, people or animals onboard or during activities off the vessel? (enter 'None' if none):"]
[]
["4. Any unusual incidents or sighting affecting wildlife or the environment (Enter 'None' if none):"]
[]
["5. Did any bird strikes occur on the voyage?",null,null,null,null,"select:"]
["6. If yes, has the bird strike been reported to South Georgia Government Officer?",null,null,null,null,"select:"]

{"sheet":"Site Reference Data","index":7,"n_rows":728,"n_cols":22,"rows_kept":728,"cut":false,"hidden":true,"merged":[[0,0,0,3],[0,5,0,8],[5,21,22,25],[0,10,0,13],[0,15,0,18]]}
["Antarctic Site Reference Data",null,null,null,null,"Falklands Site Reference Data",null,null,null,null,"South Georgia Site Reference Data",null,null,null,null,"Combined Sites Reference Data"]
["Sites","Latitude","Longitude","Location",null,"Sites","Latitude","Longitude","Location",null,"Sites","Latitude","Longitude","Location",null,"Sites","Latitude","Longitude","Location"]
["1/2019 - Hauron Peak landing","64°55'4\"S","62°55'31\"W","Peninsula",null,"Barren Island","52°22'32\"S","59°42'W","Falkland Islands",null,"Ample Bay","54°3'S","37°22'58\"E","South Georgia",null,"1/2019 - Hauron Peak landing","64°55'4\"S","62°55'31\"W","Peninsula"]
["2/2019","67°44'S","67°44'W","Peninsula",null,"Beaver Island","51°51'S","61°15'W","Falkland Islands",null,"Antarctic Bay","54°4'S","36°58'E","South Georgia",null,"2/2019","67°44'S","67°44'W","Peninsula"]
["Access Point","64°50'S","63°47'W","Peninsula",null,"Berkley Sound","51°34'4\"S","57°56'6\"E","Falkland Islands",null,"Beckmann Fjord","54°3'S","37°12'E","South Georgia",null,"Access Point","64°50'S","63°47'W","Peninsula"]
["Active Sound","63°25'S","56°10'W","Peninsula",null,"Bleaker Island - Adventure Sound","52°12'S","58°51'W","Falkland Islands",null,"Bird Island","54°0'18\"S","38°3'E","South Georgia",null,"Active Sound","63°25'S","56°10'W","Peninsula",null,null,"Instructions:\n\nTo update the Sites lists on the left, download the expedition sites list from the IAATO web application (Expedition Sites page, \"Export list to Excel\").\n\nIn the downloaded AntarcticSites Excel file, sort by column Location and copy columns A to D for the Falkland Islands rows into cell F3 of this sheet. \n\nSimilarly for the Antarctica entries: In the downloaded AntarcticSites Excel file, temporarily delete all of the rows except for Continent, Peninsula and Region. Then sort by first column 'Site Name' and copy and paste the resulting Antarctica only rows (columns A to D) into cell A3 of this sheet."]
["Adelaide Anchorage","67°47'S","68°57'W","Peninsula",null,"Bleaker Island - Sandy Bay Landing","52°11'S","58°50'W","Falkland Islands",null,"Bjelland Point","54°6'S","36°43'58\"E","South Georgia",null,"Adelaide Anchorage","67°47'S","68°57'W","Peninsula"]
["Adie Cove","65°28'58\"S","63°46'29\"W","Peninsula",null,"Bluff Cove","51°46'S","58°11'W","Falkland Islands",null,"Bjornstadt Bay","54°34'58\"S","35°55'1\"E","South Georgia",null,"Adie Cove","65°28'58\"S","63°46'29\"W","Peninsula"]
["Admiralty Bay","62°10'S","58°25'W","Peninsula",null,"Carcass Island","51°16'50\"S","60°33'45\"W","Falkland Islands",null,"Bristol Island","59°1'58\"S","21°30'57\"W","South Georgia",null,"Admiralty Bay","62°10'S","58°25'W","Peninsula"]
["Admiralty Sound","64°20'S","57°10'W","Peninsula",null,"Carcass Island - Leopard Beach","51°18'39\"S","60°31'19\"W","Falkland Islands",null,"Candlemas Island","57°3'S","26°40'W","South Georgia",null,"Admiralty Sound","64°20'S","57°10'W","Peninsula"]
["Aguirre Passage","64°29'23\"S","62°30'35\"W","Peninsula",null,"Darwin","51°48'10\"S","58°57'7\"W","Falkland Islands",null,"Cape Best","54°5'16\"S","36°48'57\"E","South Georgia",null,"Aguirre Passage","64°29'23\"S","62°30'35\"W","Peninsula"]
["Aitcho Islands - Barrientos Island","62°24'S","59°47'W","Peninsula",null,"Falkland Sound","51°48'S","59°30'W","Falkland Islands",null,"Cape Charlotte","54°31'58\"S","35°54'E","South Georgia",null,"Aitcho Islands - Barrientos Island","62°24'S","59°47'W","Peninsula"]
["Aitcho Islands - Other","62°24'S","59°47'W","Peninsula",null,"George Island","52°20'48\"S","59°44'58\"W","Falkland Islands",null,"Cape Demidov","54°8'S","37°44'E","South Georgia",null,"Aitcho Islands - Other","62°24'S","59°47'W","Peninsula"]
["Alcock Island","64°14'S","61°8'W","Peninsula",null,"Goose Green","51°49'26\"S","58°57'23\"W","Falkland Islands",null,"Cape North","53°58'S","37°43'58\"E","South Georgia",null,"Alcock Island","64°14'S","61°8'W","Peninsula"]
["Alexander Island","71°0'S","70°0'W","Peninsula",null,"Grand Jason","51°3'36\"S","61°6'W","Falkland Islands",null,"Cape Rosa - KIN01","54°11'S","37°25'W","South Georgia",null,"Alexander Island","71°0'S","70°0'W","Peninsula"]
["Alvaro Cove","64°51'S","63°1'W","Peninsula",null,"Grave Cove","51°21'S","60°37'W","Falkland Islands",null,"Carlita Bay","54°14'24\"S","36°38'24\"W","South Georgia",null,"Alvaro Cove","64°51'S","63°1'W","Peninsula"]
["Amanda Bay","69°15'S","76°50'E","Continent",null,"Gypsy Cove","51°41'S","57°48'W","Falkland Islands",null,"Chaplin Head","54°3'S","37°54'E","South Georgia",null,"Amanda Bay","69°15'S","76°50'E","Continent"]
["Ambush Bay","63°6'S","55°15'35\"W","Peninsula",null,"Hummock Island","51°38'28\"S","60°26'30\"E","Falkland Islands",null,"Cheapman Bay","54°9'S","37°30'57\"E","South Georgia",null,"Ambush Bay","63°6'S","55°15'35\"W","Peninsula"]
["Amery Ice Shelf","69°45'S","71°0'E","Continent",null,"Kidney Cove","51°38'S","57°46'W","Falkland Islands",null,"Church Bay","54°0'S","37°46'58\"E","South Georgia",null,"Amery Ice Shelf","69°45'S","71°0'E","Continent"]
["Amphibolite Point","60°41'S","45°21'W","Peninsula",null,"Little Bense Island","51°29'5\"S","60°30'38\"W","Falkland Islands",null,"Coal Harbour","54°2'S","37°55'58\"E","South Georgia",null,"Amphibolite Point","60°41'S","45°21'W","Peninsula"]
["Andresen Island","66°53'S","66°40'W","Peninsula",null,"New Island - North Harbour","51°41'S","61°15'W","Falkland Islands",null,"Cobblers Cove - COB01","54°16'S","36°18'W","South Georgia",null,"Ample Bay","54°3'S","37°22'58\"E","South Georgia"]
["Andvord Bay","64°50'S","62°39'W","Peninsula",null,"New Island - Ship Harbour","51°41'S","61°16'W","Falkland Islands",null,"Cooper Bay Albatross Cove - COO02","54°46'48\"S","35°28'47\"W","South Georgia",null,"Andresen Island","66°53'S","66°40'W","Peninsula"]
["Antarctic Sound","63°20'S","56°45'W","Peninsula",null,"New Island - South Harbour","51°44'S","61°18'W","Falkland Islands",null,"Cooper Bay Centre Cove - COO01","54°28'47\"S","35°28'47\"W","South Georgia",null,"Andvord Bay","64°50'S","62°39'W","Peninsula"]
["Anvers Island","64°33'S","63°35'W","Peninsula",null,"New Island Settlement","51°41'S","61°15'W","Falkland Islands",null,"Cooper Bay Chinstraps - COO05","54°46'48\"S","35°28'47\"W","South Georgia",null,"Antarctic Bay","54°4'S","36°58'E","South Georgia"]
["Arago Glacier","64°51'S","62°23'W","Peninsula",null,"Pebble Island","51°18'11\"S","59°37'45\"W","Falkland Islands",null,"Cooper Bay Macaronis - COO03","54°47'S","35°48'W","South Georgia",null,"Antarctic Sound","63°20'S","56°45'W","Peninsula"]
["Archibald Point","63°7'48\"S","56°24'35\"W","Peninsula",null,"Port Egmont","51°21'13\"S","60°3'50\"W","Falkland Islands",null,"Cooper Bay Main Beach - COO04","54°46'48\"S","35°28'47\"W","South Georgia",null,"Anvers Island","64°33'S","63°35'W","Peninsula"]
["Arctowski Station","62°9'33\"S","58°28'14\"W","Peninsula",null,"Port Howard","51°27'S","59°31'W","Falkland Islands",null,"Cooper Island","54°48'S","35°46'58\"E","South Georgia",null,"Arago Glacier","64°51'S","62°23'W","Peninsula"]
["Ardley Island","62°13'S","58°56'W","Peninsula",null,"Saunders Island - Neck","51°18'S","60°14'W","Falkland Islands",null,"Cumberland Bay West","54°13'8\"S","36°47'2\"E","South Georgia",null,"Archibald Point","63°7'48\"S","56°24'35\"W","Peninsula"]
["Argentine Islands Other","65°15'S","64°16'W","Peninsula",null,"Saunders Island - Settlement","51°21'S","60°3'W","Falkland Islands",null,"Damien Bay","54°48'S","35°52'58\"E","South Georgia",null,"Arctowski Station","62°9'33\"S","58°28'14\"W","Peninsula"]
["Armstrong Reef","65°54'S","66°18'W","Peninsula",null,"Saunders Island - The Rookery","51°11'11\"S","60°3'15\"W","Falkland Islands",null,"Dot Island","54°3'S","37°21'E","South Georgia",null,"Ardley Island","62°13'S","58°56'W","Peninsula"]
["Arrowsmith Peninsula","67°15'S","67°15'W","Peninsula",null,"Sea Lion Island","52°25'S","59°3'W","Falkland Islands",null,"Doubtful Bay","54°52'4\"S","36°0'21\"W","South Georgia",null,"Argentine Islands Other","65°15'S","64°16'W","Peninsula"]
["Artigas Station","62°11'3\"S","58°54'7\"W","Peninsula",null,"Second Passage - Northern Landing","51°34'S","60°47'W","Falkland Islands",null,"Drygalski Fjord - DRG01","54°49'S","36°0'W","South Georgia",null,"Armstrong Reef","65°54'S","66°18'W","Peninsula"]
["Arturo Prat Station","62°30'S","59°41'W","Peninsula",null,"Stanley","54°26'S","36°11'W","Falkland Islands",null,"Ducloz Head","54°31'1\"S","36°39'E","South Georgia",null,"Arrowsmith Peninsula","67°15'S","67°15'W","Peninsula"]
["Astrolabe Glacier Area, or Vicinity","66°45'S","139°55'E","Continent",null,"Steeple Jason","51°2'15\"S","61°12'34\"W","Falkland Islands",null,"Elephant Cove","54°9'S","37°40'58\"E","South Georgia",null,"Artigas Station","62°11'3\"S","58°54'7\"W","Peninsula"]
["Astrolabe Island","63°17'S","58°40'W","Peninsula",null,"Volunteer Point","51°28'15\"S","57°50'41\"W","Falkland Islands",null,"Elsehul Inner Bay - ELS01","54°1'S","37°58'W","South Georgia",null,"Arturo Prat Station","62°30'S","59°41'W","Peninsula"]
["Atka Bay Rookery","70°37'N","8°3'W","Continent",null,"West Point Island","51°20'53\"S","60°41'15\"W","Falkland Islands",null,"Elsehul Outer Bay - ELS02","54°1'S","37°59'W","South Georgia",null,"Astrolabe Glacier Area, or Vicinity","66°45'S","139°55'E","Continent"]
["Audrey Island","68°8'S","67°7'W","Peninsula",null,null,null,null,null,null,"Faustini Cove","54°5'S","36°52'58\"E","South Georgia",null,"Astrolabe Island","63°17'S","58°40'W","Peninsula"]
["Auguste Island","64°3'S","61°37'W","Peninsula",null,null,null,null,null,null,"Fortuna Bay Ancorage Bay - FOR01","54°7'S","36°48'W","South Georgia",null,"Atka Bay Rookery","70°37'N","8°3'W","Continent"]
["Auster Rookery","67°23'45\"S","63°57'2\"E","Continent",null,null,null,null,null,null,"Fortuna Bay Whistle Cove Kings - FOR02","54°8'S","36°47'W","South Georgia",null,"Audrey Island","68°8'S","67°7'W","Peninsula"]
["Avian Island","67°46'S","68°54'W","Peninsula",null,null,null,null,null,null,"Godthul - GOD01","54°17'S","36°18'W","South Georgia",null,"Auguste Island","64°3'S","61°37'W","Peninsula"]
["Bahia Uruguay","60°43'1\"S","43°45'W","Peninsula",null,null,null,null,null,null,"Godthul Walk - GOD02","54°17'S","36°18'W","South Georgia",null,"Auster Rookery","67°23'45\"S","63°57'2\"E","Continent"]
["Baily Head","62°58'S","60°29'47\"W","Peninsula",null,null,null,null,null,null,"Gold Harbour - GOL01","54°37'S","35°56'W","South Georgia",null,"Avian Island","67°46'S","68°54'W","Peninsula"]
["Bald Head","63°38'S","57°36'W","Peninsula",null,null,null,null,null,null,"Gold Harbour Walk - GOL02","54°37'S","35°56'W","South Georgia",null,"Bahia Uruguay","60°43'1\"S","43°45'W","Peninsula"]
["Balleny Islands","66°55'S","163°20'E","Continent",null,null,null,null,null,null,"Granat Point","54°11'S","37°36'E","South Georgia",null,"Baily Head","62°58'S","60°29'47\"W","Peninsula"]
["Bancroft Bay","64°34'S","61°52'W","Peninsula",null,null,null,null,null,null,"Grassholm Island","54°3'S","37°33'36\"E","South Georgia",null,"Bald Head","63°38'S","57°36'W","Peninsula"]
["Barcroft Islands","66°27'S","67°10'W","Peninsula",null,null,null,null,null,null,"Green Harbour","54°52'33\"S","36°4'40\"W","South Georgia",null,"Balleny Islands","66°55'S","163°20'E","Continent"]
["Bartlett Bay","52°21'S","59°40'W","Continent",null,null,null,null,null,null,"Grytviken - GRY01","54°16'53\"S","36°30'28\"W","South Georgia",null,"Bancroft Bay","64°34'S","61°52'W","Peninsula"]
["Bay of Whales","78°30'S","164°20'W","Continent",null,null,null,null,null,null,"Hamilton Bay","54°48'S","35°54'E","South Georgia",null,"Barcroft Islands","66°27'S","67°10'W","Peninsula"]
["Bayard Islands","64°56'S","63°14'W","Peninsula",null,null,null,null,null,null,"Hercules Bay Macaronis - HER01","54°7'S","36°40'W","South Georgia",null,"Barren Island","52°22'32\"S","59°42'W","Falkland Islands"]
["Beagle Island","63°25'S","54°40'W","Peninsula",null,null,null,null,null,null,"Hercules Bay Waterfall - HER 02","54°7'S","36°40'W","South Georgia",null,"Bartlett Bay","52°21'S","59°40'W","Continent"]
["Beascochea Bay","65°30'S","64°0'W","Peninsula",null,null,null,null,null,null,"Holmestrand","54°15'S","37°16'12\"E","South Georgia",null,"Bay of Whales","78°30'S","164°20'W","Continent"]
["Beaufort Island","76°56'S","166°56'E","Continent",null,null,null,null,null,null,"Husvik - HUS01","54°6'S","36°24'W","South Georgia",null,"Bayard Islands","64°56'S","63°14'W","Peninsula"]
["Beer Island","66°0'S","65°41'W","Peninsula",null,null,null,null,null,null,"Ice Fjord","54°3'S","37°40'58\"E","South Georgia",null,"Beagle Island","63°25'S","54°40'W","Peninsula"]
["Bellingshausen Sea","71°0'S","85°0'W","Peninsula",null,null,null,null,null,null,"Iris Bay","54°42'S","35°55'58\"E","South Georgia",null,"Beascochea Bay","65°30'S","64°0'W","Peninsula"]
["Bellingshausen Station","62°11'45\"S","58°57'38\"W","Peninsula",null,null,null,null,null,null,"Jane Point","54°34'1\"S","35°57'E","South Georgia",null,"Beaufort Island","76°56'S","166°56'E","Continent"]
["Beneden Head","64°46'S","62°42'W","Peninsula",null,null,null,null,null,null,"Jason Harbour - JAS01","54°6'35\"S","36°18'W","South Georgia",null,"Beaver Island","51°51'S","61°15'W","Falkland Islands"]
["Bennett Islands","66°56'S","67°40'W","Peninsula",null,null,null,null,null,null,"Jossac Bight","54°16'1\"S","37°10'58\"E","South Georgia",null,"Beckmann Fjord","54°3'S","37°12'E","South Georgia"]
["Berthelot Islands","65°20'S","64°9'W","Peninsula",null,null,null,null,null,null,"Jumbo Cove","54°10'12\"S","36°33'E","South Georgia",null,"Beer Island","66°0'S","65°41'W","Peninsula"]
["Betbeder Islands","65°15'S","65°3'W","Peninsula",null,null,null,null,null,null,"King Edward Point","54°17'S","36°30'W","South Georgia",null,"Bellingshausen Sea","71°0'S","85°0'W","Peninsula"]
["Bibby Point","63°48'S","57°57'W","Peninsula",null,null,null,null,null,null,"King Haakon Bay","54°10'S","37°20'W","South Georgia",null,"Bellingshausen Station","62°11'45\"S","58°57'38\"W","Peninsula"]
["Biscoe Bay","65°1'44\"N","63°51'15\"E","Peninsula",null,null,null,null,null,null,"Konig Glacier Cumberland West Bay","54°8'3\"S","36°28'18\"E","South Georgia",null,"Beneden Head","64°46'S","62°42'W","Peninsula"]
["Biscoe Point","64°49'S","63°49'W","Peninsula",null,null,null,null,null,null,"Larsen Harbour - LAR01","58°30'S","36°0'W","South Georgia",null,"Bennett Islands","66°56'S","67°40'W","Peninsula"]
["Bismarck Strait","64°51'S","64°0'W","Peninsula",null,null,null,null,null,null,"Leith Harbour - LEI02","54°4'47\"S","36°24'35\"W","South Georgia",null,"Berkley Sound","51°34'4\"S","57°56'6\"E","Falkland Islands"]
["Blaiklock Island","67°33'S","67°4'W","Peninsula",null,null,null,null,null,null,"Leith Harbour Walk - LEI01","54°4'47\"S","36°24'35\"W","South Georgia",null,"Berthelot Islands","65°20'S","64°9'W","Peninsula"]
["Bluff Island","64°13'11\"S","61°20'24\"W","Peninsula",null,null,null,null,null,null,"Little Moltke Harbour - ROY03","54°32'S","36°0'W","South Georgia",null,"Betbeder Islands","65°15'S","65°3'W","Peninsula"]
["Boat Harbour","52°11'S","58°50'W","Continent",null,null,null,null,null,null,"Maiviken - MAI01","54°14'S","36°30'W","South Georgia",null,"Bibby Point","63°48'S","57°57'W","Peninsula"]
["Bob Island","64°56'S","63°26'W","Peninsula",null,null,null,null,null,null,"McDonald Bay","54°0'S","37°28'58\"E","South Georgia",null,"Bird Island","54°0'18\"S","38°3'E","South Georgia"]
["Bongrain Point","67°43'S","67°48'W","Peninsula",null,null,null,null,null,null,"Miles Bay","54°3'57\"S","37°39'E","South Georgia",null,"Biscoe Bay","65°1'44\"N","63°51'15\"E","Peninsula"]
["Boreal Point","63°7'S","55°48'W","Peninsula",null,null,null,null,null,null,"Moltke Harbour - ROY02","54°31'S","36°4'W","South Georgia",null,"Biscoe Point","64°49'S","63°49'W","Peninsula"]
["Borge Point","63°54'S","60°34'12\"W","Peninsula",null,null,null,null,null,null,"Montague Island","58°25'S","26°20'W","South Georgia",null,"Bismarck Strait","64°51'S","64°0'W","Peninsula"]
["Borgen Bay","64°45'S","63°30'W","Peninsula",null,null,null,null,null,null,"Morsa Bay","54°3'S","37°43'58\"E","South Georgia",null,"Bjelland Point","54°6'S","36°43'58\"E","South Georgia"]
["Botany Bay","63°41'S","57°53'W","Peninsula",null,null,null,null,null,null,"Mouse Cove","54°13'58\"S","37°19'1\"E","South Georgia",null,"Bjornstadt Bay","54°34'58\"S","35°55'1\"E","South Georgia"]
["Boutan Rocks","64°54'S","63°10'W","Peninsula",null,null,null,null,null,null,"Muller Point","54°40'58\"S","35°55'1\"E","South Georgia",null,"Blaiklock Island","67°33'S","67°4'W","Peninsula"]
["Boyd Strait","62°50'S","62°0'W","Peninsula",null,null,null,null,null,null,"Narval Bay","54°2'S","37°40'58\"E","South Georgia",null,"Bleaker Island - Adventure Sound","52°12'S","58°51'W","Falkland Islands"]
["Brabant Island","64°15'S","62°20'W","Peninsula",null,null,null,null,null,null,"Nilse Hullet","54°9'57\"S","37°34'58\"E","South Georgia",null,"Bleaker Island - Sandy Bay Landing","52°11'S","58°50'W","Falkland Islands"]
["Brabazon Point","64°24'S","61°16'W","Peninsula",null,null,null,null,null,null,"Nordenskjold Glacier - NOR01","54°13'11\"S","36°12'W","South Georgia",null,"Bluff Cove","51°46'S","58°11'W","Falkland Islands"]
["Brandy Bay","63°50'S","57°59'W","Peninsula",null,null,null,null,null,null,"Ocean Harbour - OCE01","54°20'S","36°16'W","South Georgia",null,"Bluff Island","64°13'11\"S","61°20'24\"W","Peninsula"]
["Bransfield Strait","63°0'S","59°0'W","Peninsula",null,null,null,null,null,null,"Ocean Harbour Walk - OCE02","54°20'S","36°16'W","South Georgia",null,"Boat Harbour","52°11'S","58°50'W","Continent"]
["Brash Island","63°24'S","54°55'W","Peninsula",null,null,null,null,null,null,"Olsen Valley Walk - HUS02","54°6'S","36°24'W","South Georgia",null,"Bob Island","64°56'S","63°26'W","Peninsula"]
["Brialmont Cove","64°15'57\"S","60°58'58\"W","Peninsula",null,null,null,null,null,null,"Peggotty Bluff - KIN02","54°9'S","37°17'W","South Georgia",null,"Bongrain Point","67°43'S","67°48'W","Peninsula"]
["Brooklyn Island","64°37'58\"S","62°3'W","Peninsula",null,null,null,null,null,null,"Possession Bay Brighton Beach - POS01","54°6'S","37°7'W","South Georgia",null,"Boreal Point","63°7'S","55°48'W","Peninsula"]
["Brown Bluff","63°32'S","56°55'W","Peninsula",null,null,null,null,null,null,"Possession Bay Brown Point - POS02","54°6'S","37°7'W","South Georgia",null,"Borge Point","63°54'S","60°34'12\"W","Peninsula"]
["Brown Station","64°53'43\"S","62°52'14\"W","Peninsula",null,null,null,null,null,null,"Prince Olav Harbour - POH01","54°4'S","37°9'W","South Georgia",null,"Borgen Bay","64°45'S","63°30'W","Peninsula"]
["Bruce Island","64°54'S","63°8'W","Peninsula",null,null,null,null,null,null,"Prion Island - PRI01","54°1'S","37°15'W","South Georgia",null,"Botany Bay","63°41'S","57°53'W","Peninsula"]
["Bryde Island","64°52'S","63°2'W","Peninsula",null,null,null,null,null,null,"Right Whale Bay - RIG01","54°0'S","37°41'W","South Georgia",null,"Boutan Rocks","64°54'S","63°10'W","Peninsula"]
["Buls Bay","64°23'S","62°19'W","Peninsula",null,null,null,null,null,null,"Rogged Bay","54°52'S","36°7'4\"W","South Georgia",null,"Boyd Strait","62°50'S","62°0'W","Peninsula"]
["Buromskiy Island","66°32'S","93°0'E","Continent",null,null,null,null,null,null,"Rookery Point Walk - ROO01","54°15'S","36°19'1\"E","South Georgia",null,"Brabant Island","64°15'S","62°20'W","Peninsula"]
["Butler Passage","64°58'S","63°44'W","Peninsula",null,null,null,null,null,null,"Rosita Harbour - ROS01","54°1'S","37°27'W","South Georgia",null,"Brabazon Point","64°24'S","61°16'W","Peninsula"]
["Calmette Bay","68°4'1\"S","67°13'1\"W","Peninsula",null,null,null,null,null,null,"Royal Bay Kings - ROY04","54°32'S","36°0'W","South Georgia",null,"Brandy Bay","63°50'S","57°59'W","Peninsula"]
["Camp Hill","63°41'S","57°52'W","Peninsula",null,null,null,null,null,null,"Royal Bay Koppen Point - ROY01","54°32'S","36°0'W","South Georgia",null,"Bransfield Strait","63°0'S","59°0'W","Peninsula"]
["Camp Point","67°58'S","67°19'W","Peninsula",null,null,null,null,null,null,"Royal Bay Macaronis - ROY05","54°32'S","36°0'W","South Georgia",null,"Brash Island","63°24'S","54°55'W","Peninsula"]
["Campbell Glacier/Gondwana Area","74°25'S","164°22'E","Continent",null,null,null,null,null,null,"Saddle Island","54°8'24\"S","37°44'56\"E","South Georgia",null,"Brialmont Cove","64°15'57\"S","60°58'58\"W","Peninsula"]
["Campbell Island","74°40'S","164°28'E","Continent",null,null,null,null,null,null,"Salisbury Plain - SAL01","54°3'S","37°21'W","South Georgia",null,"Bristol Island","59°1'58\"S","21°30'57\"W","South Georgia"]
["Canty Point","64°45'S","65°32'W","Peninsula",null,null,null,null,null,null,"Sandebugten Walk - GOD03","54°17'S","36°18'W","South Georgia",null,"Brooklyn Island","64°37'58\"S","62°3'W","Peninsula"]
["Cape Adare","71°17'S","170°14'E","Continent",null,null,null,null,null,null,"Sandebukten","54°15'S","36°45'W","South Georgia",null,"Brown Bluff","63°32'S","56°55'W","Peninsula"]
["Cape Anna","64°35'S","62°26'W","Peninsula",null,null,null,null,null,null,"Saunders Island - South Sandwich Islands","57°47'S","26°27'W","South Georgia",null,"Brown Station","64°53'43\"S","62°52'14\"W","Peninsula"]
["Cape Bird","77°9'44\"S","166°42'4\"E","Continent",null,null,null,null,null,null,"Schlieper Bay","54°2'S","37°30'E","South Georgia",null,"Bruce Island","64°54'S","63°8'W","Peninsula"]
["Cape Colbeck","77°7'S","158°1'W","Continent",null,null,null,null,null,null,"Sea Leopard Fjord","54°4'S","37°15'E","South Georgia",null,"Bryde Island","64°52'S","63°2'W","Peninsula"]
["Cape Crozier","77°31'S","169°24'E","Continent",null,null,null,null,null,null,"Shackleton Walk (Fortuna/Stromness) - FOR03","54°8'S","36°47'W","South Georgia",null,"Buls Bay","64°23'S","62°19'W","Peninsula"]
["Cape Darnley","54°27'S","36°49'W","Continent",null,null,null,null,null,null,"Shag Rocks","53°33'S","42°2'W","South Georgia",null,"Buromskiy Island","66°32'S","93°0'E","Continent"]
["Cape Decouverte","66°46'S","141°33'E","Continent",null,null,null,null,null,null,"Skua Bay","54°0'S","37°31'E","South Georgia",null,"Butler Passage","64°58'S","63°44'W","Peninsula"]
["Cape Denison","67°0'S","142°40'E","Continent",null,null,null,null,null,null,"Smaaland","54°52'11\"S","36°2'52\"W","South Georgia",null,"Calmette Bay","68°4'1\"S","67°13'1\"W","Peninsula"]
["Cape Dundas","60°44'S","44°24'W","Peninsula",null,null,null,null,null,null,"Sorling Valley","54°23'S","36°19'W","South Georgia",null,"Camp Hill","63°41'S","57°52'W","Peninsula"]
["Cape Evans","77°38'21\"S","166°24'7\"E","Continent",null,null,null,null,null,null,"Sorn and Bernt islands","53°58'58\"S","37°55'1\"E","South Georgia",null,"Camp Point","67°58'S","67°19'W","Peninsula"]
["Cape Gage","64°10'S","57°5'W","Peninsula",null,null,null,null,null,null,"South Sandwich Islands","57°45'S","26°30'W","South Georgia",null,"Campbell Glacier/Gondwana Area","74°25'S","164°22'E","Continent"]
["Cape Gray","66°51'S","143°22'E","Continent",null,null,null,null,null,null,"Southern Thule","59°26'S","27°12'W","South Georgia",null,"Campbell Island","74°40'S","164°28'E","Continent"]
["Cape Hallett","72°19'S","170°16'E","Continent",null,null,null,null,null,null,"St. Andrews Bay - STA01","54°26'S","36°11'W","South Georgia",null,"Candlemas Island","57°3'S","26°40'W","South Georgia"]
["Cape Herschel","64°4'S","61°2'W","Peninsula",null,null,null,null,null,null,"Start Point","54°2'49\"S","37°21'23\"E","South Georgia",null,"Canty Point","64°45'S","65°32'W","Peninsula"]
["Cape Jules","66°44'S","140°55'E","Continent",null,null,null,null,null,null,"Stromness - STR01","54°9'35\"S","36°42'41\"W","South Georgia",null,"Cape Adare","71°17'S","170°14'E","Continent"]
["Cape Kinnes","63°22'S","56°33'W","Peninsula",null,null,null,null,null,null,"Tern Island","54°3'S","37°19'47\"E","South Georgia",null,"Cape Anna","64°35'S","62°26'W","Peninsula"]
["Cape Kjellman","63°44'S","59°24'W","Peninsula",null,null,null,null,null,null,"Totorore Cove","54°16'S","37°21'E","South Georgia",null,"Cape Best","54°5'16\"S","36°48'57\"E","South Georgia"]
["Cape Lachman","63°47'S","57°47'W","Peninsula",null,null,null,null,null,null,"Trollhul","54°49'19\"S","36°12'11\"W","South Georgia",null,"Cape Bird","77°9'44\"S","166°42'4\"E","Continent"]
["Cape Lancaster","64°51'S","63°44'W","Peninsula",null,null,null,null,null,null,"Undine Harbour","54°2'S","37°58'W","South Georgia",null,"Cape Charlotte","54°31'58\"S","35°54'E","South Georgia"]
["Cape Legoupil","63°19'S","57°54'W","Peninsula",null,null,null,null,null,null,"Undine South Harbour","54°31'S","36°33'W","South Georgia",null,"Cape Colbeck","77°7'S","158°1'W","Continent"]
["Cape Lookout","61°16'S","55°12'W","Peninsula",null,null,null,null,null,null,"Welcome Islands - WEL01","53°34'47\"S","37°17'23\"W","South Georgia",null,"Cape Crozier","77°31'S","169°24'E","Continent"]
["Cape Melville","62°2'S","57°37'W","Peninsula",null,null,null,null,null,null,"Whale's Head","54°0'S","37°36'57\"E","South Georgia",null,"Cape Darnley","54°27'S","36°49'W","Continent"]
["Cape Mergerie","62°2'S","57°37'W","Continent",null,null,null,null,null,null,"Will Point","54°34'1\"S","36°1'1\"E","South Georgia",null,"Cape Decouverte","66°46'S","141°33'E","Continent"]
["Cape Perez","65°24'S","64°6'W","Peninsula",null,null,null,null,null,null,"Willis Islands","54°0'S","38°6'35\"E","South Georgia",null,"Cape Demidov","54°8'S","37°44'E","South Georgia"]
["Cape Renard","65°1'22\"S","63°46'18\"W","Peninsula",null,null,null,null,null,null,"Wilson Harbour","54°6'57\"S","37°42'E","South Georgia",null,"Cape Denison","67°0'S","142°40'E","Continent"]
["Cape Roget","71°59'S","170°37'E","Continent",null,null,null,null,null,null,"Wirik Bay","54°43'58\"S","35°51'W","South Georgia",null,"Cape Dundas","60°44'S","44°24'W","Peninsula"]
["Cape Roquemaurel","63°33'S","58°56'W","Peninsula",null,null,null,null,null,null,"Zavodovski Island","56°18'S","27°33'35\"E","South Georgia",null,"Cape Evans","77°38'21\"S","166°24'7\"E","Continent"]
["Cape Royds","77°32'36\"S","166°8'37\"E","Continent",null,null,null,null,null,null,null,null,null,null,null,"Cape Gage","64°10'S","57°5'W","Peninsula"]
["Cape Shirreff","62°27'S","60°47'W","Peninsula",null,null,null,null,null,null,null,null,null,null,null,"Cape Gray","66°51'S","143°22'E","Continent"]
["Cape Tuxen","65°16'S","64°8'W","Peninsula",null,null,null,null,null,null,null,null,null,null,null,"Cape Hallett","72°19'S","170°16'E","Continent"]
["Cape Valentine","61°6'S","54°39'W","Peninsula",null,null,null,null,null,null,null,null,null,null,null,"Cape Herschel","64°4'S","61°2'W","Peninsula"]
["Cape Washington","74°39'S","165°25'E","Continent",null,null,null,null,null,null,null,null,null,null,null,"Cape Jules","66°44'S","140°55'E","Continent"]
["Carlini Base","62°14'S","58°40'W","Peninsula",null,null,null,null,null,null,null,null,null,null,null,"Cape Kinnes","63°22'S","56°33'W","Peninsula"]
["Carvajal Station","67°46'S","68°55'W","Peninsula",null,null,null,null,null,null,null,null,null,null,null,"Cape Kjellman","63°44'S","59°24'W","Peninsula"]
["Casabianca Island","64°49'S","63°31'W","Peninsula",null,null,null,null,null,null,null,null,null,null,null,"Cape Lachman","63°47'S","57°47'W","Peninsula"]
["Casey Station","66°17'S","110°31'9\"E","Continent",null,null,null,null,null,null,null,null,null,null,null,"Cape Lancaster","64°51'S","63°44'W","Peninsula"]
["Challenger Island","64°21'S","61°35'W","Peninsula",null,null,null,null,null,null,null,null,null,null,null,"Cape Legoupil","63°19'S","57°54'W","Peninsula"]
["Charles Point","64°14'S","61°0'W","Peninsula",null,null,null,null,null,null,null,null,null,null,null,"Cape Lookout","61°16'S","55°12'W","Peninsula"]
["Charlotte Bay","64°33'S","61°39'W","Peninsula",null,null,null,null,null,null,null,null,null,null,null,"Cape Melville","62°2'S","57°37'W","Peninsula"]
["Chiloé Point","63°58'40\"S","65°31'17\"W","Peninsula",null,null,null,null,null,null,null,null,null,null,null,"Cape Mergerie","62°2'S","57°37'W","Continent"]
["Chiriguano Bay","64°28'S","62°31'W","Peninsula",null,null,null,null,null,null,null,null,null,null,null,"Cape North","53°58'S","37°43'58\"E","South Georgia"]
["Christiania Islands","63°57'S","61°27'W","Peninsula",null,null,null,null,null,null,null,null,null,null,null,"Cape Perez","65°24'S","64°6'W","Peninsula"]
["Chutney Cove","64°3'S","60°58'W","Peninsula",null,null,null,null,null,null,null,null,null,null,null,"Cape Renard","65°1'22\"S","63°46'18\"W","Peninsula"]
["Cierva Cove","64°9'S","60°53'W","Peninsula",null,null,null,null,null,null,null,null,null,null,null,"Cape Roget","71°59'S","170°37'E","Continent"]
["Clear Island","64°55'S","63°44'W","Peninsula",null,null,null,null,null,null,null,null,null,null,null,"Cape Roquemaurel","63°33'S","58°56'W","Peninsula"]
["Cobalescou Island","64°11'S","61°39'W","Peninsula",null,null,null,null,null,null,null,null,null,null,null,"Cape Rosa - KIN01","54°11'S","37°25'W","South Georgia"]
["Cockburn Island","64°12'S","56°51'W","Peninsula",null,null,null,null,null,null,null,null,null,null,null,"Cape Royds","77°32'36\"S","166°8'37\"E","Continent"]
["Collins Bay","65°21'S","64°4'W","Peninsula",null,null,null,null,null,null,null,null,null,null,null,"Cape Shirreff","62°27'S","60°47'W","Peninsula"]
["Comb Ridge","63°55'S","57°28'W","Peninsula",null,null,null,null,null,null,null,null,null,null,null,"Cape Tuxen","65°16'S","64°8'W","Peninsula"]
["Commonwealth Bay","66°54'S","142°40'E","Continent",null,null,null,null,null,null,null,null,null,null,null,"Cape Valentine","61°6'S","54°39'W","Peninsula"]
["Conception Point","60°31'S","45°41'W","Peninsula",null,null,null,null,null,null,null,null,null,null,null,"Cape Washington","74°39'S","165°25'E","Continent"]
["Conesa Point","64°52'19\"S","62°50'34\"W","Peninsula",null,null,null,null,null,null,null,null,null,null,null,"Carcass Island","51°16'50\"S","60°33'45\"W","Falkland Islands"]
["Cormorant Island","64°48'S","63°58'W","Peninsula",null,null,null,null,null,null,null,null,null,null,null,"Carcass Island - Leopard Beach","51°18'39\"S","60°31'19\"W","Falkland Islands"]
["Coronation Island","60°37'S","45°35'W","Peninsula",null,null,null,null,null,null,null,null,null,null,null,"Carlini Base","62°14'S","58°40'W","Peninsula"]
["Coughtrey Peninsula","63°34'47\"N","62°30'35\"E","Peninsula",null,null,null,null,null,null,null,null,null,null,null,"Carlita Bay","54°14'24\"S","36°38'24\"W","South Georgia"]
["Coulman Island","73°28'S","169°45'E","Continent",null,null,null,null,null,null,null,null,null,null,null,"Carvajal Station","67°46'S","68°55'W","Peninsula"]
["Covey Rocks","67°33'S","67°43'W","Peninsula",null,null,null,null,null,null,null,null,null,null,null,"Casabianca Island","64°49'S","63°31'W","Peninsula"]
["Croker Passage","64°0'S","61°42'W","Peninsula",null,null,null,null,null,null,null,null,null,null,null,"Casey Station","66°17'S","110°31'9\"E","Continent"]
["Crystal Hill","63°39'S","57°44'W","Peninsula",null,null,null,null,null,null,null,null,null,null,null,"Challenger Island","64°21'S","61°35'W","Peninsula"]
["Crystal Sound","66°23'S","66°30'W","Peninsula",null,null,null,null,null,null,null,null,null,null,null,"Chaplin Head","54°3'S","37°54'E","South Georgia"]
["Curtiss Bay","64°2'S","60°47'W","Peninsula",null,null,null,null,null,null,null,null,null,null,null,"Charles Point","64°14'S","61°0'W","Peninsula"]
["Cuverville Island","64°41'S","62°38'W","Peninsula",null,null,null,null,null,null,null,null,null,null,null,"Charlotte Bay","64°33'S","61°39'W","Peninsula"]
["D'Urville Monument","63°25'S","56°18'W","Peninsula",null,null,null,null,null,null,null,null,null,null,null,"Cheapman Bay","54°9'S","37°30'57\"E","South Georgia"]
["Dallmann Bay","64°20'S","62°55'W","Peninsula",null,null,null,null,null,null,null,null,null,null,null,"Chiloé Point","63°58'40\"S","65°31'17\"W","Peninsula"]
["Damoy Point/Dorian Bay","64°49'S","63°32'W","Peninsula",null,null,null,null,null,null,null,null,null,null,null,"Chiriguano Bay","64°28'S","62°31'W","Peninsula"]
["Danco Island","64°44'S","62°37'W","Peninsula",null,null,null,null,null,null,null,null,null,null,null,"Christiania Islands","63°57'S","61°27'W","Peninsula"]
["Danger Islands","63°25'S","54°40'W","Peninsula",null,null,null,null,null,null,null,null,null,null,null,"Church Bay","54°0'S","37°46'58\"E","South Georgia"]
["Dannebrog Islands","65°3'S","64°8'W","Peninsula",null,null,null,null,null,null,null,null,null,null,null,"Chutney Cove","64°3'S","60°58'W","Peninsula"]
["Darbel Bay","66°30'S","65°55'W","Peninsula",null,null,null,null,null,null,null,null,null,null,null,"Cierva Cove","64°9'S","60°53'W","Peninsula"]
["Darboux Island","65°25'S","64°15'W","Peninsula",null,null,null,null,null,null,null,null,null,null,null,"Clear Island","64°55'S","63°44'W","Peninsula"]
["Darwin Island","63°26'S","54°46'W","Peninsula",null,null,null,null,null,null,null,null,null,null,null,"Coal Harbour","54°2'S","37°55'58\"E","South Georgia"]
["Davis Islands","66°40'S","108°25'E","Continent",null,null,null,null,null,null,null,null,null,null,null,"Cobalescou Island","64°11'S","61°39'W","Peninsula"]
["Davis Station","68°34'36\"S","77°58'20\"E","Continent",null,null,null,null,null,null,null,null,null,null,null,"Cobblers Cove - COB01","54°16'S","36°18'W","South Georgia"]
["Dawin Island","63°26'S","54°46'W","Peninsula",null,null,null,null,null,null,null,null,null,null,null,"Cockburn Island","64°12'S","56°51'W","Peninsula"]
["Day Island","67°15'S","67°42'W","Peninsula",null,null,null,null,null,null,null,null,null,null,null,"Collins Bay","65°21'S","64°4'W","Peninsula"]
["Debenham Islands","68°8'S","67°7'W","Peninsula",null,null,null,null,null,null,null,null,null,null,null,"Comb Ridge","63°55'S","57°28'W","Peninsula"]
["Decepcion Base","62°52'S","60°43'W","Peninsula",null,null,null,null,null,null,null,null,null,null,null,"Commonwealth Bay","66°54'S","142°40'E","Continent"]
["Deception Island","62°57'S","60°38'W","Peninsula",null,null,null,null,null,null,null,null,null,null,null,"Conception Point","60°31'S","45°41'W","Peninsula"]
["Dee Island","62°26'S","59°47'W","Peninsula",null,null,null,null,null,null,null,null,null,null,null,"Conesa Point","64°52'19\"S","62°50'34\"W","Peninsula"]
["DeLaca Island","64°47'S","64°7'W","Peninsula",null,null,null,null,null,null,null,null,null,null,null,"Cooper Bay Albatross Cove - COO02","54°46'48\"S","35°28'47\"W","South Georgia"]
["Delaite Island","64°33'S","62°12'36\"W","Peninsula",null,null,null,null,null,null,null,null,null,null,null,"Cooper Bay Centre Cove - COO01","54°28'47\"S","35°28'47\"W","South Georgia"]
["Deloncle Bay","65°5'S","63°56'W","Peninsula",null,null,null,null,null,null,null,null,null,null,null,"Cooper Bay Chinstraps - COO05","54°46'48\"S","35°28'47\"W","South Georgia"]
["Demel Cove","66°48'S","66°33'W","Peninsula",null,null,null,null,null,null,null,null,null,null,null,"Cooper Bay Macaronis - COO03","54°47'S","35°48'W","South Georgia"]
["Desolation Island","62°28'S","60°22'W","Peninsula",null,null,null,null,null,null,null,null,null,null,null,"Cooper Bay Main Beach - COO04","54°46'48\"S","35°28'47\"W","South Georgia"]
["Detaille Island","66°52'S","66°48'W","Peninsula",null,null,null,null,null,null,null,null,null,null,null,"Cooper Island","54°48'S","35°46'58\"E","South Georgia"]
["Devil Island","63°48'S","57°17'W","Peninsula",null,null,null,null,null,null,null,null,null,null,null,"Cormorant Island","64°48'S","63°58'W","Peninsula"]
["Discovery Bay","62°29'S","59°43'W","Peninsula",null,null,null,null,null,null,null,null,null,null,null,"Coronation Island","60°37'S","45°35'W","Peninsula"]
["Dobrowolski Island","64°36'S","62°55'W","Peninsula",null,null,null,null,null,null,null,null,null,null,null,"Coughtrey Peninsula","63°34'47\"N","62°30'35\"E","Peninsula"]
["Dogs Leg Fjord","67°43'S","66°52'W","Peninsula",null,null,null,null,null,null,null,null,null,null,null,"Coulman Island","73°28'S","169°45'E","Continent"]
["Doumer Island","64°51'S","63°35'W","Peninsula",null,null,null,null,null,null,null,null,null,null,null,"Covey Rocks","67°33'S","67°43'W","Peninsula"]
["Dream Island","64°44'S","64°14'W","Peninsula",null,null,null,null,null,null,null,null,null,null,null,"Croker Passage","64°0'S","61°42'W","Peninsula"]
["Drescher Inlet","64°44'S","64°14'W","Continent",null,null,null,null,null,null,null,null,null,null,null,"Crystal Hill","63°39'S","57°44'W","Peninsula"]
["Drygalski Ice Tongue","75°24'S","163°30'E","Continent",null,null,null,null,null,null,null,null,null,null,null,"Crystal Sound","66°23'S","66°30'W","Peninsula"]
["Duchaylard Island","65°42'S","65°7'W","Peninsula",null,null,null,null,null,null,null,null,null,null,null,"Cumberland Bay West","54°13'8\"S","36°47'2\"E","South Georgia"]
["Dumont d'Urville Station","66°39'46\"S","140°0'3\"E","Continent",null,null,null,null,null,null,null,null,null,null,null,"Curtiss Bay","64°2'S","60°47'W","Peninsula"]
["Dundee Island","63°30'S","55°55'W","Peninsula",null,null,null,null,null,null,null,null,null,null,null,"Cuverville Island","64°41'S","62°38'W","Peninsula"]
["Duse Bay","63°32'S","57°15'W","Peninsula",null,null,null,null,null,null,null,null,null,null,null,"D'Urville Monument","63°25'S","56°18'W","Peninsula"]
["Duseberg Buttress","65°10'S","64°6'W","Peninsula",null,null,null,null,null,null,null,null,null,null,null,"Dallmann Bay","64°20'S","62°55'W","Peninsula"]
["Duthiers Point","64°48'S","62°49'W","Peninsula",null,null,null,null,null,null,null,null,null,null,null,"Damien Bay","54°48'S","35°52'58\"E","South Georgia"]
["Duthoit Point","62°19'S","58°50'W","Peninsula",null,null,null,null,null,null,null,null,null,null,null,"Damoy Point/Dorian Bay","64°49'S","63°32'W","Peninsula"]
["Eagle Island","63°40'S","57°29'W","Peninsula",null,null,null,null,null,null,null,null,null,null,null,"Danco Island","64°44'S","62°37'W","Peninsula"]
["Eckener Point","64°26'S","61°36'W","Peninsula",null,null,null,null,null,null,null,null,null,null,null,"Danger Islands","63°25'S","54°40'W","Peninsula"]
["Edgell Bay","62°16'S","58°59'W","Peninsula",null,null,null,null,null,null,null,null,null,null,null,"Dannebrog Islands","65°3'S","64°8'W","Peninsula"]
["Edinburgh Hill","62°33'S","60°1'W","Peninsula",null,null,null,null,null,null,null,null,null,null,null,"Darbel Bay","66°30'S","65°55'W","Peninsula"]
["Edwards Point","62°29'S","59°30'W","Peninsula",null,null,null,null,null,null,null,null,null,null,null,"Darboux Island","65°25'S","64°15'W","Peninsula"]
["Elephant Island","61°10'S","55°14'W","Peninsula",null,null,null,null,null,null,null,null,null,null,null,"Darwin","51°48'10\"S","58°57'7\"W","Falkland Islands"]
["Elephant Point","62°41'S","60°52'W","Peninsula",null,null,null,null,null,null,null,null,null,null,null,"Darwin Island","63°26'S","54°46'W","Peninsula"]
["Emona Anchorage","62°23'2\"S","60°13'8\"W","Peninsula",null,null,null,null,null,null,null,null,null,null,null,"Davis Islands","66°40'S","108°25'E","Continent"]
["English Strait","62°27'S","59°38'W","Peninsula",null,null,null,null,null,null,null,null,null,null,null,"Davis Station","68°34'36\"S","77°58'20\"E","Continent"]
["Enterprise Island","64°32'S","62°0'W","Peninsula",null,null,null,null,null,null,null,null,null,null,null,"Dawin Island","63°26'S","54°46'W","Peninsula"]
["Erebus and Terror Gulf","63°55'S","56°40'W","Peninsula",null,null,null,null,null,null,null,null,null,null,null,"Day Island","67°15'S","67°42'W","Peninsula"]
["Errera Channel","64°42'S","62°36'W","Peninsula",null,null,null,null,null,null,null,null,null,null,null,"Debenham Islands","68°8'S","67°7'W","Peninsula"]
["Erskine Glacier","66°29'S","65°40'W","Peninsula",null,null,null,null,null,null,null,null,null,null,null,"Decepcion Base","62°52'S","60°43'W","Peninsula"]
["Esperanza Station","63°23'40\"S","56°59'45\"W","Peninsula",null,null,null,null,null,null,null,null,null,null,null,"Deception Island","62°57'S","60°38'W","Peninsula"]
["Extension Reef","65°58'S","66°8'W","Peninsula",null,null,null,null,null,null,null,null,null,null,null,"Dee Island","62°26'S","59°47'W","Peninsula"]
["Eyrie Bay","63°35'S","57°38'W","Peninsula",null,null,null,null,null,null,null,null,null,null,null,"DeLaca Island","64°47'S","64°7'W","Peninsula"]
["False Bay","62°43'S","60°22'W","Peninsula",null,null,null,null,null,null,null,null,null,null,null,"Delaite Island","64°33'S","62°12'36\"W","Peninsula"]
["False Island Point","63°55'S","57°20'W","Peninsula",null,null,null,null,null,null,null,null,null,null,null,"Deloncle Bay","65°5'S","63°56'W","Peninsula"]
["Fanfare Island","65°13'S","64°11'W","Peninsula",null,null,null,null,null,null,null,null,null,null,null,"Demel Cove","66°48'S","66°33'W","Peninsula"]
["Fast Ice","65°54'S","65°10'W","Peninsula",null,null,null,null,null,null,null,null,null,null,null,"Desolation Island","62°28'S","60°22'W","Peninsula"]
["Ferguson Channel","64°54'30\"S","62°59'38\"W","Peninsula",null,null,null,null,null,null,null,null,null,null,null,"Detaille Island","66°52'S","66°48'W","Peninsula"]
["Ferraz Station","62°5'S","58°23'27\"W","Peninsula",null,null,null,null,null,null,null,null,null,null,null,"Devil Island","63°48'S","57°17'W","Peninsula"]
["Field Cove","65°28'11\"S","63°51'W","Peninsula",null,null,null,null,null,null,null,null,null,null,null,"Discovery Bay","62°29'S","59°43'W","Peninsula"]
["Fildes Peninsula","62°12'S","58°58'W","Peninsula",null,null,null,null,null,null,null,null,null,null,null,"Dobrowolski Island","64°36'S","62°55'W","Peninsula"]
["Fish Islands","66°2'S","65°25'W","Peninsula",null,null,null,null,null,null,null,null,null,null,null,"Dogs Leg Fjord","67°43'S","66°52'W","Peninsula"]
["Flanders Bay","64°49'S","63°30'W","Peninsula",null,null,null,null,null,null,null,null,null,null,null,"Dot Island","54°3'S","37°21'E","South Georgia"]
["Fleurus Island","64°34'58\"S","62°12'W","Peninsula",null,null,null,null,null,null,null,null,null,null,null,"Doubtful Bay","54°52'4\"S","36°0'21\"W","South Georgia"]
["Flounder Island","66°1'S","65°24'W","Peninsula",null,null,null,null,null,null,null,null,null,null,null,"Doumer Island","64°51'S","63°35'W","Peninsula"]
["Flutter Rookery","67°50'S","69°45'E","Continent",null,null,null,null,null,null,null,null,null,null,null,"Dream Island","64°44'S","64°14'W","Peninsula"]
["Forge Islands","65°14'S","64°17'W","Peninsula",null,null,null,null,null,null,null,null,null,null,null,"Drescher Inlet","64°44'S","64°14'W","Continent"]
["Fort Point","62°34'S","59°34'W","Peninsula",null,null,null,null,null,null,null,null,null,null,null,"Drygalski Fjord - DRG01","54°49'S","36°0'W","South Georgia"]
["Fournier Bay","64°31'S","63°6'W","Peninsula",null,null,null,null,null,null,null,null,null,null,null,"Drygalski Ice Tongue","75°24'S","163°30'E","Continent"]
["Foyn Harbor","64°33'S","62°1'W","Peninsula",null,null,null,null,null,null,null,null,null,null,null,"Duchaylard Island","65°42'S","65°7'W","Peninsula"]
["Franklin Island","76°5'S","168°19'E","Continent",null,null,null,null,null,null,null,null,null,null,null,"Ducloz Head","54°31'1\"S","36°39'E","South Georgia"]
["Frei Station","62°12'S","58°57'51\"W","Peninsula",null,null,null,null,null,null,null,null,null,null,null,"Dumont d'Urville Station","66°39'46\"S","140°0'3\"E","Continent"]
["French Passage","65°10'S","64°20'W","Peninsula",null,null,null,null,null,null,null,null,null,null,null,"Dundee Island","63°30'S","55°55'W","Peninsula"]
["Freud Passage","64°17'S","62°8'W","Peninsula",null,null,null,null,null,null,null,null,null,null,null,"Duse Bay","63°32'S","57°15'W","Peninsula"]
["Fridtjof Island","64°53'S","63°22'W","Peninsula",null,null,null,null,null,null,null,null,null,null,null,"Duseberg Buttress","65°10'S","64°6'W","Peninsula"]
["Fridtjof Sound","63°34'S","56°43'W","Peninsula",null,null,null,null,null,null,null,null,null,null,null,"Duthiers Point","64°48'S","62°49'W","Peninsula"]
["Fulmar Bay","60°37'S","46°1'W","Peninsula",null,null,null,null,null,null,null,null,null,null,null,"Duthoit Point","62°19'S","58°50'W","Peninsula"]
["Fumarole Bay","62°57'57\"S","60°42'W","Peninsula",null,null,null,null,null,null,null,null,null,null,null,"Eagle Island","63°40'S","57°29'W","Peninsula"]
["Gabriel de Castilla Station","62°58'38\"S","60°40'34\"W","Peninsula",null,null,null,null,null,null,null,null,null,null,null,"Eckener Point","64°26'S","61°36'W","Peninsula"]
["Galindez Island","65°15'S","64°15'W","Peninsula",null,null,null,null,null,null,null,null,null,null,null,"Edgell Bay","62°16'S","58°59'W","Peninsula"]
["Gand Island","64°24'S","62°51'W","Peninsula",null,null,null,null,null,null,null,null,null,null,null,"Edinburgh Hill","62°33'S","60°1'W","Peninsula"]
["Gaston Islands","64°28'S","61°50'W","Peninsula",null,null,null,null,null,null,null,null,null,null,null,"Edwards Point","62°29'S","59°30'W","Peninsula"]
["George VI Sound","71°0'S","68°0'W","Peninsula",null,null,null,null,null,null,null,null,null,null,null,"Elephant Cove","54°9'S","37°40'58\"E","South Georgia"]
["Gerlache Strait","64°30'S","62°20'W","Peninsula",null,null,null,null,null,null,null,null,null,null,null,"Elephant Island","61°10'S","55°14'W","Peninsula"]
["Gibbs Island","61°28'S","55°34'W","Peninsula",null,null,null,null,null,null,null,null,null,null,null,"Elephant Point","62°41'S","60°52'W","Peninsula"]
["Gin Cove","64°3'S","58°25'W","Peninsula",null,null,null,null,null,null,null,null,null,null,null,"Elsehul Inner Bay - ELS01","54°1'S","37°58'W","South Georgia"]
["Girard Bay","65°8'S","64°0'W","Peninsula",null,null,null,null,null,null,null,null,null,null,null,"Elsehul Outer Bay - ELS02","54°1'S","37°59'W","South Georgia"]
["Gosling Islands","60°39'S","45°55'W","Peninsula",null,null,null,null,null,null,null,null,null,null,null,"Emona Anchorage","62°23'2\"S","60°13'8\"W","Peninsula"]
["Goudier Island","64°50'S","63°30'W","Peninsula",null,null,null,null,null,null,null,null,null,null,null,"English Strait","62°27'S","59°38'W","Peninsula"]
["Gourdin Island","63°12'S","57°18'W","Peninsula",null,null,null,null,null,null,null,null,null,null,null,"Enterprise Island","64°32'S","62°0'W","Peninsula"]
["Governor Islands","60°30'S","45°56'W","Peninsula",null,null,null,null,null,null,null,null,null,null,null,"Erebus and Terror Gulf","63°55'S","56°40'W","Peninsula"]
["Graham Passage","64°24'S","61°31'W","Peninsula",null,null,null,null,null,null,null,null,null,null,null,"Errera Channel","64°42'S","62°36'W","Peninsula"]
["Grandidier Channel","65°35'S","64°45'W","Peninsula",null,null,null,null,null,null,null,null,null,null,null,"Erskine Glacier","66°29'S","65°40'W","Peninsula"]
["Great Wall Station","62°12'57\"S","58°57'42\"W","Peninsula",null,null,null,null,null,null,null,null,null,null,null,"Esperanza Station","63°23'40\"S","56°59'45\"W","Peninsula"]
["Greenwich Island","62°31'S","59°47'W","Peninsula",null,null,null,null,null,null,null,null,null,null,null,"Extension Reef","65°58'S","66°8'W","Peninsula"]
["Guebriant Islands","67°48'S","68°25'W","Peninsula",null,null,null,null,null,null,null,null,null,null,null,"Eyrie Bay","63°35'S","57°38'W","Peninsula"]
["Guepratte Island","64°30'S","63°0'W","Peninsula",null,null,null,null,null,null,null,null,null,null,null,"Falkland Sound","51°48'S","59°30'W","Falkland Islands"]
["Guyou Islands","65°3'S","63°24'W","Peninsula",null,null,null,null,null,null,null,null,null,null,null,"False Bay","62°43'S","60°22'W","Peninsula"]
["Haddon Bay, Joinville Island","63°18'S","55°44'W","Peninsula",null,null,null,null,null,null,null,null,null,null,null,"False Island Point","63°55'S","57°20'W","Peninsula"]
["Half Moon Island - Base Camara","62°36'S","59°56'W","Peninsula",null,null,null,null,null,null,null,null,null,null,null,"Fanfare Island","65°13'S","64°11'W","Peninsula"]
["Half Moon Island - Chinstrap Colony","62°36'S","59°55'W","Peninsula",null,null,null,null,null,null,null,null,null,null,null,"Fast Ice","65°54'S","65°10'W","Peninsula"]
["Halley Rookery","62°36'S","59°55'W","Continent",null,null,null,null,null,null,null,null,null,null,null,"Faustini Cove","54°5'S","36°52'58\"E","South Georgia"]
["Halley Station","75°34'53\"S","26°32'27\"W","Continent",null,null,null,null,null,null,null,null,null,null,null,"Ferguson Channel","64°54'30\"S","62°59'38\"W","Peninsula"]
["Hannah Point","62°39'S","60°37'W","Peninsula",null,null,null,null,null,null,null,null,null,null,null,"Ferraz Station","62°5'S","58°23'27\"W","Peninsula"]
["Hanusse Bay","66°57'S","67°30'W","Peninsula",null,null,null,null,null,null,null,null,null,null,null,"Field Cove","65°28'11\"S","63°51'W","Peninsula"]
["Harrison Passage","65°53'S","65°11'W","Peninsula",null,null,null,null,null,null,null,null,null,null,null,"Fildes Peninsula","62°12'S","58°58'W","Peninsula"]
["Harry Island","64°8'S","61°59'W","Peninsula",null,null,null,null,null,null,null,null,null,null,null,"Fish Islands","66°2'S","65°25'W","Peninsula"]
["Heim Glacier","67°28'S","66°55'W","Peninsula",null,null,null,null,null,null,null,null,null,null,null,"Flanders Bay","64°49'S","63°30'W","Peninsula"]
["Herbert Sound","63°55'S","57°40'W","Peninsula",null,null,null,null,null,null,null,null,null,null,null,"Fleurus Island","64°34'58\"S","62°12'W","Peninsula"]
["Heroina Island","63°24'S","54°36'W","Peninsula",null,null,null,null,null,null,null,null,null,null,null,"Flounder Island","66°1'S","65°24'W","Peninsula"]
["Heywood Island","62°20'S","59°41'W","Peninsula",null,null,null,null,null,null,null,null,null,null,null,"Flutter Rookery","67°50'S","69°45'E","Continent"]
["Hidden Bay","65°2'S","63°46'W","Peninsula",null,null,null,null,null,null,null,null,null,null,null,"Forge Islands","65°14'S","64°17'W","Peninsula"]
["Holdfast Point","66°28'48\"S","66°21'35\"W","Peninsula",null,null,null,null,null,null,null,null,null,null,null,"Fort Point","62°34'S","59°34'W","Peninsula"]
["Holtedahl Bay","66°7'S","65°20'W","Peninsula",null,null,null,null,null,null,null,null,null,null,null,"Fortuna Bay Ancorage Bay - FOR01","54°7'S","36°48'W","South Georgia"]
["Hoodwink Island","67°1'S","66°52'W","Peninsula",null,null,null,null,null,null,null,null,null,null,null,"Fortuna Bay Whistle Cove Kings - FOR02","54°8'S","36°47'W","South Georgia"]
["Hook Island","65°38'S","65°10'W","Peninsula",null,null,null,null,null,null,null,null,null,null,null,"Fournier Bay","64°31'S","63°6'W","Peninsula"]
["Hope Bay","63°23'S","57°0'W","Peninsula",null,null,null,null,null,null,null,null,null,null,null,"Foyn Harbor","64°33'S","62°1'W","Peninsula"]
["Horseshoe Island","67°51'S","67°12'W","Peninsula",null,null,null,null,null,null,null,null,null,null,null,"Franklin Island","76°5'S","168°19'E","Continent"]
["Hovgaard Island","65°8'S","64°8'W","Peninsula",null,null,null,null,null,null,null,null,null,null,null,"Frei Station","62°12'S","58°57'51\"W","Peninsula"]
["Huemul Island","63°40'S","60°50'W","Peninsula",null,null,null,null,null,null,null,null,null,null,null,"French Passage","65°10'S","64°20'W","Peninsula"]
["Hughes Bay","64°13'S","61°20'W","Peninsula",null,null,null,null,null,null,null,null,null,null,null,"Freud Passage","64°17'S","62°8'W","Peninsula"]
["Humps Island","63°59'S","57°25'W","Peninsula",null,null,null,null,null,null,null,null,null,null,null,"Fridtjof Island","64°53'S","63°22'W","Peninsula"]
["Hunt Island","64°20'13\"S","62°8'19\"W","Peninsula",null,null,null,null,null,null,null,null,null,null,null,"Fridtjof Sound","63°34'S","56°43'W","Peninsula"]
["Hut Point","77°50'45\"S","166°38'16\"E","Continent",null,null,null,null,null,null,null,null,null,null,null,"Fulmar Bay","60°37'S","46°1'W","Peninsula"]
["Hydrurga Rocks","64°8'S","61°37'W","Peninsula",null,null,null,null,null,null,null,null,null,null,null,"Fumarole Bay","62°57'57\"S","60°42'W","Peninsula"]
["IAATO Islands","65°45'S","65°24'43\"W","Peninsula",null,null,null,null,null,null,null,null,null,null,null,"Gabriel de Castilla Station","62°58'38\"S","60°40'34\"W","Peninsula"]
["Iceberg Point","64°38'S","63°6'W","Peninsula",null,null,null,null,null,null,null,null,null,null,null,"Galindez Island","65°15'S","64°15'W","Peninsula"]
["Inexpressible Island","74°54'S","163°39'E","Continent",null,null,null,null,null,null,null,null,null,null,null,"Gand Island","64°24'S","62°51'W","Peninsula"]
["Intercurrence Island","63°55'S","61°24'W","Peninsula",null,null,null,null,null,null,null,null,null,null,null,"Gaston Islands","64°28'S","61°50'W","Peninsula"]
["Ironside Glacier","72°8'S","169°40'E","Continent",null,null,null,null,null,null,null,null,null,null,null,"George Island","52°20'48\"S","59°44'58\"W","Falkland Islands"]
["Isla Pinguino","64°8'S","60°59'W","Peninsula",null,null,null,null,null,null,null,null,null,null,null,"George VI Sound","71°0'S","68°0'W","Peninsula"]
["Jabet Peak","64°49'S","63°28'W","Peninsula",null,null,null,null,null,null,null,null,null,null,null,"Gerlache Strait","64°30'S","62°20'W","Peninsula"]
["Jagged Island","61°54'S","58°29'W","Peninsula",null,null,null,null,null,null,null,null,null,null,null,"Gibbs Island","61°28'S","55°34'W","Peninsula"]
["James Ross Island","64°10'S","57°45'W","Peninsula",null,null,null,null,null,null,null,null,null,null,null,"Gin Cove","64°3'S","58°25'W","Peninsula"]
["Jang Bogo Station","74°36'55\"S","164°12'2\"E","Continent",null,null,null,null,null,null,null,null,null,null,null,"Girard Bay","65°8'S","64°0'W","Peninsula"]
["Jenny Island","67°44'S","68°24'W","Peninsula",null,null,null,null,null,null,null,null,null,null,null,"Godthul - GOD01","54°17'S","36°18'W","South Georgia"]
["John Beach","62°39'S","60°46'W","Peninsula",null,null,null,null,null,null,null,null,null,null,null,"Godthul Walk - GOD02","54°17'S","36°18'W","South Georgia"]
["Jonassen Island","63°33'S","56°40'W","Peninsula",null,null,null,null,null,null,null,null,null,null,null,"Gold Harbour - GOL01","54°37'S","35°56'W","South Georgia"]
["Jougla Point","64°50'S","63°30'W","Peninsula",null,null,null,null,null,null,null,null,null,null,null,"Gold Harbour Walk - GOL02","54°37'S","35°56'W","South Georgia"]
["Juan Carlos Primero Station","62°39'S","60°23'W","Peninsula",null,null,null,null,null,null,null,null,null,null,null,"Goose Green","51°49'26\"S","58°57'23\"W","Falkland Islands"]
["Karelin Islands","65°35'S","65°35'W","Peninsula",null,null,null,null,null,null,null,null,null,null,null,"Gosling Islands","60°39'S","45°55'W","Peninsula"]
["Kayak Bay","64°18'S","62°13'W","Peninsula",null,null,null,null,null,null,null,null,null,null,null,"Goudier Island","64°50'S","63°30'W","Peninsula"]
["Keith Glacier","66°18'57\"S","65°36'57\"W","Peninsula",null,null,null,null,null,null,null,null,null,null,null,"Gourdin Island","63°12'S","57°18'W","Peninsula"]
["King George Bay","62°6'S","58°5'W","Peninsula",null,null,null,null,null,null,null,null,null,null,null,"Governor Islands","60°30'S","45°56'W","Peninsula"]
["King Sejong Station","62°13'23\"S","58°47'21\"W","Peninsula",null,null,null,null,null,null,null,null,null,null,null,"Graham Passage","64°24'S","61°31'W","Peninsula"]
["Kinnes Cove/Madder Cliffs","63°18'57\"S","56°27'57\"W","Peninsula",null,null,null,null,null,null,null,null,null,null,null,"Granat Point","54°11'S","37°36'E","South Georgia"]
["Knobble Head","63°5'24\"S","56°19'12\"W","Peninsula",null,null,null,null,null,null,null,null,null,null,null,"Grand Jason","51°3'36\"S","61°6'W","Falkland Islands"]
["Lagarrigue Cove","64°39'S","62°34'W","Peninsula",null,null,null,null,null,null,null,null,null,null,null,"Grandidier Channel","65°35'S","64°45'W","Peninsula"]
["Lagoon Island","67°35'S","68°16'W","Peninsula",null,null,null,null,null,null,null,null,null,null,null,"Grassholm Island","54°3'S","37°33'36\"E","South Georgia"]
["Laktionov Island","65°46'S","65°46'W","Peninsula",null,null,null,null,null,null,null,null,null,null,null,"Grave Cove","51°21'S","60°37'W","Falkland Islands"]
["Lallemand Fjord","67°5'S","66°45'W","Peninsula",null,null,null,null,null,null,null,null,null,null,null,"Great Wall Station","62°12'57\"S","58°57'42\"W","Peninsula"]
["Lampe Cove","66°32'14\"S","65°35'W","Peninsula",null,null,null,null,null,null,null,null,null,null,null,"Green Harbour","54°52'33\"S","36°4'40\"W","South Georgia"]
["Larrouy Island","65°52'S","65°15'W","Peninsula",null,null,null,null,null,null,null,null,null,null,null,"Greenwich Island","62°31'S","59°47'W","Peninsula"]
["Laurie Island","60°44'S","44°37'W","Peninsula",null,null,null,null,null,null,null,null,null,null,null,"Grytviken - GRY01","54°16'53\"S","36°30'28\"W","South Georgia"]
["Lautaro Island","64°49'S","63°6'W","Peninsula",null,null,null,null,null,null,null,null,null,null,null,"Guebriant Islands","67°48'S","68°25'W","Peninsula"]
["Lavoisier Island","66°12'S","66°44'W","Peninsula",null,null,null,null,null,null,null,null,null,null,null,"Guepratte Island","64°30'S","63°0'W","Peninsula"]
["Law-Racoviță Station","69°23'18\"S","76°22'46\"E","Continent",null,null,null,null,null,null,null,null,null,null,null,"Guyou Islands","65°3'S","63°24'W","Peninsula"]
["Lefèvre-Utile Point","64°50'S","63°31'W","Peninsula",null,null,null,null,null,null,null,null,null,null,null,"Gypsy Cove","51°41'S","57°48'W","Falkland Islands"]
["Leith Cove","64°52'S","62°50'W","Peninsula",null,null,null,null,null,null,null,null,null,null,null,"Haddon Bay, Joinville Island","63°18'S","55°44'W","Peninsula"]
["Lemaire Channel","65°4'S","63°57'W","Peninsula",null,null,null,null,null,null,null,null,null,null,null,"Half Moon Island - Base Camara","62°36'S","59°56'W","Peninsula"]
["Lemaire Island","64°49'S","62°57'W","Peninsula",null,null,null,null,null,null,null,null,null,null,null,"Half Moon Island - Chinstrap Colony","62°36'S","59°55'W","Peninsula"]
["Leningradskaya Station","69°30'S","159°23'E","Continent",null,null,null,null,null,null,null,null,null,null,null,"Halley Rookery","62°36'S","59°55'W","Continent"]
["Liege Island","64°2'S","61°55'W","Peninsula",null,null,null,null,null,null,null,null,null,null,null,"Halley Station","75°34'53\"S","26°32'27\"W","Continent"]
["Lindblad Cove","63°51'S","59°27'W","Peninsula",null,null,null,null,null,null,null,null,null,null,null,"Hamilton Bay","54°48'S","35°54'E","South Georgia"]
["Lion Sound","64°40'S","63°9'W","Peninsula",null,null,null,null,null,null,null,null,null,null,null,"Hannah Point","62°39'S","60°37'W","Peninsula"]
["Lippmann Islands","65°30'S","64°26'W","Peninsula",null,null,null,null,null,null,null,null,null,null,null,"Hanusse Bay","66°57'S","67°30'W","Peninsula"]
["Lister Cove","62°30'S","60°5'W","Peninsula",null,null,null,null,null,null,null,null,null,null,null,"Harrison Passage","65°53'S","65°11'W","Peninsula"]
["Livingston Island","62°36'S","60°30'W","Peninsula",null,null,null,null,null,null,null,null,null,null,null,"Harry Island","64°8'S","61°59'W","Peninsula"]
["Lockley Point","64°47'S","63°23'W","Peninsula",null,null,null,null,null,null,null,null,null,null,null,"Heim Glacier","67°28'S","66°55'W","Peninsula"]
["Lord Bank","67°50'S","69°15'W","Peninsula",null,null,null,null,null,null,null,null,null,null,null,"Herbert Sound","63°55'S","57°40'W","Peninsula"]
["Louise Island","64°36'S","62°23'W","Peninsula",null,null,null,null,null,null,null,null,null,null,null,"Hercules Bay Macaronis - HER01","54°7'S","36°40'W","South Georgia"]
["Lystad Bay","67°50'S","67°17'W","Peninsula",null,null,null,null,null,null,null,null,null,null,null,"Hercules Bay Waterfall - HER 02","54°7'S","36°40'W","South Georgia"]
["Macaroni Point","62°54'S","60°32'W","Peninsula",null,null,null,null,null,null,null,null,null,null,null,"Heroina Island","63°24'S","54°36'W","Peninsula"]
["Mackellar Islands","66°58'S","142°40'E","Continent",null,null,null,null,null,null,null,null,null,null,null,"Heywood Island","62°20'S","59°41'W","Peninsula"]
["Marambio Station","64°14'38\"S","56°39'35\"E","Peninsula",null,null,null,null,null,null,null,null,null,null,null,"Hidden Bay","65°2'S","63°46'W","Peninsula"]
["Marguerite Bay","68°30'S","68°30'W","Peninsula",null,null,null,null,null,null,null,null,null,null,null,"Holdfast Point","66°28'48\"S","66°21'35\"W","Peninsula"]
["Mario Zucchelli Station","74°41'S","164°7'E","Continent",null,null,null,null,null,null,null,null,null,null,null,"Holmestrand","54°15'S","37°16'12\"E","South Georgia"]
["Martel Inlet","62°5'S","58°22'W","Peninsula",null,null,null,null,null,null,null,null,null,null,null,"Holtedahl Bay","66°7'S","65°20'W","Peninsula"]
["Martha Cove","63°56'S","57°50'W","Peninsula",null,null,null,null,null,null,null,null,null,null,null,"Hoodwink Island","67°1'S","66°52'W","Peninsula"]
["Martin Islands","65°37'S","65°22'W","Peninsula",null,null,null,null,null,null,null,null,null,null,null,"Hook Island","65°38'S","65°10'W","Peninsula"]
["Matthew Island","60°44'S","45°6'W","Peninsula",null,null,null,null,null,null,null,null,null,null,null,"Hope Bay","63°23'S","57°0'W","Peninsula"]
["Mawson Station","67°36'15\"S","62°52'14\"E","Continent",null,null,null,null,null,null,null,null,null,null,null,"Horseshoe Island","67°51'S","67°12'W","Peninsula"]
["Maxwell Bay, King George Island","62°15'S","58°51'W","Peninsula",null,null,null,null,null,null,null,null,null,null,null,"Hovgaard Island","65°8'S","64°8'W","Peninsula"]
["McFarlane Strait","62°32'S","59°55'W","Peninsula",null,null,null,null,null,null,null,null,null,null,null,"Huemul Island","63°40'S","60°50'W","Peninsula"]
["McMurdo Sound","77°31'36\"S","165°1'E","Continent",null,null,null,null,null,null,null,null,null,null,null,"Hughes Bay","64°13'S","61°20'W","Peninsula"]
["McMurdo Station","77°50'47\"S","166°40'6\"E","Continent",null,null,null,null,null,null,null,null,null,null,null,"Hummock Island","51°38'28\"S","60°26'30\"E","Falkland Islands"]
["Melchior Base","64°20'S","62°59'W","Peninsula",null,null,null,null,null,null,null,null,null,null,null,"Humps Island","63°59'S","57°25'W","Peninsula"]
["Melchior Islands","64°19'S","62°57'W","Peninsula",null,null,null,null,null,null,null,null,null,null,null,"Hunt Island","64°20'13\"S","62°8'19\"W","Peninsula"]
["Mendel/Czech Station","63°48'16\"S","57°53'8\"W","Peninsula",null,null,null,null,null,null,null,null,null,null,null,"Husvik - HUS01","54°6'S","36°24'W","South Georgia"]
["Mertz Glacier Tongue","67°10'S","145°30'E","Continent",null,null,null,null,null,null,null,null,null,null,null,"Hut Point","77°50'45\"S","166°38'16\"E","Continent"]
["Metchnikoff Point","64°3'S","62°34'W","Peninsula",null,null,null,null,null,null,null,null,null,null,null,"Hydrurga Rocks","64°8'S","61°37'W","Peninsula"]
["Miers Bluff","62°43'S","60°27'W","Peninsula",null,null,null,null,null,null,null,null,null,null,null,"IAATO Islands","65°45'S","65°24'43\"W","Peninsula"]
["Mikkelsen Harbor (D'Hainaut)","63°54'S","60°47'W","Peninsula",null,null,null,null,null,null,null,null,null,null,null,"Ice Fjord","54°3'S","37°40'58\"E","South Georgia"]
["Mirny Station","66°33'6\"S","93°0'51\"E","Continent",null,null,null,null,null,null,null,null,null,null,null,"Iceberg Point","64°38'S","63°6'W","Peninsula"]
["Mist Rocks","66°48'S","66°37'W","Peninsula",null,null,null,null,null,null,null,null,null,null,null,"Inexpressible Island","74°54'S","163°39'E","Continent"]
["Mitchell Cove, Robert Island","62°23'17\"S","59°37'46\"W","Peninsula",null,null,null,null,null,null,null,null,null,null,null,"Intercurrence Island","63°55'S","61°24'W","Peninsula"]
["Molina Point","64°48'S","62°51'W","Peninsula",null,null,null,null,null,null,null,null,null,null,null,"Iris Bay","54°42'S","35°55'58\"E","South Georgia"]
["Monroe Island","60°36'S","46°3'W","Peninsula",null,null,null,null,null,null,null,null,null,null,null,"Ironside Glacier","72°8'S","169°40'E","Continent"]
["Moot Point","65°12'S","64°6'W","Peninsula",null,null,null,null,null,null,null,null,null,null,null,"Isla Pinguino","64°8'S","60°59'W","Peninsula"]
["Moreno Rock","64°5'S","61°18'W","Peninsula",null,null,null,null,null,null,null,null,null,null,null,"Jabet Peak","64°49'S","63°28'W","Peninsula"]
["Moubray Bay","72°11'S","170°15'E","Continent",null,null,null,null,null,null,null,null,null,null,null,"Jagged Island","61°54'S","58°29'W","Peninsula"]
["Mount Demaria","65°17'S","64°6'W","Peninsula",null,null,null,null,null,null,null,null,null,null,null,"James Ross Island","64°10'S","57°45'W","Peninsula"]
["Mount Discovery","78°22'S","165°1'E","Continent",null,null,null,null,null,null,null,null,null,null,null,"Jane Point","54°34'1\"S","35°57'E","South Georgia"]
["Mount Double","64°41'S","165°1'E","Continent",null,null,null,null,null,null,null,null,null,null,null,"Jang Bogo Station","74°36'55\"S","164°12'2\"E","Continent"]
["Mount Erebus Summit","77°31'46\"S","167°9'11\"E","Continent",null,null,null,null,null,null,null,null,null,null,null,"Jason Harbour - JAS01","54°6'35\"S","36°18'W","South Georgia"]
["Mount Rio Branco","65°25'S","64°0'W","Peninsula",null,null,null,null,null,null,null,null,null,null,null,"Jenny Island","67°44'S","68°24'W","Peninsula"]
["Mount Shackleton","65°13'S","63°56'W","Peninsula",null,null,null,null,null,null,null,null,null,null,null,"John Beach","62°39'S","60°46'W","Peninsula"]
["Mount Victoria","64°17'24\"S","62°19'47\"W","Peninsula",null,null,null,null,null,null,null,null,null,null,null,"Jonassen Island","63°33'S","56°40'W","Peninsula"]
["Mount Williams","66°48'S","50°51'W","Peninsula",null,null,null,null,null,null,null,null,null,null,null,"Jossac Bight","54°16'1\"S","37°10'58\"E","South Georgia"]
["Moureaux Islands","65°5'S","63°8'W","Peninsula",null,null,null,null,null,null,null,null,null,null,null,"Jougla Point","64°50'S","63°30'W","Peninsula"]
["Muckle Bluff","61°9'S","54°52'W","Peninsula",null,null,null,null,null,null,null,null,null,null,null,"Juan Carlos Primero Station","62°39'S","60°23'W","Peninsula"]
["Mudge Passage","66°2'S","65°50'W","Peninsula",null,null,null,null,null,null,null,null,null,null,null,"Jumbo Cove","54°10'12\"S","36°33'E","South Georgia"]
["Murray Harbour","64°21'S","61°34'58\"W","Peninsula",null,null,null,null,null,null,null,null,null,null,null,"Karelin Islands","65°35'S","65°35'W","Peninsula"]
["Mutton Cove","66°0'S","65°39'W","Peninsula",null,null,null,null,null,null,null,null,null,null,null,"Kayak Bay","64°18'S","62°13'W","Peninsula"]
["Nansen Island","64°35'S","62°6'W","Peninsula",null,null,null,null,null,null,null,null,null,null,null,"Keith Glacier","66°18'57\"S","65°36'57\"W","Peninsula"]
["Neko Harbor","64°50'S","62°33'W","Peninsula",null,null,null,null,null,null,null,null,null,null,null,"Kidney Cove","51°38'S","57°46'W","Falkland Islands"]
["Nelson Island","62°18'S","59°3'W","Peninsula",null,null,null,null,null,null,null,null,null,null,null,"King Edward Point","54°17'S","36°30'W","South Georgia"]
["Neny Bay","68°12'N","68°58'E","Peninsula",null,null,null,null,null,null,null,null,null,null,null,"King George Bay","62°6'S","58°5'W","Peninsula"]
["Neny Fjord","68°16'S","66°50'E","Peninsula",null,null,null,null,null,null,null,null,null,null,null,"King Haakon Bay","54°10'S","37°20'W","South Georgia"]
["Neptunes Bellows","63°0'S","60°34'W","Peninsula",null,null,null,null,null,null,null,null,null,null,null,"King Sejong Station","62°13'23\"S","58°47'21\"W","Peninsula"]
["Neumayer Channel","64°47'S","63°30'W","Peninsula",null,null,null,null,null,null,null,null,null,null,null,"Kinnes Cove/Madder Cliffs","63°18'57\"S","56°27'57\"W","Peninsula"]
["Neumayer Station","70°38'S","8°15'47\"W","Peninsula",null,null,null,null,null,null,null,null,null,null,null,"Knobble Head","63°5'24\"S","56°19'12\"W","Peninsula"]
["Neyt Point","63°58'S","61°48'W","Peninsula",null,null,null,null,null,null,null,null,null,null,null,"Konig Glacier Cumberland West Bay","54°8'3\"S","36°28'18\"E","South Georgia"]
["North Point","60°41'S","45°38'W","Peninsula",null,null,null,null,null,null,null,null,null,null,null,"Lagarrigue Cove","64°39'S","62°34'W","Peninsula"]
["Novo Airbase","70°49'34\"S","11°38'22\"E","Continent",null,null,null,null,null,null,null,null,null,null,null,"Lagoon Island","67°35'S","68°16'W","Peninsula"]
["Novolazarevskaya Station","70°46'36\"S","11°49'26\"E","Continent",null,null,null,null,null,null,null,null,null,null,null,"Laktionov Island","65°46'S","65°46'W","Peninsula"]
["O'Higgins Station","63°19'14\"S","57°54'1\"W","Peninsula",null,null,null,null,null,null,null,null,null,null,null,"Lallemand Fjord","67°5'S","66°45'W","Peninsula"]
["Observation Hill","77°51'S","166°40'E","Continent",null,null,null,null,null,null,null,null,null,null,null,"Lampe Cove","66°32'14\"S","65°35'W","Peninsula"]
["Ohridski Station, Bulgarian Station","62°38'27\"S","60°21'51\"W","Peninsula",null,null,null,null,null,null,null,null,null,null,null,"Larrouy Island","65°52'S","65°15'W","Peninsula"]
["Orcadas Station","60°44'18\"S","44°44'16\"W","Peninsula",null,null,null,null,null,null,null,null,null,null,null,"Larsen Harbour - LAR01","58°30'S","36°0'W","South Georgia"]
["Orford Cliff","66°55'S","66°29'W","Peninsula",null,null,null,null,null,null,null,null,null,null,null,"Laurie Island","60°44'S","44°37'W","Peninsula"]
["Orne Harbor","64°37'S","62°32'W","Peninsula",null,null,null,null,null,null,null,null,null,null,null,"Lautaro Island","64°49'S","63°6'W","Peninsula"]
["Orne Islands","64°40'S","62°40'W","Peninsula",null,null,null,null,null,null,null,null,null,null,null,"Lavoisier Island","66°12'S","66°44'W","Peninsula"]
["Palaver Point","64°9'S","61°45'W","Peninsula",null,null,null,null,null,null,null,null,null,null,null,"Law-Racoviță Station","69°23'18\"S","76°22'46\"E","Continent"]
["Palmer Station","64°46'S","64°5'W","Peninsula",null,null,null,null,null,null,null,null,null,null,null,"Lefèvre-Utile Point","64°50'S","63°31'W","Peninsula"]
["Paradise Harbor","64°51'S","62°54'W","Peninsula",null,null,null,null,null,null,null,null,null,null,null,"Leith Cove","64°52'S","62°50'W","Peninsula"]
["Pastorizo Bay","63°54'S","57°17'W","Peninsula",null,null,null,null,null,null,null,null,null,null,null,"Leith Harbour - LEI02","54°4'47\"S","36°24'35\"W","South Georgia"]
["Patagonia Bay","64°27'S","63°12'W","Peninsula",null,null,null,null,null,null,null,null,null,null,null,"Leith Harbour Walk - LEI01","54°4'47\"S","36°24'35\"W","South Georgia"]
["Patella Island","63°4'47\"S","55°17'23\"W","Peninsula",null,null,null,null,null,null,null,null,null,null,null,"Lemaire Channel","65°4'S","63°57'W","Peninsula"]
["Patriot Hills","80°20'S","81°25'W","Continent",null,null,null,null,null,null,null,null,null,null,null,"Lemaire Island","64°49'S","62°57'W","Peninsula"]
["Paulet Island","63°35'S","55°47'W","Peninsula",null,null,null,null,null,null,null,null,null,null,null,"Leningradskaya Station","69°30'S","159°23'E","Continent"]
["Peltier Channel","64°52'S","63°32'W","Peninsula",null,null,null,null,null,null,null,null,null,null,null,"Liege Island","64°2'S","61°55'W","Peninsula"]
["Pendulum Cove","62°56'S","60°36'W","Peninsula",null,null,null,null,null,null,null,null,null,null,null,"Lindblad Cove","63°51'S","59°27'W","Peninsula"]
["Penguin Island","62°6'S","57°54'W","Peninsula",null,null,null,null,null,null,null,null,null,null,null,"Lion Sound","64°40'S","63°9'W","Peninsula"]
["Penguin Point","60°31'S","45°56'W","Peninsula",null,null,null,null,null,null,null,null,null,null,null,"Lippmann Islands","65°30'S","64°26'W","Peninsula"]
["Penola Strait","65°10'S","64°7'W","Peninsula",null,null,null,null,null,null,null,null,null,null,null,"Lister Cove","62°30'S","60°5'W","Peninsula"]
["Peon Peak","65°12'S","64°5'W","Peninsula",null,null,null,null,null,null,null,null,null,null,null,"Little Bense Island","51°29'5\"S","60°30'38\"W","Falkland Islands"]
["Peter Glacier","66°37'30\"S","66°15'W","Peninsula",null,null,null,null,null,null,null,null,null,null,null,"Little Moltke Harbour - ROY03","54°32'S","36°0'W","South Georgia"]
["Peter I Island","68°47'S","90°35'W","Peninsula",null,null,null,null,null,null,null,null,null,null,null,"Livingston Island","62°36'S","60°30'W","Peninsula"]
["Petermann Island","65°10'S","64°10'W","Peninsula",null,null,null,null,null,null,null,null,null,null,null,"Lockley Point","64°47'S","63°23'W","Peninsula"]
["Petrel Cove","63°28'S","56°13'W","Peninsula",null,null,null,null,null,null,null,null,null,null,null,"Lord Bank","67°50'S","69°15'W","Peninsula"]
["Phantom Coast","68°51'S","90°34'47\"W","Continent",null,null,null,null,null,null,null,null,null,null,null,"Louise Island","64°36'S","62°23'W","Peninsula"]
["Philippa Glacier","66°39'57\"S","66°4'58\"W","Peninsula",null,null,null,null,null,null,null,null,null,null,null,"Lystad Bay","67°50'S","67°17'W","Peninsula"]
["Pitt Islands","65°26'S","65°30'W","Peninsula",null,null,null,null,null,null,null,null,null,null,null,"Macaroni Point","62°54'S","60°32'W","Peninsula"]
["Pitt Point","63°51'S","58°22'W","Peninsula",null,null,null,null,null,null,null,null,null,null,null,"Mackellar Islands","66°58'S","142°40'E","Continent"]
["Plata Passage","64°40'S","62°1'W","Peninsula",null,null,null,null,null,null,null,null,null,null,null,"Maiviken - MAI01","54°14'S","36°30'W","South Georgia"]
["Platter Island","63°26'S","54°40'W","Peninsula",null,null,null,null,null,null,null,null,null,null,null,"Marambio Station","64°14'38\"S","56°39'35\"E","Peninsula"]
["Pleneau Island","65°6'S","64°4'W","Peninsula",null,null,null,null,null,null,null,null,null,null,null,"Marguerite Bay","68°30'S","68°30'W","Peninsula"]
["Point Martin","60°47'S","44°41'W","Peninsula",null,null,null,null,null,null,null,null,null,null,null,"Mario Zucchelli Station","74°41'S","164°7'E","Continent"]
["Point Wild","61°6'S","54°52'W","Peninsula",null,null,null,null,null,null,null,null,null,null,null,"Martel Inlet","62°5'S","58°22'W","Peninsula"]
["Poncet Point","66°36'S","65°45'57\"W","Peninsula",null,null,null,null,null,null,null,null,null,null,null,"Martha Cove","63°56'S","57°50'W","Peninsula"]
["Port Charcot","65°4'S","64°0'W","Peninsula",null,null,null,null,null,null,null,null,null,null,null,"Martin Islands","65°37'S","65°22'W","Peninsula"]
["Port Foster","62°57'S","60°39'W","Peninsula",null,null,null,null,null,null,null,null,null,null,null,"Matthew Island","60°44'S","45°6'W","Peninsula"]
["Portal Point","64°30'S","61°46'W","Peninsula",null,null,null,null,null,null,null,null,null,null,null,"Mawson Station","67°36'15\"S","62°52'14\"E","Continent"]
["Possession Island","71°52'S","171°12'E","Continent",null,null,null,null,null,null,null,null,null,null,null,"Maxwell Bay, King George Island","62°15'S","58°51'W","Peninsula"]
["Potter Cove","62°14'S","58°42'W","Peninsula",null,null,null,null,null,null,null,null,null,null,null,"McDonald Bay","54°0'S","37°28'58\"E","South Georgia"]
["Pourquoi Pas Island","67°41'S","67°28'W","Peninsula",null,null,null,null,null,null,null,null,null,null,null,"McFarlane Strait","62°32'S","59°55'W","Peninsula"]
["Powell Island","60°43'1\"S","45°1'58\"W","Peninsula",null,null,null,null,null,null,null,null,null,null,null,"McMurdo Sound","77°31'36\"S","165°1'E","Continent"]
["President Head","62°44'S","61°12'W","Peninsula",null,null,null,null,null,null,null,null,null,null,null,"McMurdo Station","77°50'47\"S","166°40'6\"E","Continent"]
["Primero de Mayo Bay","62°58'S","60°42'W","Peninsula",null,null,null,null,null,null,null,null,null,null,null,"Melchior Base","64°20'S","62°59'W","Peninsula"]
["Prospect Point","66°1'S","65°21'W","Peninsula",null,null,null,null,null,null,null,null,null,null,null,"Melchior Islands","64°19'S","62°57'W","Peninsula"]
["Pursuit Point","64°54'43\"S","63°25'51\"W","Peninsula",null,null,null,null,null,null,null,null,null,null,null,"Mendel/Czech Station","63°48'16\"S","57°53'8\"W","Peninsula"]
["Quinton Point","64°19'1\"S","63°40'1\"W","Peninsula",null,null,null,null,null,null,null,null,null,null,null,"Mertz Glacier Tongue","67°10'S","145°30'E","Continent"]
["Rabot Island","65°54'S","65°58'48\"W","Peninsula",null,null,null,null,null,null,null,null,null,null,null,"Metchnikoff Point","64°3'S","62°34'W","Peninsula"]
["Recess Cove","64°30'S","61°32'W","Peninsula",null,null,null,null,null,null,null,null,null,null,null,"Miers Bluff","62°43'S","60°27'W","Peninsula"]
["Red Rock Ridge","68°18'S","67°8'W","Peninsula",null,null,null,null,null,null,null,null,null,null,null,"Mikkelsen Harbor (D'Hainaut)","63°54'S","60°47'W","Peninsula"]
["Refuge Island","68°21'S","67°10'1\"W","Peninsula",null,null,null,null,null,null,null,null,null,null,null,"Miles Bay","54°3'57\"S","37°39'E","South Georgia"]
["Refugio Gabriel de Castilla","62°59'S","60°41'W","Peninsula",null,null,null,null,null,null,null,null,null,null,null,"Mirny Station","66°33'6\"S","93°0'51\"E","Continent"]
["Renaud Island","65°40'S","66°0'W","Peninsula",null,null,null,null,null,null,null,null,null,null,null,"Mist Rocks","66°48'S","66°37'W","Peninsula"]
["Riiser-Larsen Ice Shelf","72°40'S","16°0'W","Continent",null,null,null,null,null,null,null,null,null,null,null,"Mitchell Cove, Robert Island","62°23'17\"S","59°37'46\"W","Peninsula"]
["Robert Point","62°28'S","59°23'W","Peninsula",null,null,null,null,null,null,null,null,null,null,null,"Molina Point","64°48'S","62°51'W","Peninsula"]
["Robertson Island","65°10'S","59°37'W","Peninsula",null,null,null,null,null,null,null,null,null,null,null,"Moltke Harbour - ROY02","54°31'S","36°4'W","South Georgia"]
["Roget Rocks","64°20'S","61°10'W","Peninsula",null,null,null,null,null,null,null,null,null,null,null,"Monroe Island","60°36'S","46°3'W","Peninsula"]
["Roman Four Promontory","68°13'S","66°56'W","Peninsula",null,null,null,null,null,null,null,null,null,null,null,"Montague Island","58°25'S","26°20'W","South Georgia"]
["Ronge Island Ketley Point","64°42'S","62°46'12\"W","Peninsula",null,null,null,null,null,null,null,null,null,null,null,"Moot Point","65°12'S","64°6'W","Peninsula"]
["Ronge Island/Georges Point","64°43'S","62°41'W","Peninsula",null,null,null,null,null,null,null,null,null,null,null,"Moreno Rock","64°5'S","61°18'W","Peninsula"]
["Ronge Island/Kerr Point","64°42'S","62°37'58\"W","Peninsula",null,null,null,null,null,null,null,null,null,null,null,"Morsa Bay","54°3'S","37°43'58\"E","South Georgia"]
["Rosamel Island","63°34'S","56°17'W","Peninsula",null,null,null,null,null,null,null,null,null,null,null,"Moubray Bay","72°11'S","170°15'E","Continent"]
["Rosenthal Islands","64°36'S","64°18'W","Peninsula",null,null,null,null,null,null,null,null,null,null,null,"Mount Demaria","65°17'S","64°6'W","Peninsula"]
["Ross Ice Shelf","81°30'S","175°0'W","Continent",null,null,null,null,null,null,null,null,null,null,null,"Mount Discovery","78°22'S","165°1'E","Continent"]
["Ross Sea","75°0'S","175°0'W","Continent",null,null,null,null,null,null,null,null,null,null,null,"Mount Double","64°41'S","165°1'E","Continent"]
["Rossa Point","65°57'S","65°14'W","Peninsula",null,null,null,null,null,null,null,null,null,null,null,"Mount Erebus Summit","77°31'46\"S","167°9'11\"E","Continent"]
["Rothera Station","67°34'9\"S","68°7'12\"W","Peninsula",null,null,null,null,null,null,null,null,null,null,null,"Mount Rio Branco","65°25'S","64°0'W","Peninsula"]
["Rum Cove","64°6'S","58°25'W","Peninsula",null,null,null,null,null,null,null,null,null,null,null,"Mount Shackleton","65°13'S","63°56'W","Peninsula"]
["Rush Glacier","64°23'S","62°37'W","Peninsula",null,null,null,null,null,null,null,null,null,null,null,"Mount Victoria","64°17'24\"S","62°19'47\"W","Peninsula"]
["Sable Pinnacles","64°40'S","62°34'W","Peninsula",null,null,null,null,null,null,null,null,null,null,null,"Mount Williams","66°48'S","50°51'W","Peninsula"]
["Sabrina Island","66°57'S","163°17'E","Continent",null,null,null,null,null,null,null,null,null,null,null,"Moureaux Islands","65°5'S","63°8'W","Peninsula"]
["Sabrina Island, Balleny Islands","66°57'S","163°17'E","Continent",null,null,null,null,null,null,null,null,null,null,null,"Mouse Cove","54°13'58\"S","37°19'1\"E","South Georgia"]
["Sadler Point","64°42'S","62°4'W","Peninsula",null,null,null,null,null,null,null,null,null,null,null,"Muckle Bluff","61°9'S","54°52'W","Peninsula"]
["Sally Rocks","62°42'S","60°26'W","Peninsula",null,null,null,null,null,null,null,null,null,null,null,"Mudge Passage","66°2'S","65°50'W","Peninsula"]
["Salvesen Cove","64°24'S","61°20'W","Peninsula",null,null,null,null,null,null,null,null,null,null,null,"Muller Point","54°40'58\"S","35°55'1\"E","South Georgia"]
["San Martin Station","68°7'45\"S","67°6'11\"W","Peninsula",null,null,null,null,null,null,null,null,null,null,null,"Murray Harbour","64°21'S","61°34'58\"W","Peninsula"]
["Sandefjord Bay","60°37'S","46°3'W","Peninsula",null,null,null,null,null,null,null,null,null,null,null,"Mutton Cove","66°0'S","65°39'W","Peninsula"]
["Santos Peak","64°25'S","61°32'W","Peninsula",null,null,null,null,null,null,null,null,null,null,null,"Nansen Island","64°35'S","62°6'W","Peninsula"]
["Schoeling Glacier","63°54'S","59°21'W","Peninsula",null,null,null,null,null,null,null,null,null,null,null,"Narval Bay","54°2'S","37°40'58\"E","South Georgia"]
["Scholander Island","66°22'S","66°58'W","Peninsula",null,null,null,null,null,null,null,null,null,null,null,"Neko Harbor","64°50'S","62°33'W","Peninsula"]
["Schollaert Channel","64°18'S","62°30'W","Peninsula",null,null,null,null,null,null,null,null,null,null,null,"Nelson Island","62°18'S","59°3'W","Peninsula"]
["Scott Base","77°50'57\"S","166°46'1\"E","Continent",null,null,null,null,null,null,null,null,null,null,null,"Neny Bay","68°12'N","68°58'E","Peninsula"]
["Scott Island","67°24'S","179°55'W","Continent",null,null,null,null,null,null,null,null,null,null,null,"Neny Fjord","68°16'S","66°50'E","Peninsula"]
["Screen Islands","65°1'S","63°43'W","Peninsula",null,null,null,null,null,null,null,null,null,null,null,"Neptunes Bellows","63°0'S","60°34'W","Peninsula"]
["Seal Islands","60°34'47\"S","55°14'24\"W","Peninsula",null,null,null,null,null,null,null,null,null,null,null,"Neumayer Channel","64°47'S","63°30'W","Peninsula"]
["Security Bay","64°51'S","63°37'W","Peninsula",null,null,null,null,null,null,null,null,null,null,null,"Neumayer Station","70°38'S","8°15'47\"W","Peninsula"]
["Seymour Island","64°17'S","56°45'W","Peninsula",null,null,null,null,null,null,null,null,null,null,null,"New Island - North Harbour","51°41'S","61°15'W","Falkland Islands"]
["Shackleton Ice Shelf","66°0'S","100°0'E","Continent",null,null,null,null,null,null,null,null,null,null,null,"New Island - Ship Harbour","51°41'S","61°16'W","Falkland Islands"]
["Sheldon Glacier","67°30'S","69°23'W","Peninsula",null,null,null,null,null,null,null,null,null,null,null,"New Island - South Harbour","51°44'S","61°18'W","Falkland Islands"]
["Shepard Island","74°25'S","132°30'W","Continent",null,null,null,null,null,null,null,null,null,null,null,"New Island Settlement","51°41'S","61°15'W","Falkland Islands"]
["Shingle Cove","60°39'S","45°34'W","Peninsula",null,null,null,null,null,null,null,null,null,null,null,"Neyt Point","63°58'S","61°48'W","Peninsula"]
["Shirley Island","66°17'S","110°30'E","Continent",null,null,null,null,null,null,null,null,null,null,null,"Nilse Hullet","54°9'57\"S","37°34'58\"E","South Georgia"]
["Signy Island Station","66°55'S","67°1'W","Peninsula",null,null,null,null,null,null,null,null,null,null,null,"Nordenskjold Glacier - NOR01","54°13'11\"S","36°12'W","South Georgia"]
["Sikorsky Glacier","64°12'S","60°53'W","Peninsula",null,null,null,null,null,null,null,null,null,null,null,"North Point","60°41'S","45°38'W","Peninsula"]
["Siple Island","73°39'S","125°0'W","Continent",null,null,null,null,null,null,null,null,null,null,null,"Novo Airbase","70°49'34\"S","11°38'22\"E","Continent"]
["Skog Bay","66°52'40\"S","66°30'36\"W","Peninsula",null,null,null,null,null,null,null,null,null,null,null,"Novolazarevskaya Station","70°46'36\"S","11°49'26\"E","Continent"]
["Skontorp Cove","64°54'S","62°52'W","Peninsula",null,null,null,null,null,null,null,null,null,null,null,"O'Higgins Station","63°19'14\"S","57°54'1\"W","Peninsula"]
["Skottsberg Point","63°55'12\"S","60°49'12\"W","Peninsula",null,null,null,null,null,null,null,null,null,null,null,"Observation Hill","77°51'S","166°40'E","Continent"]
["Skua Island","65°15'S","64°16'W","Peninsula",null,null,null,null,null,null,null,null,null,null,null,"Ocean Harbour - OCE01","54°20'S","36°16'W","South Georgia"]
["Slumkey Island","65°30'S","65°28'1\"W","Peninsula",null,null,null,null,null,null,null,null,null,null,null,"Ocean Harbour Walk - OCE02","54°20'S","36°16'W","South Georgia"]
["Small Island","64°0'S","61°27'W","Peninsula",null,null,null,null,null,null,null,null,null,null,null,"Ohridski Station, Bulgarian Station","62°38'27\"S","60°21'51\"W","Peninsula"]
["Smiggers Island","65°27'S","65°19'58\"W","Peninsula",null,null,null,null,null,null,null,null,null,null,null,"Olsen Valley Walk - HUS02","54°6'S","36°24'W","South Georgia"]
["Snow Hill Island - Emperor Penguin Colony","64°30'S","57°26'W","Peninsula",null,null,null,null,null,null,null,null,null,null,null,"Orcadas Station","60°44'18\"S","44°44'16\"W","Peninsula"]
["Snow Hill Island - Nordenskjold's Hut","64°28'S","57°12'W","Peninsula",null,null,null,null,null,null,null,null,null,null,null,"Orford Cliff","66°55'S","66°29'W","Peninsula"]
["Snow Hill Island- Ice Edge Landing","64°28'S","57°10'58\"W","Peninsula",null,null,null,null,null,null,null,null,null,null,null,"Orne Harbor","64°37'S","62°32'W","Peninsula"]
["Snow Island","62°47'S","61°23'W","Peninsula",null,null,null,null,null,null,null,null,null,null,null,"Orne Islands","64°40'S","62°40'W","Peninsula"]
["Solvay Mountains","64°25'S","62°32'W","Peninsula",null,null,null,null,null,null,null,null,null,null,null,"Palaver Point","64°9'S","61°45'W","Peninsula"]
["Sophie Rocks","64°39'S","62°33'W","Peninsula",null,null,null,null,null,null,null,null,null,null,null,"Palmer Station","64°46'S","64°5'W","Peninsula"]
["Sorge Island","67°11'S","67°43'W","Peninsula",null,null,null,null,null,null,null,null,null,null,null,"Paradise Harbor","64°51'S","62°54'W","Peninsula"]
["South Bay/Johnsons Dock","62°39'S","60°23'W","Peninsula",null,null,null,null,null,null,null,null,null,null,null,"Pastorizo Bay","63°54'S","57°17'W","Peninsula"]
["South Orkney Islands","60°35'S","45°30'W","Peninsula",null,null,null,null,null,null,null,null,null,null,null,"Patagonia Bay","64°27'S","63°12'W","Peninsula"]
["South Pole","90°0'S","0°0'W","Continent",null,null,null,null,null,null,null,null,null,null,null,"Patella Island","63°4'47\"S","55°17'23\"W","Peninsula"]
["South Shetland Islands","62°0'S","58°0'W","Peninsula",null,null,null,null,null,null,null,null,null,null,null,"Patriot Hills","80°20'S","81°25'W","Continent"]
["Spert Island","63°51'S","60°57'W","Peninsula",null,null,null,null,null,null,null,null,null,null,null,"Paulet Island","63°35'S","55°47'W","Peninsula"]
["Spigot Peak","64°38'S","62°34'W","Peninsula",null,null,null,null,null,null,null,null,null,null,null,"Pebble Island","51°18'11\"S","59°37'45\"W","Falkland Islands"]
["Splettstoesser Glacier","66°13'S","65°30'W","Peninsula",null,null,null,null,null,null,null,null,null,null,null,"Peggotty Bluff - KIN02","54°9'S","37°17'W","South Georgia"]
["Spring Point","64°18'S","61°3'W","Peninsula",null,null,null,null,null,null,null,null,null,null,null,"Peltier Channel","64°52'S","63°32'W","Peninsula"]
["St. Kliment Ohridski Base - Bulgaria","62°23'2\"S","60°13'8\"W","Peninsula",null,null,null,null,null,null,null,null,null,null,null,"Pendulum Cove","62°56'S","60°36'W","Peninsula"]
["Stancomb Wills Rookery","74°5'5\"S","22°57'47\"W","Continent",null,null,null,null,null,null,null,null,null,null,null,"Penguin Island","62°6'S","57°54'W","Peninsula"]
["Stanley Patch","62°59'S","60°38'W","Peninsula",null,null,null,null,null,null,null,null,null,null,null,"Penguin Point","60°31'S","45°56'W","Peninsula"]
["Stanley Shoal","54°26'S","36°11'W","Peninsula",null,null,null,null,null,null,null,null,null,null,null,"Penola Strait","65°10'S","64°7'W","Peninsula"]
["Stefan Ice Piedmont","66°40'S","66°30'W","Peninsula",null,null,null,null,null,null,null,null,null,null,null,"Peon Peak","65°12'S","64°5'W","Peninsula"]
["Steinheil Point","64°51'S","62°41'W","Peninsula",null,null,null,null,null,null,null,null,null,null,null,"Peter Glacier","66°37'30\"S","66°15'W","Peninsula"]
["Sterneck Island","61°0'57\"S","64°11'34\"W","Peninsula",null,null,null,null,null,null,null,null,null,null,null,"Peter I Island","68°47'S","90°35'W","Peninsula"]
["Stonington Island","68°11'S","67°0'W","Peninsula",null,null,null,null,null,null,null,null,null,null,null,"Petermann Island","65°10'S","64°10'W","Peninsula"]
["Stony Point","64°54'47\"S","62°55'59\"W","Peninsula",null,null,null,null,null,null,null,null,null,null,null,"Petrel Cove","63°28'S","56°13'W","Peninsula"]
["Straggle Islands","65°52'26\"S","65°4'24\"W","Peninsula",null,null,null,null,null,null,null,null,null,null,null,"Phantom Coast","68°51'S","90°34'47\"W","Continent"]
["Suárez Glacier","64°56'S","62°56'W","Peninsula",null,null,null,null,null,null,null,null,null,null,null,"Philippa Glacier","66°39'57\"S","66°4'58\"W","Peninsula"]
["Tadpole Island","65°56'S","65°19'W","Peninsula",null,null,null,null,null,null,null,null,null,null,null,"Pitt Islands","65°26'S","65°30'W","Peninsula"]
["Tay Head","63°21'S","55°34'W","Peninsula",null,null,null,null,null,null,null,null,null,null,null,"Pitt Point","63°51'S","58°22'W","Peninsula"]
["Taylor Valley/Canada Glacier","77°39'6\"S","162°56'29\"E","Continent",null,null,null,null,null,null,null,null,null,null,null,"Plata Passage","64°40'S","62°1'W","Peninsula"]
["Telefon Bay","62°56'S","60°40'W","Peninsula",null,null,null,null,null,null,null,null,null,null,null,"Platter Island","63°26'S","54°40'W","Peninsula"]
["Terra Firma Islands","68°42'S","67°32'W","Peninsula",null,null,null,null,null,null,null,null,null,null,null,"Pleneau Island","65°6'S","64°4'W","Peninsula"]
["Terra Nova Bay","74°50'S","164°30'E","Continent",null,null,null,null,null,null,null,null,null,null,null,"Point Martin","60°47'S","44°41'W","Peninsula"]
["Terrada Point","64°23'S","62°14'W","Peninsula",null,null,null,null,null,null,null,null,null,null,null,"Point Wild","61°6'S","54°52'W","Peninsula"]
["Tetra Rocks","74°41'S","164°7'E","Continent",null,null,null,null,null,null,null,null,null,null,null,"Poncet Point","66°36'S","65°45'57\"W","Peninsula"]
["Tetrad Islands","63°55'S","60°44'W","Peninsula",null,null,null,null,null,null,null,null,null,null,null,"Port Charcot","65°4'S","64°0'W","Peninsula"]
["The Gullet","67°10'S","67°38'W","Peninsula",null,null,null,null,null,null,null,null,null,null,null,"Port Egmont","51°21'13\"S","60°3'50\"W","Falkland Islands"]
["The Naze","63°57'S","57°32'W","Peninsula",null,null,null,null,null,null,null,null,null,null,null,"Port Foster","62°57'S","60°39'W","Peninsula"]
["The Snares","48°34'S","179°55'E","Continent",null,null,null,null,null,null,null,null,null,null,null,"Port Howard","51°27'S","59°31'W","Falkland Islands"]
["The Triplets","62°24'S","59°41'W","Peninsula",null,null,null,null,null,null,null,null,null,null,null,"Portal Point","64°30'S","61°46'W","Peninsula"]
["The Waifs","64°33'S","62°42'W","Peninsula",null,null,null,null,null,null,null,null,null,null,null,"Possession Bay Brighton Beach - POS01","54°6'S","37°7'W","South Georgia"]
["Thurston Island","72°6'S","99°0'W","Continent",null,null,null,null,null,null,null,null,null,null,null,"Possession Bay Brown Point - POS02","54°6'S","37°7'W","South Georgia"]
["Torgersen Island","64°46'S","64°5'W","Peninsula",null,null,null,null,null,null,null,null,null,null,null,"Possession Island","71°52'S","171°12'E","Continent"]
["Tourmaline Plateau","74°10'S","163°27'E","Continent",null,null,null,null,null,null,null,null,null,null,null,"Potter Cove","62°14'S","58°42'W","Peninsula"]
["Tournachon Peak","64°19'S","61°5'W","Peninsula",null,null,null,null,null,null,null,null,null,null,null,"Pourquoi Pas Island","67°41'S","67°28'W","Peninsula"]
["Triangle Point","62°32'S","59°51'W","Peninsula",null,null,null,null,null,null,null,null,null,null,null,"Powell Island","60°43'1\"S","45°1'58\"W","Peninsula"]
["Trinity Island","54°0'S","38°10'W","Peninsula",null,null,null,null,null,null,null,null,null,null,null,"President Head","62°44'S","61°12'W","Peninsula"]
["Trinity Peninsula","63°37'S","58°20'W","Peninsula",null,null,null,null,null,null,null,null,null,null,null,"Primero de Mayo Bay","62°58'S","60°42'W","Peninsula"]
["Troll Airfield","71°57'25\"S","2°27'14\"E","Continent",null,null,null,null,null,null,null,null,null,null,null,"Prince Olav Harbour - POH01","54°4'S","37°9'W","South Georgia"]
["Truant Island","64°55'10\"S","63°24'18\"W","Peninsula",null,null,null,null,null,null,null,null,null,null,null,"Prion Island - PRI01","54°1'S","37°15'W","South Georgia"]
["Turret Point","62°5'S","57°55'W","Peninsula",null,null,null,null,null,null,null,null,null,null,null,"Prospect Point","66°1'S","65°21'W","Peninsula"]
["Two Hummock Island","64°8'S","61°42'W","Peninsula",null,null,null,null,null,null,null,null,null,null,null,"Pursuit Point","64°54'43\"S","63°25'51\"W","Peninsula"]
["Unger Island","70°41'S","166°55'E","Continent",null,null,null,null,null,null,null,null,null,null,null,"Quinton Point","64°19'1\"S","63°40'1\"W","Peninsula"]
["Union Glacier","79°45'S","82°30'W","Continent",null,null,null,null,null,null,null,null,null,null,null,"Rabot Island","65°54'S","65°58'48\"W","Peninsula"]
["Unnamed Emperor Rookery","66°33'S","92°58'E","Continent",null,null,null,null,null,null,null,null,null,null,null,"Recess Cove","64°30'S","61°32'W","Peninsula"]
["Uruguay Island","65°14'S","64°14'W","Peninsula",null,null,null,null,null,null,null,null,null,null,null,"Red Rock Ridge","68°18'S","67°8'W","Peninsula"]
["Useful Island","64°43'S","62°52'W","Peninsula",null,null,null,null,null,null,null,null,null,null,null,"Refuge Island","68°21'S","67°10'1\"W","Peninsula"]
["Valdivia Point","64°21'S","61°22'48\"W","Peninsula",null,null,null,null,null,null,null,null,null,null,null,"Refugio Gabriel de Castilla","62°59'S","60°41'W","Peninsula"]
["Vedel Islands","65°7'S","64°15'W","Peninsula",null,null,null,null,null,null,null,null,null,null,null,"Renaud Island","65°40'S","66°0'W","Peninsula"]
["Vega Island","63°50'S","57°25'W","Peninsula",null,null,null,null,null,null,null,null,null,null,null,"Right Whale Bay - RIG01","54°0'S","37°41'W","South Georgia"]
["Vernadsky Station","65°14'43\"S","64°15'24\"W","Peninsula",null,null,null,null,null,null,null,null,null,null,null,"Riiser-Larsen Ice Shelf","72°40'S","16°0'W","Continent"]
["Victor Hugo Island","64°57'S","65°47'W","Peninsula",null,null,null,null,null,null,null,null,null,null,null,"Robert Point","62°28'S","59°23'W","Peninsula"]
["Vieugue Island","65°40'S","65°13'W","Peninsula",null,null,null,null,null,null,null,null,null,null,null,"Robertson Island","65°10'S","59°37'W","Peninsula"]
["View Point","63°33'S","57°22'W","Peninsula",null,null,null,null,null,null,null,null,null,null,null,"Roget Rocks","64°20'S","61°10'W","Peninsula"]
["Vortex Island","63°44'S","57°38'W","Peninsula",null,null,null,null,null,null,null,null,null,null,null,"Rogged Bay","54°52'S","36°7'4\"W","South Georgia"]
["Waddington Bay","65°16'S","64°5'W","Peninsula",null,null,null,null,null,null,null,null,null,null,null,"Roman Four Promontory","68°13'S","66°56'W","Peninsula"]
["Walker Bay (by Hannah Point)","62°38'S","60°42'W","Peninsula",null,null,null,null,null,null,null,null,null,null,null,"Ronge Island Ketley Point","64°42'S","62°46'12\"W","Peninsula"]
["Wandel Peak","65°5'S","64°0'W","Peninsula",null,null,null,null,null,null,null,null,null,null,null,"Ronge Island/Georges Point","64°43'S","62°41'W","Peninsula"]
["Waterboat Point/Gonzalez Videla Station","64°49'S","62°51'W","Peninsula",null,null,null,null,null,null,null,null,null,null,null,"Ronge Island/Kerr Point","64°42'S","62°37'58\"W","Peninsula"]
["Watkins Island","66°22'S","67°6'W","Peninsula",null,null,null,null,null,null,null,null,null,null,null,"Rookery Point Walk - ROO01","54°15'S","36°19'1\"E","South Georgia"]
["Wauwermans Islands","64°55'S","63°53'W","Peninsula",null,null,null,null,null,null,null,null,null,null,null,"Rosamel Island","63°34'S","56°17'W","Peninsula"]
["Webb Island","67°27'S","67°56'W","Peninsula",null,null,null,null,null,null,null,null,null,null,null,"Rosenthal Islands","64°36'S","64°18'W","Peninsula"]
["Weddell Sea","72°0'S","45°0'W","Peninsula",null,null,null,null,null,null,null,null,null,null,null,"Rosita Harbour - ROS01","54°1'S","37°27'W","South Georgia"]
["West Antarctic Ice Sheet","79°28'S","112°4'W","Continent",null,null,null,null,null,null,null,null,null,null,null,"Ross Ice Shelf","81°30'S","175°0'W","Continent"]
["Whalers Bay","62°59'S","60°34'W","Peninsula",null,null,null,null,null,null,null,null,null,null,null,"Ross Sea","75°0'S","175°0'W","Continent"]
["Wiggins Glacier","65°14'S","64°3'W","Peninsula",null,null,null,null,null,null,null,null,null,null,null,"Rossa Point","65°57'S","65°14'W","Peninsula"]
["Wilhelmina Bay","64°38'S","62°10'W","Peninsula",null,null,null,null,null,null,null,null,null,null,null,"Rothera Station","67°34'9\"S","68°7'12\"W","Peninsula"]
["Wilson Piedmont Glacier","77°20'38\"S","163°21'29\"E","Continent",null,null,null,null,null,null,null,null,null,null,null,"Royal Bay Kings - ROY04","54°32'S","36°0'W","South Georgia"]
["Winter Island","65°15'S","64°16'W","Peninsula",null,null,null,null,null,null,null,null,null,null,null,"Royal Bay Koppen Point - ROY01","54°32'S","36°0'W","South Georgia"]
["Wohlschlag Bay","77°22'13\"S","166°25'46\"E","Continent",null,null,null,null,null,null,null,null,null,null,null,"Royal Bay Macaronis - ROY05","54°32'S","36°0'W","South Georgia"]
["Wolfs Fang Runway","70°31'33\"S","8°48'3\"E","Continent",null,null,null,null,null,null,null,null,null,null,null,"Rum Cove","64°6'S","58°25'W","Peninsula"]
["Woolpack Island","65°37'S","65°0'W","Peninsula",null,null,null,null,null,null,null,null,null,null,null,"Rush Glacier","64°23'S","62°37'W","Peninsula"]
["Wordie Hut","65°15'S","64°16'W","Peninsula",null,null,null,null,null,null,null,null,null,null,null,"Sable Pinnacles","64°40'S","62°34'W","Peninsula"]
["Wyatt Earp Islands","68°22'S","78°32'E","Continent",null,null,null,null,null,null,null,null,null,null,null,"Sabrina Island","66°57'S","163°17'E","Continent"]
["Wylie Bay","64°44'S","64°10'W","Peninsula",null,null,null,null,null,null,null,null,null,null,null,"Sabrina Island, Balleny Islands","66°57'S","163°17'E","Continent"]
["Yalour Islands","65°14'S","64°10'W","Peninsula",null,null,null,null,null,null,null,null,null,null,null,"Saddle Island","54°8'24\"S","37°44'56\"E","South Georgia"]
["Yankee Harbor","62°32'S","59°47'W","Peninsula",null,null,null,null,null,null,null,null,null,null,null,"Sadler Point","64°42'S","62°4'W","Peninsula"]
["Yelcho Point","64°50'S","63°35'W","Peninsula",null,null,null,null,null,null,null,null,null,null,null,"Salisbury Plain - SAL01","54°3'S","37°21'W","South Georgia"]
["Young Island","66°25'S","162°24'E","Continent",null,null,null,null,null,null,null,null,null,null,null,"Sally Rocks","62°42'S","60°26'W","Peninsula"]
["Zhongshan Station","69°22'15\"S","76°23'12\"E","Continent",null,null,null,null,null,null,null,null,null,null,null,"Salvesen Cove","64°24'S","61°20'W","Peninsula"]
["Zigzag Island","63°36'S","59°52'W","Peninsula",null,null,null,null,null,null,null,null,null,null,null,"San Martin Station","68°7'45\"S","67°6'11\"W","Peninsula"]
[null,null,null,null,null,null,null,null,null,null,null,null,null,null,null,"Sandebugten Walk - GOD03","54°17'S","36°18'W","South Georgia"]
[null,null,null,null,null,null,null,null,null,null,null,null,null,null,null,"Sandebukten","54°15'S","36°45'W","South Georgia"]
[null,null,null,null,null,null,null,null,null,null,null,null,null,null,null,"Sandefjord Bay","60°37'S","46°3'W","Peninsula"]
[null,null,null,null,null,null,null,null,null,null,null,null,null,null,null,"Santos Peak","64°25'S","61°32'W","Peninsula"]
[null,null,null,null,null,null,null,null,null,null,null,null,null,null,null,"Saunders Island - Neck","51°18'S","60°14'W","Falkland Islands"]
[null,null,null,null,null,null,null,null,null,null,null,null,null,null,null,"Saunders Island - Settlement","51°21'S","60°3'W","Falkland Islands"]
[null,null,null,null,null,null,null,null,null,null,null,null,null,null,null,"Saunders Island - South Sandwich Islands","57°47'S","26°27'W","South Georgia"]
[null,null,null,null,null,null,null,null,null,null,null,null,null,null,null,"Saunders Island - The Rookery","51°11'11\"S","60°3'15\"W","Falkland Islands"]
[null,null,null,null,null,null,null,null,null,null,null,null,null,null,null,"Schlieper Bay","54°2'S","37°30'E","South Georgia"]
[null,null,null,null,null,null,null,null,null,null,null,null,null,null,null,"Schoeling Glacier","63°54'S","59°21'W","Peninsula"]
[null,null,null,null,null,null,null,null,null,null,null,null,null,null,null,"Scholander Island","66°22'S","66°58'W","Peninsula"]
[null,null,null,null,null,null,null,null,null,null,null,null,null,null,null,"Schollaert Channel","64°18'S","62°30'W","Peninsula"]
[null,null,null,null,null,null,null,null,null,null,null,null,null,null,null,"Scott Base","77°50'57\"S","166°46'1\"E","Continent"]
[null,null,null,null,null,null,null,null,null,null,null,null,null,null,null,"Scott Island","67°24'S","179°55'W","Continent"]
[null,null,null,null,null,null,null,null,null,null,null,null,null,null,null,"Screen Islands","65°1'S","63°43'W","Peninsula"]
[null,null,null,null,null,null,null,null,null,null,null,null,null,null,null,"Sea Leopard Fjord","54°4'S","37°15'E","South Georgia"]
[null,null,null,null,null,null,null,null,null,null,null,null,null,null,null,"Sea Lion Island","52°25'S","59°3'W","Falkland Islands"]
[null,null,null,null,null,null,null,null,null,null,null,null,null,null,null,"Seal Islands","60°34'47\"S","55°14'24\"W","Peninsula"]
[null,null,null,null,null,null,null,null,null,null,null,null,null,null,null,"Second Passage - Northern Landing","51°34'S","60°47'W","Falkland Islands"]
[null,null,null,null,null,null,null,null,null,null,null,null,null,null,null,"Security Bay","64°51'S","63°37'W","Peninsula"]
[null,null,null,null,null,null,null,null,null,null,null,null,null,null,null,"Seymour Island","64°17'S","56°45'W","Peninsula"]
[null,null,null,null,null,null,null,null,null,null,null,null,null,null,null,"Shackleton Ice Shelf","66°0'S","100°0'E","Continent"]
[null,null,null,null,null,null,null,null,null,null,null,null,null,null,null,"Shackleton Walk (Fortuna/Stromness) - FOR03","54°8'S","36°47'W","South Georgia"]
[null,null,null,null,null,null,null,null,null,null,null,null,null,null,null,"Shag Rocks","53°33'S","42°2'W","South Georgia"]
[null,null,null,null,null,null,null,null,null,null,null,null,null,null,null,"Sheldon Glacier","67°30'S","69°23'W","Peninsula"]
[null,null,null,null,null,null,null,null,null,null,null,null,null,null,null,"Shepard Island","74°25'S","132°30'W","Continent"]
[null,null,null,null,null,null,null,null,null,null,null,null,null,null,null,"Shingle Cove","60°39'S","45°34'W","Peninsula"]
[null,null,null,null,null,null,null,null,null,null,null,null,null,null,null,"Shirley Island","66°17'S","110°30'E","Continent"]
[null,null,null,null,null,null,null,null,null,null,null,null,null,null,null,"Signy Island Station","66°55'S","67°1'W","Peninsula"]
[null,null,null,null,null,null,null,null,null,null,null,null,null,null,null,"Sikorsky Glacier","64°12'S","60°53'W","Peninsula"]
[null,null,null,null,null,null,null,null,null,null,null,null,null,null,null,"Siple Island","73°39'S","125°0'W","Continent"]
[null,null,null,null,null,null,null,null,null,null,null,null,null,null,null,"Skog Bay","66°52'40\"S","66°30'36\"W","Peninsula"]
[null,null,null,null,null,null,null,null,null,null,null,null,null,null,null,"Skontorp Cove","64°54'S","62°52'W","Peninsula"]
[null,null,null,null,null,null,null,null,null,null,null,null,null,null,null,"Skottsberg Point","63°55'12\"S","60°49'12\"W","Peninsula"]
[null,null,null,null,null,null,null,null,null,null,null,null,null,null,null,"Skua Bay","54°0'S","37°31'E","South Georgia"]
[null,null,null,null,null,null,null,null,null,null,null,null,null,null,null,"Skua Island","65°15'S","64°16'W","Peninsula"]
[null,null,null,null,null,null,null,null,null,null,null,null,null,null,null,"Slumkey Island","65°30'S","65°28'1\"W","Peninsula"]
[null,null,null,null,null,null,null,null,null,null,null,null,null,null,null,"Smaaland","54°52'11\"S","36°2'52\"W","South Georgia"]
[null,null,null,null,null,null,null,null,null,null,null,null,null,null,null,"Small Island","64°0'S","61°27'W","Peninsula"]
[null,null,null,null,null,null,null,null,null,null,null,null,null,null,null,"Smiggers Island","65°27'S","65°19'58\"W","Peninsula"]
[null,null,null,null,null,null,null,null,null,null,null,null,null,null,null,"Snow Hill Island - Emperor Penguin Colony","64°30'S","57°26'W","Peninsula"]
[null,null,null,null,null,null,null,null,null,null,null,null,null,null,null,"Snow Hill Island - Nordenskjold's Hut","64°28'S","57°12'W","Peninsula"]
[null,null,null,null,null,null,null,null,null,null,null,null,null,null,null,"Snow Hill Island- Ice Edge Landing","64°28'S","57°10'58\"W","Peninsula"]
[null,null,null,null,null,null,null,null,null,null,null,null,null,null,null,"Snow Island","62°47'S","61°23'W","Peninsula"]
[null,null,null,null,null,null,null,null,null,null,null,null,null,null,null,"Solvay Mountains","64°25'S","62°32'W","Peninsula"]
[null,null,null,null,null,null,null,null,null,null,null,null,null,null,null,"Sophie Rocks","64°39'S","62°33'W","Peninsula"]
[null,null,null,null,null,null,null,null,null,null,null,null,null,null,null,"Sorge Island","67°11'S","67°43'W","Peninsula"]
[null,null,null,null,null,null,null,null,null,null,null,null,null,null,null,"Sorling Valley","54°23'S","36°19'W","South Georgia"]
[null,null,null,null,null,null,null,null,null,null,null,null,null,null,null,"Sorn and Bernt islands","53°58'58\"S","37°55'1\"E","South Georgia"]
[null,null,null,null,null,null,null,null,null,null,null,null,null,null,null,"South Bay/Johnsons Dock","62°39'S","60°23'W","Peninsula"]
[null,null,null,null,null,null,null,null,null,null,null,null,null,null,null,"South Orkney Islands","60°35'S","45°30'W","Peninsula"]
[null,null,null,null,null,null,null,null,null,null,null,null,null,null,null,"South Pole","90°0'S","0°0'W","Continent"]
[null,null,null,null,null,null,null,null,null,null,null,null,null,null,null,"South Sandwich Islands","57°45'S","26°30'W","South Georgia"]
[null,null,null,null,null,null,null,null,null,null,null,null,null,null,null,"South Shetland Islands","62°0'S","58°0'W","Peninsula"]
[null,null,null,null,null,null,null,null,null,null,null,null,null,null,null,"Southern Thule","59°26'S","27°12'W","South Georgia"]
[null,null,null,null,null,null,null,null,null,null,null,null,null,null,null,"Spert Island","63°51'S","60°57'W","Peninsula"]
[null,null,null,null,null,null,null,null,null,null,null,null,null,null,null,"Spigot Peak","64°38'S","62°34'W","Peninsula"]
[null,null,null,null,null,null,null,null,null,null,null,null,null,null,null,"Splettstoesser Glacier","66°13'S","65°30'W","Peninsula"]
[null,null,null,null,null,null,null,null,null,null,null,null,null,null,null,"Spring Point","64°18'S","61°3'W","Peninsula"]
[null,null,null,null,null,null,null,null,null,null,null,null,null,null,null,"St. Andrews Bay - STA01","54°26'S","36°11'W","South Georgia"]
[null,null,null,null,null,null,null,null,null,null,null,null,null,null,null,"St. Kliment Ohridski Base - Bulgaria","62°23'2\"S","60°13'8\"W","Peninsula"]
[null,null,null,null,null,null,null,null,null,null,null,null,null,null,null,"Stancomb Wills Rookery","74°5'5\"S","22°57'47\"W","Continent"]
[null,null,null,null,null,null,null,null,null,null,null,null,null,null,null,"Stanley","54°26'S","36°11'W","Falkland Islands"]
[null,null,null,null,null,null,null,null,null,null,null,null,null,null,null,"Stanley Patch","62°59'S","60°38'W","Peninsula"]
[null,null,null,null,null,null,null,null,null,null,null,null,null,null,null,"Stanley Shoal","54°26'S","36°11'W","Peninsula"]
[null,null,null,null,null,null,null,null,null,null,null,null,null,null,null,"Start Point","54°2'49\"S","37°21'23\"E","South Georgia"]
[null,null,null,null,null,null,null,null,null,null,null,null,null,null,null,"Steeple Jason","51°2'15\"S","61°12'34\"W","Falkland Islands"]
[null,null,null,null,null,null,null,null,null,null,null,null,null,null,null,"Stefan Ice Piedmont","66°40'S","66°30'W","Peninsula"]
[null,null,null,null,null,null,null,null,null,null,null,null,null,null,null,"Steinheil Point","64°51'S","62°41'W","Peninsula"]
[null,null,null,null,null,null,null,null,null,null,null,null,null,null,null,"Sterneck Island","61°0'57\"S","64°11'34\"W","Peninsula"]
[null,null,null,null,null,null,null,null,null,null,null,null,null,null,null,"Stonington Island","68°11'S","67°0'W","Peninsula"]
[null,null,null,null,null,null,null,null,null,null,null,null,null,null,null,"Stony Point","64°54'47\"S","62°55'59\"W","Peninsula"]
[null,null,null,null,null,null,null,null,null,null,null,null,null,null,null,"Straggle Islands","65°52'26\"S","65°4'24\"W","Peninsula"]
[null,null,null,null,null,null,null,null,null,null,null,null,null,null,null,"Stromness - STR01","54°9'35\"S","36°42'41\"W","South Georgia"]
[null,null,null,null,null,null,null,null,null,null,null,null,null,null,null,"Suárez Glacier","64°56'S","62°56'W","Peninsula"]
[null,null,null,null,null,null,null,null,null,null,null,null,null,null,null,"Tadpole Island","65°56'S","65°19'W","Peninsula"]
[null,null,null,null,null,null,null,null,null,null,null,null,null,null,null,"Tay Head","63°21'S","55°34'W","Peninsula"]
[null,null,null,null,null,null,null,null,null,null,null,null,null,null,null,"Taylor Valley/Canada Glacier","77°39'6\"S","162°56'29\"E","Continent"]
[null,null,null,null,null,null,null,null,null,null,null,null,null,null,null,"Telefon Bay","62°56'S","60°40'W","Peninsula"]
[null,null,null,null,null,null,null,null,null,null,null,null,null,null,null,"Tern Island","54°3'S","37°19'47\"E","South Georgia"]
[null,null,null,null,null,null,null,null,null,null,null,null,null,null,null,"Terra Firma Islands","68°42'S","67°32'W","Peninsula"]
[null,null,null,null,null,null,null,null,null,null,null,null,null,null,null,"Terra Nova Bay","74°50'S","164°30'E","Continent"]
[null,null,null,null,null,null,null,null,null,null,null,null,null,null,null,"Terrada Point","64°23'S","62°14'W","Peninsula"]
[null,null,null,null,null,null,null,null,null,null,null,null,null,null,null,"Tetra Rocks","74°41'S","164°7'E","Continent"]
[null,null,null,null,null,null,null,null,null,null,null,null,null,null,null,"Tetrad Islands","63°55'S","60°44'W","Peninsula"]
[null,null,null,null,null,null,null,null,null,null,null,null,null,null,null,"The Gullet","67°10'S","67°38'W","Peninsula"]
[null,null,null,null,null,null,null,null,null,null,null,null,null,null,null,"The Naze","63°57'S","57°32'W","Peninsula"]
[null,null,null,null,null,null,null,null,null,null,null,null,null,null,null,"The Snares","48°34'S","179°55'E","Continent"]
[null,null,null,null,null,null,null,null,null,null,null,null,null,null,null,"The Triplets","62°24'S","59°41'W","Peninsula"]
[null,null,null,null,null,null,null,null,null,null,null,null,null,null,null,"The Waifs","64°33'S","62°42'W","Peninsula"]
[null,null,null,null,null,null,null,null,null,null,null,null,null,null,null,"Thurston Island","72°6'S","99°0'W","Continent"]
[null,null,null,null,null,null,null,null,null,null,null,null,null,null,null,"Torgersen Island","64°46'S","64°5'W","Peninsula"]
[null,null,null,null,null,null,null,null,null,null,null,null,null,null,null,"Totorore Cove","54°16'S","37°21'E","South Georgia"]
[null,null,null,null,null,null,null,null,null,null,null,null,null,null,null,"Tourmaline Plateau","74°10'S","163°27'E","Continent"]
[null,null,null,null,null,null,null,null,null,null,null,null,null,null,null,"Tournachon Peak","64°19'S","61°5'W","Peninsula"]
[null,null,null,null,null,null,null,null,null,null,null,null,null,null,null,"Triangle Point","62°32'S","59°51'W","Peninsula"]
[null,null,null,null,null,null,null,null,null,null,null,null,null,null,null,"Trinity Island","54°0'S","38°10'W","Peninsula"]
[null,null,null,null,null,null,null,null,null,null,null,null,null,null,null,"Trinity Peninsula","63°37'S","58°20'W","Peninsula"]
[null,null,null,null,null,null,null,null,null,null,null,null,null,null,null,"Troll Airfield","71°57'25\"S","2°27'14\"E","Continent"]
[null,null,null,null,null,null,null,null,null,null,null,null,null,null,null,"Trollhul","54°49'19\"S","36°12'11\"W","South Georgia"]
[null,null,null,null,null,null,null,null,null,null,null,null,null,null,null,"Truant Island","64°55'10\"S","63°24'18\"W","Peninsula"]
[null,null,null,null,null,null,null,null,null,null,null,null,null,null,null,"Turret Point","62°5'S","57°55'W","Peninsula"]
[null,null,null,null,null,null,null,null,null,null,null,null,null,null,null,"Two Hummock Island","64°8'S","61°42'W","Peninsula"]
[null,null,null,null,null,null,null,null,null,null,null,null,null,null,null,"Undine Harbour","54°2'S","37°58'W","South Georgia"]
[null,null,null,null,null,null,null,null,null,null,null,null,null,null,null,"Undine South Harbour","54°31'S","36°33'W","South Georgia"]
[null,null,null,null,null,null,null,null,null,null,null,null,null,null,null,"Unger Island","70°41'S","166°55'E","Continent"]
[null,null,null,null,null,null,null,null,null,null,null,null,null,null,null,"Union Glacier","79°45'S","82°30'W","Continent"]
[null,null,null,null,null,null,null,null,null,null,null,null,null,null,null,"Unnamed Emperor Rookery","66°33'S","92°58'E","Continent"]
[null,null,null,null,null,null,null,null,null,null,null,null,null,null,null,"Uruguay Island","65°14'S","64°14'W","Peninsula"]
[null,null,null,null,null,null,null,null,null,null,null,null,null,null,null,"Useful Island","64°43'S","62°52'W","Peninsula"]
[null,null,null,null,null,null,null,null,null,null,null,null,null,null,null,"Valdivia Point","64°21'S","61°22'48\"W","Peninsula"]
[null,null,null,null,null,null,null,null,null,null,null,null,null,null,null,"Vedel Islands","65°7'S","64°15'W","Peninsula"]
[null,null,null,null,null,null,null,null,null,null,null,null,null,null,null,"Vega Island","63°50'S","57°25'W","Peninsula"]
[null,null,null,null,null,null,null,null,null,null,null,null,null,null,null,"Vernadsky Station","65°14'43\"S","64°15'24\"W","Peninsula"]
[null,null,null,null,null,null,null,null,null,null,null,null,null,null,null,"Victor Hugo Island","64°57'S","65°47'W","Peninsula"]
[null,null,null,null,null,null,null,null,null,null,null,null,null,null,null,"Vieugue Island","65°40'S","65°13'W","Peninsula"]
[null,null,null,null,null,null,null,null,null,null,null,null,null,null,null,"View Point","63°33'S","57°22'W","Peninsula"]
[null,null,null,null,null,null,null,null,null,null,null,null,null,null,null,"Volunteer Point","51°28'15\"S","57°50'41\"W","Falkland Islands"]
[null,null,null,null,null,null,null,null,null,null,null,null,null,null,null,"Vortex Island","63°44'S","57°38'W","Peninsula"]
[null,null,null,null,null,null,null,null,null,null,null,null,null,null,null,"Waddington Bay","65°16'S","64°5'W","Peninsula"]
[null,null,null,null,null,null,null,null,null,null,null,null,null,null,null,"Walker Bay (by Hannah Point)","62°38'S","60°42'W","Peninsula"]
[null,null,null,null,null,null,null,null,null,null,null,null,null,null,null,"Wandel Peak","65°5'S","64°0'W","Peninsula"]
[null,null,null,null,null,null,null,null,null,null,null,null,null,null,null,"Waterboat Point/Gonzalez Videla Station","64°49'S","62°51'W","Peninsula"]
[null,null,null,null,null,null,null,null,null,null,null,null,null,null,null,"Watkins Island","66°22'S","67°6'W","Peninsula"]
[null,null,null,null,null,null,null,null,null,null,null,null,null,null,null,"Wauwermans Islands","64°55'S","63°53'W","Peninsula"]
[null,null,null,null,null,null,null,null,null,null,null,null,null,null,null,"Webb Island","67°27'S","67°56'W","Peninsula"]
[null,null,null,null,null,null,null,null,null,null,null,null,null,null,null,"Weddell Sea","72°0'S","45°0'W","Peninsula"]
[null,null,null,null,null,null,null,null,null,null,null,null,null,null,null,"Welcome Islands - WEL01","53°34'47\"S","37°17'23\"W","South Georgia"]
[null,null,null,null,null,null,null,null,null,null,null,null,null,null,null,"West Antarctic Ice Sheet","79°28'S","112°4'W","Continent"]
[null,null,null,null,null,null,null,null,null,null,null,null,null,null,null,"West Point Island","51°20'53\"S","60°41'15\"W","Falkland Islands"]
[null,null,null,null,null,null,null,null,null,null,null,null,null,null,null,"Whale's Head","54°0'S","37°36'57\"E","South Georgia"]
[null,null,null,null,null,null,null,null,null,null,null,null,null,null,null,"Whalers Bay","62°59'S","60°34'W","Peninsula"]
[null,null,null,null,null,null,null,null,null,null,null,null,null,null,null,"Wiggins Glacier","65°14'S","64°3'W","Peninsula"]
[null,null,null,null,null,null,null,null,null,null,null,null,null,null,null,"Wilhelmina Bay","64°38'S","62°10'W","Peninsula"]
[null,null,null,null,null,null,null,null,null,null,null,null,null,null,null,"Will Point","54°34'1\"S","36°1'1\"E","South Georgia"]
[null,null,null,null,null,null,null,null,null,null,null,null,null,null,null,"Willis Islands","54°0'S","38°6'35\"E","South Georgia"]
[null,null,null,null,null,null,null,null,null,null,null,null,null,null,null,"Wilson Harbour","54°6'57\"S","37°42'E","South Georgia"]
[null,null,null,null,null,null,null,null,null,null,null,null,null,null,null,"Wilson Piedmont Glacier","77°20'38\"S","163°21'29\"E","Continent"]
[null,null,null,null,null,null,null,null,null,null,null,null,null,null,null,"Winter Island","65°15'S","64°16'W","Peninsula"]
[null,null,null,null,null,null,null,null,null,null,null,null,null,null,null,"Wirik Bay","54°43'58\"S","35°51'W","South Georgia"]
[null,null,null,null,null,null,null,null,null,null,null,null,null,null,null,"Wohlschlag Bay","77°22'13\"S","166°25'46\"E","Continent"]
[null,null,null,null,null,null,null,null,null,null,null,null,null,null,null,"Wolfs Fang Runway","70°31'33\"S","8°48'3\"E","Continent"]
[null,null,null,null,null,null,null,null,null,null,null,null,null,null,null,"Woolpack Island","65°37'S","65°0'W","Peninsula"]
[null,null,null,null,null,null,null,null,null,null,null,null,null,null,null,"Wordie Hut","65°15'S","64°16'W","Peninsula"]
[null,null,null,null,null,null,null,null,null,null,null,null,null,null,null,"Wyatt Earp Islands","68°22'S","78°32'E","Continent"]
[null,null,null,null,null,null,null,null,null,null,null,null,null,null,null,"Wylie Bay","64°44'S","64°10'W","Peninsula"]
[null,null,null,null,null,null,null,null,null,null,null,null,null,null,null,"Yalour Islands","65°14'S","64°10'W","Peninsula"]
[null,null,null,null,null,null,null,null,null,null,null,null,null,null,null,"Yankee Harbor","62°32'S","59°47'W","Peninsula"]
[null,null,null,null,null,null,null,null,null,null,null,null,null,null,null,"Yelcho Point","64°50'S","63°35'W","Peninsula"]
[null,null,null,null,null,null,null,null,null,null,null,null,null,null,null,"Young Island","66°25'S","162°24'E","Continent"]
[null,null,null,null,null,null,null,null,null,null,null,null,null,null,null,"Zavodovski Island","56°18'S","27°33'35\"E","South Georgia"]
[null,null,null,null,null,null,null,null,null,null,null,null,null,null,null,"Zhongshan Station","69°22'15\"S","76°23'12\"E","Continent"]
[null,null,null,null,null,null,null,null,null,null,null,null,null,null,null,"Zigzag Island","63°36'S","59°52'W","Peninsula"]

{"sheet":"myvariables","index":8,"n_rows":728,"n_cols":26,"rows_kept":728,"cut":false,"hidden":true,"merged":[]}
["Expedition Type",null,"Nationalities",null,null,"Antarctica",null,"Yes/No",null,null,"Activities",null,null,"Falkland Sites",null,null,"South Georgia",null,null,"Combined Sites",null,null,"Operators",null,null,"Vessels"]
[]
["Aircraft",null,"Afghanistan",null,null,"1/2019 - Hauron Peak landing",null,"Yes",null,null,"Aircraft Flight",null,null,"Barren Island",null,null,"Ample Bay",null,null,"1/2019 - Hauron Peak landing",null,null,"Abercrombie & Kent USA, LLC",null,null,"Aircraft Miscellaneous"]
["Land",null,"Albania",null,null,"2/2019",null,"No",null,null,"Aircraft Landing",null,null,"Beaver Island",null,null,"Antarctic Bay",null,null,"2/2019",null,null,"Albatros Travel / Albatros Expeditions",null,null,"ALE-IL76"]
["Motor Yacht",null,"Algeria",null,null,"Access Point",null,"Don't Know",null,null,"Anchoring",null,null,"Berkley Sound",null,null,"Beckmann Fjord",null,null,"Access Point",null,null,"Antarctica21",null,null,"ARK-TRUCK"]
["Motor Vehicle",null,"American Samoa",null,null,"Active Sound",null,null,null,null,"Citizen Science",null,null,"Bleaker Island - Adventure Sound",null,null,"Bird Island",null,null,"Active Sound",null,null,"Antarctic Logistics & Expeditions",null,null,"DAP-KING300"]
["Other",null,"Andorra",null,null,"Adelaide Anchorage",null,null,null,null,"Climbing",null,null,"Bleaker Island - Sandy Bay Landing",null,null,"Bjelland Point",null,null,"Adelaide Anchorage",null,null,"Antarpply Expeditions",null,null,"TAC-IL76"]
["Sailing Vessel",null,"Angola",null,null,"Adie Cove",null,null,null,null,"Deep Field Camping",null,null,"Bluff Cove",null,null,"Bjornstadt Bay",null,null,"Adie Cove",null,null,"Arctic Trucks",null,null,"WD - BT67"]
["Ship",null,"Anguilla",null,null,"Admiralty Bay",null,null,null,null,"Expedition support",null,null,"Carcass Island",null,null,"Bristol Island",null,null,"Admiralty Bay",null,null,"Aurora Expeditions",null,null,"WD - DHC"]
[null,null,"Antigua and Barbuda",null,null,"Admiralty Sound",null,null,null,null,"Extended Walk",null,null,"Carcass Island - Leopard Beach",null,null,"Candlemas Island",null,null,"Admiralty Sound",null,null,"Celebrity Cruise Lines/Royal Carribbean/Azamara Cruises",null,null,"WD - G450"]
[null,null,"Argentina",null,null,"Aguirre Passage",null,null,null,null,"Filming",null,null,"Darwin",null,null,"Cape Best",null,null,"Aguirre Passage",null,null,"Cheesemans' Ecology Safaris",null,null,"WD - G550"]
[null,null,"Armenia",null,null,"Aitcho Islands - Barrientos Island",null,null,null,null,"Gear Depoting",null,null,"Falkland Sound",null,null,"Cape Charlotte",null,null,"Aitcho Islands - Barrientos Island",null,null,"Crystal Cruises, LLC",null,null,"WD - IL76"]
[null,null,"Aruba",null,null,"Aitcho Islands - Other",null,null,null,null,"Helicopter Flight",null,null,"George Island",null,null,"Cape Demidov",null,null,"Aitcho Islands - Other",null,null,"DAP Antarctica",null,null,"Braveheart"]
[null,null,"Australia",null,null,"Alcock Island",null,null,null,null,"Helicopter Landing",null,null,"Goose Green",null,null,"Cape North",null,null,"Alcock Island",null,null,"EYOS Expeditions Ltd.",null,null,"Gayle Force"]
[null,null,"Austria",null,null,"Alexander Island",null,null,null,null,"Ice Landing",null,null,"Grand Jason",null,null,"Cape Rosa - KIN01",null,null,"Alexander Island",null,null,"Fathom Expeditions Inc.",null,null,"MY Archimedes"]
[null,null,"Azerbaijan",null,null,"Alvaro Cove",null,null,null,null,"Ice Walk",null,null,"Grave Cove",null,null,"Carlita Bay",null,null,"Alvaro Cove",null,null,"G Adventures",null,null,"MY Game Changer"]
[null,null,"Bahamas",null,null,"Amanda Bay",null,null,null,null,"Kayaking",null,null,"Gypsy Cove",null,null,"Chaplin Head",null,null,"Amanda Bay",null,null,"Golden Fleece Expeditions Ltd.",null,null,"MY Oceans Seven"]
[null,null,"Bahrain",null,null,"Ambush Bay",null,null,null,null,"Marathons",null,null,"Hummock Island",null,null,"Cheapman Bay",null,null,"Ambush Bay",null,null,"Grand Circle Corporation",null,null,"MY Planet Nine"]
[null,null,"Bangladesh",null,null,"Amery Ice Shelf",null,null,null,null,"Medical evacuation",null,null,"Kidney Cove",null,null,"Church Bay",null,null,"Amery Ice Shelf",null,null,"Grands Espaces",null,null,"Naia"]
[null,null,"Barbados",null,null,"Amphibolite Point",null,null,null,null,"Multi-Night Coastal Camping",null,null,"Little Bense Island",null,null,"Coal Harbour",null,null,"Amphibolite Point",null,null,"Hanse Explorer GmbH and Co. KG",null,null,"Bark Europa"]
[null,null,"Belarus",null,null,"Andresen Island",null,null,null,null,"Other",null,null,"New Island - North Harbour",null,null,"Cobblers Cove - COB01",null,null,"Ample Bay",null,null,"Hapag-Lloyd Kreuzfahrten GmbH",null,null,"S/V Australis"]
[null,null,"Belgium",null,null,"Andvord Bay",null,null,null,null,"Polar Plunge",null,null,"New Island - Ship Harbour",null,null,"Cooper Bay Albatross Cove - COO02",null,null,"Andresen Island",null,null,"Heritage Expeditions",null,null,"S/V Golden Fleece"]
[null,null,"Belize",null,null,"Antarctic Sound",null,null,null,null,"Remote Underwater Vehicle",null,null,"New Island - South Harbour",null,null,"Cooper Bay Centre Cove - COO01",null,null,"Andvord Bay",null,null,"Holland America Line",null,null,"S/V Icebird"]
[null,null,"Benin",null,null,"Anvers Island",null,null,null,null,"RPAS Commercial Flight (UAV-C)",null,null,"New Island Settlement",null,null,"Cooper Bay Chinstraps - COO05",null,null,"Antarctic Bay",null,null,"Hurtigruten AS",null,null,"S/V Kotick"]
[null,null,"Bermuda",null,null,"Arago Glacier",null,null,null,null,"RPAS Operational  / Navigation Flight (UAV-O)",null,null,"Pebble Island",null,null,"Cooper Bay Macaronis - COO03",null,null,"Antarctic Sound",null,null,"Icebird Expeditions",null,null,"S/V Le Sourire"]
[null,null,"Bhutan",null,null,"Archibald Point",null,null,null,null,"RPAS Scientific Flight (UAV-S)",null,null,"Port Egmont",null,null,"Cooper Bay Main Beach - COO04",null,null,"Anvers Island",null,null,"Icetrek Expeditions and Equipment",null,null,"S/V Ocean Tramp"]
[null,null,"Bolivia",null,null,"Arctowski Station",null,null,null,null,"Science Support",null,null,"Port Howard",null,null,"Cooper Island",null,null,"Arago Glacier",null,null,"Kotick Charters Ltd.",null,null,"S/V Paradise"]
[null,null,"Bosnia and Herzegovina",null,null,"Ardley Island",null,null,null,null,"Scuba Diving",null,null,"Saunders Island - Neck",null,null,"Cumberland Bay West",null,null,"Archibald Point",null,null,"Latitude Oceane",null,null,"S/V Pelagic"]
[null,null,"Botswana",null,null,"Argentine Islands Other",null,null,null,null,"Ship Cruise",null,null,"Saunders Island - Settlement",null,null,"Damien Bay",null,null,"Arctowski Station",null,null,"Le Sourire Expeditions",null,null,"S/V Pelagic Australis"]
[null,null,"Bouvet Island",null,null,"Armstrong Reef",null,null,null,null,"Short Overnight Stays",null,null,"Saunders Island - The Rookery",null,null,"Dot Island",null,null,"Ardley Island",null,null,"Lindblad Expeditions",null,null,"S/V Podorange"]
[null,null,"Brazil",null,null,"Arrowsmith Peninsula",null,null,null,null,"Skiing",null,null,"Sea Lion Island",null,null,"Doubtful Bay",null,null,"Argentine Islands Other",null,null,"Noble Caledonia",null,null,"S/V Rosehearty"]
[null,null,"British Indian Ocean Territory",null,null,"Artigas Station",null,null,null,null,"Small Boat Cruising",null,null,"Second Passage - Northern Landing",null,null,"Drygalski Fjord - DRG01",null,null,"Armstrong Reef",null,null,"Ocean Expeditions Ltd",null,null,"S/V Santa Maria Australis"]
[null,null,"British Virgin Islands",null,null,"Arturo Prat Station",null,null,null,null,"Small Boat Landing",null,null,"Stanley",null,null,"Ducloz Head",null,null,"Arrowsmith Peninsula",null,null,"Oceanwide Expeditions",null,null,"S/V Selma Expeditions"]
[null,null,"Brunei",null,null,"Astrolabe Glacier Area, or Vicinity",null,null,null,null,"Snorkeling",null,null,"Steeple Jason",null,null,"Elephant Cove",null,null,"Artigas Station",null,null,"One Ocean Expeditions Inc.",null,null,"S/V Spirit of Sydney"]
[null,null,"Bulgaria",null,null,"Astrolabe Island",null,null,null,null,"Snowboarding",null,null,"Volunteer Point",null,null,"Elsehul Inner Bay - ELS01",null,null,"Arturo Prat Station",null,null,"Paradise Adventures",null,null,"S/V Vaïhéré"]
[null,null,"Burkina Faso",null,null,"Atka Bay Rookery",null,null,null,null,"Snowshoeing",null,null,"West Point Island",null,null,"Elsehul Outer Bay - ELS02",null,null,"Astrolabe Glacier Area, or Vicinity",null,null,"Pelagic Expeditions LTD",null,null,"Akademik Ioffe"]
[null,null,"Burundi",null,null,"Audrey Island",null,null,null,null,"Stand Up Paddle Boarding",null,null,null,null,null,"Faustini Cove",null,null,"Astrolabe Island",null,null,"Plantours Kreuzfahrten",null,null,"Akademik Sergey Vavilov"]
[null,null,"Cambodia",null,null,"Auguste Island",null,null,null,null,"Station Visit",null,null,null,null,null,"Fortuna Bay Ancorage Bay - FOR01",null,null,"Atka Bay Rookery",null,null,"Polar Latitudes",null,null,"Akademik Shokalskiy"]
[null,null,"Cameroon",null,null,"Auster Rookery",null,null,null,null,"Submersible - Human Occupied Vehicle (HOV)",null,null,null,null,null,"Fortuna Bay Whistle Cove Kings - FOR02",null,null,"Audrey Island",null,null,"Ponant",null,null,"Amsterdam"]
[null,null,"Canada",null,null,"Avian Island",null,null,null,null,"Swimming - Distance",null,null,null,null,null,"Godthul - GOD01",null,null,"Auguste Island",null,null,"Poseidon Expeditions",null,null,"Azamara Pursuit"]
[null,null,"Cape Verde",null,null,"Bahia Uruguay",null,null,null,null,"Vessel Alongside",null,null,null,null,null,"Godthul Walk - GOD02",null,null,"Auster Rookery",null,null,"Quark Expeditions",null,null,"Bremen"]
[null,null,"Cayman Islands",null,null,"Baily Head",null,null,null,null,null,null,null,null,null,null,"Gold Harbour - GOL01",null,null,"Avian Island",null,null,"Quixote Expeditions",null,null,"Caledonian Sky"]
[null,null,"Central African Republic",null,null,"Bald Head",null,null,null,null,null,null,null,null,null,null,"Gold Harbour Walk - GOL02",null,null,"Bahia Uruguay",null,null,"Rederij Bark EUROPA B.V.",null,null,"Celebrity Eclipse"]
[null,null,"Chad",null,null,"Balleny Islands",null,null,null,null,null,null,null,null,null,null,"Granat Point",null,null,"Baily Head",null,null,"Scenic Tours (USA) Inc",null,null,"Coral Princess"]
[null,null,"Chile",null,null,"Bancroft Bay",null,null,null,null,null,null,null,null,null,null,"Grassholm Island",null,null,"Bald Head",null,null,"Seabourn Cruise Line Ltd.",null,null,"Corinthian"]
[null,null,"China",null,null,"Barcroft Islands",null,null,null,null,null,null,null,null,null,null,"Green Harbour",null,null,"Balleny Islands",null,null,"Selma Expeditions",null,null,"Expedition"]
[null,null,"Christmas Island",null,null,"Bartlett Bay",null,null,null,null,null,null,null,null,null,null,"Grytviken - GRY01",null,null,"Bancroft Bay",null,null,"Silversea Cruises Ltd.",null,null,"Fram"]
[null,null,"Cocos Islands",null,null,"Bay of Whales",null,null,null,null,null,null,null,null,null,null,"Hamilton Bay",null,null,"Barcroft Islands",null,null,"SIM Expeditions",null,null,"Greg Mortimer"]
[null,null,"Colombia",null,null,"Bayard Islands",null,null,null,null,null,null,null,null,null,null,"Hercules Bay Macaronis - HER01",null,null,"Barren Island",null,null,"Spirit of Sydney Expeditions Pty Ltd",null,null,"Hamburg"]
[null,null,"Comoros",null,null,"Beagle Island",null,null,null,null,null,null,null,null,null,null,"Hercules Bay Waterfall - HER 02",null,null,"Bartlett Bay",null,null,"Stoney Creek Shipping Co. Ltd.",null,null,"Hanseatic Inspiration"]
[null,null,"Cook Islands",null,null,"Beascochea Bay",null,null,null,null,null,null,null,null,null,null,"Holmestrand",null,null,"Bay of Whales",null,null,"Students on Ice",null,null,"Hanseatic Nature"]
[null,null,"Costa Rica",null,null,"Beaufort Island",null,null,null,null,null,null,null,null,null,null,"Husvik - HUS01",null,null,"Bayard Islands",null,null,"The Antarctic Company (TAC)",null,null,"Hebridean Sky"]
[null,null,"Croatia",null,null,"Beer Island",null,null,null,null,null,null,null,null,null,null,"Ice Fjord",null,null,"Beagle Island",null,null,"The World, Residences at Sea",null,null,"Hondius"]
[null,null,"Cuba",null,null,"Bellingshausen Sea",null,null,null,null,null,null,null,null,null,null,"Iris Bay",null,null,"Beascochea Bay",null,null,"Voile Australe",null,null,"Island Sky"]
[null,null,"Cyprus",null,null,"Bellingshausen Station",null,null,null,null,null,null,null,null,null,null,"Jane Point",null,null,"Beaufort Island",null,null,"Waterproof Expeditions",null,null,"Kapitan Khlebnikov"]
[null,null,"Czech Republic",null,null,"Beneden Head",null,null,null,null,null,null,null,null,null,null,"Jason Harbour - JAS01",null,null,"Beaver Island",null,null,"White Desert Ltd",null,null,"L'Austral"]
[null,null,"Democratic Republic of the Congo",null,null,"Bennett Islands",null,null,null,null,null,null,null,null,null,null,"Jossac Bight",null,null,"Beckmann Fjord",null,null,"Zegrahm Expeditions",null,null,"Le Boreal"]
[null,null,"Denmark",null,null,"Berthelot Islands",null,null,null,null,null,null,null,null,null,null,"Jumbo Cove",null,null,"Beer Island",null,null,null,null,null,"Legend"]
[null,null,"Djibouti",null,null,"Betbeder Islands",null,null,null,null,null,null,null,null,null,null,"King Edward Point",null,null,"Bellingshausen Sea",null,null,null,null,null,"Le Lyrial"]
[null,null,"Dominica",null,null,"Bibby Point",null,null,null,null,null,null,null,null,null,null,"King Haakon Bay",null,null,"Bellingshausen Station",null,null,null,null,null,"Le Soleal"]
[null,null,"Dominican Republic",null,null,"Biscoe Bay",null,null,null,null,null,null,null,null,null,null,"Konig Glacier Cumberland West Bay",null,null,"Beneden Head",null,null,null,null,null,"Magellan Explorer"]
[null,null,"East Timor",null,null,"Biscoe Point",null,null,null,null,null,null,null,null,null,null,"Larsen Harbour - LAR01",null,null,"Bennett Islands",null,null,null,null,null,"Midnatsol"]
[null,null,"Ecuador",null,null,"Bismarck Strait",null,null,null,null,null,null,null,null,null,null,"Leith Harbour - LEI02",null,null,"Berkley Sound",null,null,null,null,null,"MS Roald Amundsen"]
[null,null,"Egypt",null,null,"Blaiklock Island",null,null,null,null,null,null,null,null,null,null,"Leith Harbour Walk - LEI01",null,null,"Berthelot Islands",null,null,null,null,null,"MY Hanse Explorer"]
[null,null,"El Salvador",null,null,"Bluff Island",null,null,null,null,null,null,null,null,null,null,"Little Moltke Harbour - ROY03",null,null,"Betbeder Islands",null,null,null,null,null,"MY Hans Hansson"]
[null,null,"Equatorial Guinea",null,null,"Boat Harbour",null,null,null,null,null,null,null,null,null,null,"Maiviken - MAI01",null,null,"Bibby Point",null,null,null,null,null,"National Geographic Explorer"]
[null,null,"Eritrea",null,null,"Bob Island",null,null,null,null,null,null,null,null,null,null,"McDonald Bay",null,null,"Bird Island",null,null,null,null,null,"National Geographic Orion"]
[null,null,"Estonia",null,null,"Bongrain Point",null,null,null,null,null,null,null,null,null,null,"Miles Bay",null,null,"Biscoe Bay",null,null,null,null,null,"Ocean Adventurer"]
[null,null,"Ethiopia",null,null,"Boreal Point",null,null,null,null,null,null,null,null,null,null,"Moltke Harbour - ROY02",null,null,"Biscoe Point",null,null,null,null,null,"Ocean Atlantic"]
[null,null,"Falkland Islands",null,null,"Borge Point",null,null,null,null,null,null,null,null,null,null,"Montague Island",null,null,"Bismarck Strait",null,null,null,null,null,"Ocean Diamond"]
[null,null,"Faroe Islands",null,null,"Borgen Bay",null,null,null,null,null,null,null,null,null,null,"Morsa Bay",null,null,"Bjelland Point",null,null,null,null,null,"Ocean Endeavour"]
[null,null,"Fiji",null,null,"Botany Bay",null,null,null,null,null,null,null,null,null,null,"Mouse Cove",null,null,"Bjornstadt Bay",null,null,null,null,null,"Ocean Nova"]
[null,null,"Finland",null,null,"Boutan Rocks",null,null,null,null,null,null,null,null,null,null,"Muller Point",null,null,"Blaiklock Island",null,null,null,null,null,"Ortelius"]
[null,null,"France",null,null,"Boyd Strait",null,null,null,null,null,null,null,null,null,null,"Narval Bay",null,null,"Bleaker Island - Adventure Sound",null,null,null,null,null,"Plancius"]
[null,null,"French Guiana",null,null,"Brabant Island",null,null,null,null,null,null,null,null,null,null,"Nilse Hullet",null,null,"Bleaker Island - Sandy Bay Landing",null,null,null,null,null,"Polar Pioneer"]
[null,null,"French Polynesia",null,null,"Brabazon Point",null,null,null,null,null,null,null,null,null,null,"Nordenskjold Glacier - NOR01",null,null,"Bluff Cove",null,null,null,null,null,"Prinsendam"]
[null,null,"French Southern Territories",null,null,"Brandy Bay",null,null,null,null,null,null,null,null,null,null,"Ocean Harbour - OCE01",null,null,"Bluff Island",null,null,null,null,null,"RCGS Resolute"]
[null,null,"Gabon",null,null,"Bransfield Strait",null,null,null,null,null,null,null,null,null,null,"Ocean Harbour Walk - OCE02",null,null,"Boat Harbour",null,null,null,null,null,"Scenic Eclipse"]
[null,null,"Gambia",null,null,"Brash Island",null,null,null,null,null,null,null,null,null,null,"Olsen Valley Walk - HUS02",null,null,"Bob Island",null,null,null,null,null,"Seabourn Quest"]
[null,null,"Georgia",null,null,"Brialmont Cove",null,null,null,null,null,null,null,null,null,null,"Peggotty Bluff - KIN02",null,null,"Bongrain Point",null,null,null,null,null,"Sea Spirit"]
[null,null,"Germany",null,null,"Brooklyn Island",null,null,null,null,null,null,null,null,null,null,"Possession Bay Brighton Beach - POS01",null,null,"Boreal Point",null,null,null,null,null,"Silver Cloud"]
[null,null,"Ghana",null,null,"Brown Bluff",null,null,null,null,null,null,null,null,null,null,"Possession Bay Brown Point - POS02",null,null,"Borge Point",null,null,null,null,null,"Silver Explorer"]
[null,null,"Gibraltar",null,null,"Brown Station",null,null,null,null,null,null,null,null,null,null,"Prince Olav Harbour - POH01",null,null,"Borgen Bay",null,null,null,null,null,"Silver Whisper"]
[null,null,"Greece",null,null,"Bruce Island",null,null,null,null,null,null,null,null,null,null,"Prion Island - PRI01",null,null,"Botany Bay",null,null,null,null,null,"Spirit of Enderby"]
[null,null,"Greenland",null,null,"Bryde Island",null,null,null,null,null,null,null,null,null,null,"Right Whale Bay - RIG01",null,null,"Boutan Rocks",null,null,null,null,null,"Ushuaia"]
[null,null,"Grenada",null,null,"Buls Bay",null,null,null,null,null,null,null,null,null,null,"Rogged Bay",null,null,"Boyd Strait",null,null,null,null,null,"Volendam"]
[null,null,"Guadeloupe",null,null,"Buromskiy Island",null,null,null,null,null,null,null,null,null,null,"Rookery Point Walk - ROO01",null,null,"Brabant Island",null,null,null,null,null,"Westerdam"]
[null,null,"Guam",null,null,"Butler Passage",null,null,null,null,null,null,null,null,null,null,"Rosita Harbour - ROS01",null,null,"Brabazon Point",null,null,null,null,null,"World Explorer"]
[null,null,"Guatemala",null,null,"Calmette Bay",null,null,null,null,null,null,null,null,null,null,"Royal Bay Kings - ROY04",null,null,"Brandy Bay",null,null,null,null,null,"Zaandam"]
[null,null,"Guinea",null,null,"Camp Hill",null,null,null,null,null,null,null,null,null,null,"Royal Bay Koppen Point - ROY01",null,null,"Bransfield Strait"]
[null,null,"Guinea-Bissau",null,null,"Camp Point",null,null,null,null,null,null,null,null,null,null,"Royal Bay Macaronis - ROY05",null,null,"Brash Island"]
[null,null,"Guyana",null,null,"Campbell Glacier/Gondwana Area",null,null,null,null,null,null,null,null,null,null,"Saddle Island",null,null,"Brialmont Cove"]
[null,null,"Haiti",null,null,"Campbell Island",null,null,null,null,null,null,null,null,null,null,"Salisbury Plain - SAL01",null,null,"Bristol Island"]
[null,null,"Heard Island and McDonald Islands",null,null,"Canty Point",null,null,null,null,null,null,null,null,null,null,"Sandebugten Walk - GOD03",null,null,"Brooklyn Island"]
[null,null,"Honduras",null,null,"Cape Adare",null,null,null,null,null,null,null,null,null,null,"Sandebukten",null,null,"Brown Bluff"]
[null,null,"Hungary",null,null,"Cape Anna",null,null,null,null,null,null,null,null,null,null,"Saunders Island - South Sandwich Islands",null,null,"Brown Station"]
[null,null,"Iceland",null,null,"Cape Bird",null,null,null,null,null,null,null,null,null,null,"Schlieper Bay",null,null,"Bruce Island"]
[null,null,"India",null,null,"Cape Colbeck",null,null,null,null,null,null,null,null,null,null,"Sea Leopard Fjord",null,null,"Bryde Island"]
[null,null,"Indonesia",null,null,"Cape Crozier",null,null,null,null,null,null,null,null,null,null,"Shackleton Walk (Fortuna/Stromness) - FOR03",null,null,"Buls Bay"]
[null,null,"Iran",null,null,"Cape Darnley",null,null,null,null,null,null,null,null,null,null,"Shag Rocks",null,null,"Buromskiy Island"]
[null,null,"Iraq",null,null,"Cape Decouverte",null,null,null,null,null,null,null,null,null,null,"Skua Bay",null,null,"Butler Passage"]
[null,null,"Ireland",null,null,"Cape Denison",null,null,null,null,null,null,null,null,null,null,"Smaaland",null,null,"Calmette Bay"]
[null,null,"Israel",null,null,"Cape Dundas",null,null,null,null,null,null,null,null,null,null,"Sorling Valley",null,null,"Camp Hill"]
[null,null,"Italy",null,null,"Cape Evans",null,null,null,null,null,null,null,null,null,null,"Sorn and Bernt islands",null,null,"Camp Point"]
[null,null,"Ivory Coast",null,null,"Cape Gage",null,null,null,null,null,null,null,null,null,null,"South Sandwich Islands",null,null,"Campbell Glacier/Gondwana Area"]
[null,null,"Jamaica",null,null,"Cape Gray",null,null,null,null,null,null,null,null,null,null,"Southern Thule",null,null,"Campbell Island"]
[null,null,"Japan",null,null,"Cape Hallett",null,null,null,null,null,null,null,null,null,null,"St. Andrews Bay - STA01",null,null,"Candlemas Island"]
[null,null,"Jordan",null,null,"Cape Herschel",null,null,null,null,null,null,null,null,null,null,"Start Point",null,null,"Canty Point"]
[null,null,"Kazakhstan",null,null,"Cape Jules",null,null,null,null,null,null,null,null,null,null,"Stromness - STR01",null,null,"Cape Adare"]
[null,null,"Kenya",null,null,"Cape Kinnes",null,null,null,null,null,null,null,null,null,null,"Tern Island",null,null,"Cape Anna"]
[null,null,"Kiribati",null,null,"Cape Kjellman",null,null,null,null,null,null,null,null,null,null,"Totorore Cove",null,null,"Cape Best"]
[null,null,"Kuwait",null,null,"Cape Lachman",null,null,null,null,null,null,null,null,null,null,"Trollhul",null,null,"Cape Bird"]
[null,null,"Kyrgyzstan",null,null,"Cape Lancaster",null,null,null,null,null,null,null,null,null,null,"Undine Harbour",null,null,"Cape Charlotte"]
[null,null,"Laos",null,null,"Cape Legoupil",null,null,null,null,null,null,null,null,null,null,"Undine South Harbour",null,null,"Cape Colbeck"]
[null,null,"Latvia",null,null,"Cape Lookout",null,null,null,null,null,null,null,null,null,null,"Welcome Islands - WEL01",null,null,"Cape Crozier"]
[null,null,"Lebanon",null,null,"Cape Melville",null,null,null,null,null,null,null,null,null,null,"Whale's Head",null,null,"Cape Darnley"]
[null,null,"Lesotho",null,null,"Cape Mergerie",null,null,null,null,null,null,null,null,null,null,"Will Point",null,null,"Cape Decouverte"]
[null,null,"Liberia",null,null,"Cape Perez",null,null,null,null,null,null,null,null,null,null,"Willis Islands",null,null,"Cape Demidov"]
[null,null,"Libya",null,null,"Cape Renard",null,null,null,null,null,null,null,null,null,null,"Wilson Harbour",null,null,"Cape Denison"]
[null,null,"Liechtenstein",null,null,"Cape Roget",null,null,null,null,null,null,null,null,null,null,"Wirik Bay",null,null,"Cape Dundas"]
[null,null,"Lithuania",null,null,"Cape Roquemaurel",null,null,null,null,null,null,null,null,null,null,"Zavodovski Island",null,null,"Cape Evans"]
[null,null,"Luxembourg",null,null,"Cape Royds",null,null,null,null,null,null,null,null,null,null,null,null,null,"Cape Gage"]
[null,null,"Macao",null,null,"Cape Shirreff",null,null,null,null,null,null,null,null,null,null,null,null,null,"Cape Gray"]
[null,null,"Macedonia",null,null,"Cape Tuxen",null,null,null,null,null,null,null,null,null,null,null,null,null,"Cape Hallett"]
[null,null,"Madagascar",null,null,"Cape Valentine",null,null,null,null,null,null,null,null,null,null,null,null,null,"Cape Herschel"]
[null,null,"Malawi",null,null,"Cape Washington",null,null,null,null,null,null,null,null,null,null,null,null,null,"Cape Jules"]
[null,null,"Malaysia",null,null,"Carlini Base",null,null,null,null,null,null,null,null,null,null,null,null,null,"Cape Kinnes"]
[null,null,"Maldives",null,null,"Carvajal Station",null,null,null,null,null,null,null,null,null,null,null,null,null,"Cape Kjellman"]
[null,null,"Mali",null,null,"Casabianca Island",null,null,null,null,null,null,null,null,null,null,null,null,null,"Cape Lachman"]
[null,null,"Malta",null,null,"Casey Station",null,null,null,null,null,null,null,null,null,null,null,null,null,"Cape Lancaster"]
[null,null,"Marshall Islands",null,null,"Challenger Island",null,null,null,null,null,null,null,null,null,null,null,null,null,"Cape Legoupil"]
[null,null,"Martinique",null,null,"Charles Point",null,null,null,null,null,null,null,null,null,null,null,null,null,"Cape Lookout"]
[null,null,"Mauritania",null,null,"Charlotte Bay",null,null,null,null,null,null,null,null,null,null,null,null,null,"Cape Melville"]
[null,null,"Mauritius",null,null,"Chiloé Point",null,null,null,null,null,null,null,null,null,null,null,null,null,"Cape Mergerie"]
[null,null,"Mayotte",null,null,"Chiriguano Bay",null,null,null,null,null,null,null,null,null,null,null,null,null,"Cape North"]
[null,null,"Mexico",null,null,"Christiania Islands",null,null,null,null,null,null,null,null,null,null,null,null,null,"Cape Perez"]
[null,null,"Micronesia",null,null,"Chutney Cove",null,null,null,null,null,null,null,null,null,null,null,null,null,"Cape Renard"]
[null,null,"Moldova",null,null,"Cierva Cove",null,null,null,null,null,null,null,null,null,null,null,null,null,"Cape Roget"]
[null,null,"Monaco",null,null,"Clear Island",null,null,null,null,null,null,null,null,null,null,null,null,null,"Cape Roquemaurel"]
[null,null,"Mongolia",null,null,"Cobalescou Island",null,null,null,null,null,null,null,null,null,null,null,null,null,"Cape Rosa - KIN01"]
[null,null,"Montenegro",null,null,"Cockburn Island",null,null,null,null,null,null,null,null,null,null,null,null,null,"Cape Royds"]
[null,null,"Montserrat",null,null,"Collins Bay",null,null,null,null,null,null,null,null,null,null,null,null,null,"Cape Shirreff"]
[null,null,"Morocco",null,null,"Comb Ridge",null,null,null,null,null,null,null,null,null,null,null,null,null,"Cape Tuxen"]
[null,null,"Mozambique",null,null,"Commonwealth Bay",null,null,null,null,null,null,null,null,null,null,null,null,null,"Cape Valentine"]
[null,null,"Myanmar",null,null,"Conception Point",null,null,null,null,null,null,null,null,null,null,null,null,null,"Cape Washington"]
[null,null,"Namibia",null,null,"Conesa Point",null,null,null,null,null,null,null,null,null,null,null,null,null,"Carcass Island"]
[null,null,"Nauru",null,null,"Cormorant Island",null,null,null,null,null,null,null,null,null,null,null,null,null,"Carcass Island - Leopard Beach"]
[null,null,"Nepal",null,null,"Coronation Island",null,null,null,null,null,null,null,null,null,null,null,null,null,"Carlini Base"]
[null,null,"Netherlands",null,null,"Coughtrey Peninsula",null,null,null,null,null,null,null,null,null,null,null,null,null,"Carlita Bay"]
[null,null,"Netherlands Antilles",null,null,"Coulman Island",null,null,null,null,null,null,null,null,null,null,null,null,null,"Carvajal Station"]
[null,null,"New Caledonia",null,null,"Covey Rocks",null,null,null,null,null,null,null,null,null,null,null,null,null,"Casabianca Island"]
[null,null,"New Zealand",null,null,"Croker Passage",null,null,null,null,null,null,null,null,null,null,null,null,null,"Casey Station"]
[null,null,"Nicaragua",null,null,"Crystal Hill",null,null,null,null,null,null,null,null,null,null,null,null,null,"Challenger Island"]
[null,null,"Niger",null,null,"Crystal Sound",null,null,null,null,null,null,null,null,null,null,null,null,null,"Chaplin Head"]
[null,null,"Nigeria",null,null,"Curtiss Bay",null,null,null,null,null,null,null,null,null,null,null,null,null,"Charles Point"]
[null,null,"Niue",null,null,"Cuverville Island",null,null,null,null,null,null,null,null,null,null,null,null,null,"Charlotte Bay"]
[null,null,"Norfolk Island",null,null,"D'Urville Monument",null,null,null,null,null,null,null,null,null,null,null,null,null,"Cheapman Bay"]
[null,null,"North Korea",null,null,"Dallmann Bay",null,null,null,null,null,null,null,null,null,null,null,null,null,"Chiloé Point"]
[null,null,"Northern Mariana Islands",null,null,"Damoy Point/Dorian Bay",null,null,null,null,null,null,null,null,null,null,null,null,null,"Chiriguano Bay"]
[null,null,"Norway",null,null,"Danco Island",null,null,null,null,null,null,null,null,null,null,null,null,null,"Christiania Islands"]
[null,null,"Oman",null,null,"Danger Islands",null,null,null,null,null,null,null,null,null,null,null,null,null,"Church Bay"]
[null,null,"Pakistan",null,null,"Dannebrog Islands",null,null,null,null,null,null,null,null,null,null,null,null,null,"Chutney Cove"]
[null,null,"Palau",null,null,"Darbel Bay",null,null,null,null,null,null,null,null,null,null,null,null,null,"Cierva Cove"]
[null,null,"Palestinian Territory",null,null,"Darboux Island",null,null,null,null,null,null,null,null,null,null,null,null,null,"Clear Island"]
[null,null,"Panama",null,null,"Darwin Island",null,null,null,null,null,null,null,null,null,null,null,null,null,"Coal Harbour"]
[null,null,"Papua New Guinea",null,null,"Davis Islands",null,null,null,null,null,null,null,null,null,null,null,null,null,"Cobalescou Island"]
[null,null,"Paraguay",null,null,"Davis Station",null,null,null,null,null,null,null,null,null,null,null,null,null,"Cobblers Cove - COB01"]
[null,null,"Peru",null,null,"Dawin Island",null,null,null,null,null,null,null,null,null,null,null,null,null,"Cockburn Island"]
[null,null,"Philippines",null,null,"Day Island",null,null,null,null,null,null,null,null,null,null,null,null,null,"Collins Bay"]
[null,null,"Pitcairn",null,null,"Debenham Islands",null,null,null,null,null,null,null,null,null,null,null,null,null,"Comb Ridge"]
[null,null,"Poland",null,null,"Decepcion Base",null,null,null,null,null,null,null,null,null,null,null,null,null,"Commonwealth Bay"]
[null,null,"Portugal",null,null,"Deception Island",null,null,null,null,null,null,null,null,null,null,null,null,null,"Conception Point"]
[null,null,"Puerto Rico",null,null,"Dee Island",null,null,null,null,null,null,null,null,null,null,null,null,null,"Conesa Point"]
[null,null,"Qatar",null,null,"DeLaca Island",null,null,null,null,null,null,null,null,null,null,null,null,null,"Cooper Bay Albatross Cove - COO02"]
[null,null,"Republic of the Congo",null,null,"Delaite Island",null,null,null,null,null,null,null,null,null,null,null,null,null,"Cooper Bay Centre Cove - COO01"]
[null,null,"Reunion",null,null,"Deloncle Bay",null,null,null,null,null,null,null,null,null,null,null,null,null,"Cooper Bay Chinstraps - COO05"]
[null,null,"Romania",null,null,"Demel Cove",null,null,null,null,null,null,null,null,null,null,null,null,null,"Cooper Bay Macaronis - COO03"]
[null,null,"Russia",null,null,"Desolation Island",null,null,null,null,null,null,null,null,null,null,null,null,null,"Cooper Bay Main Beach - COO04"]
[null,null,"Rwanda",null,null,"Detaille Island",null,null,null,null,null,null,null,null,null,null,null,null,null,"Cooper Island"]
[null,null,"Saint Helena",null,null,"Devil Island",null,null,null,null,null,null,null,null,null,null,null,null,null,"Cormorant Island"]
[null,null,"Saint Kitts and Nevis",null,null,"Discovery Bay",null,null,null,null,null,null,null,null,null,null,null,null,null,"Coronation Island"]
[null,null,"Saint Lucia",null,null,"Dobrowolski Island",null,null,null,null,null,null,null,null,null,null,null,null,null,"Coughtrey Peninsula"]
[null,null,"Saint Pierre and Miquelon",null,null,"Dogs Leg Fjord",null,null,null,null,null,null,null,null,null,null,null,null,null,"Coulman Island"]
[null,null,"Saint Vincent and the Grenadines",null,null,"Doumer Island",null,null,null,null,null,null,null,null,null,null,null,null,null,"Covey Rocks"]
[null,null,"Samoa",null,null,"Dream Island",null,null,null,null,null,null,null,null,null,null,null,null,null,"Croker Passage"]
[null,null,"San Marino",null,null,"Drescher Inlet",null,null,null,null,null,null,null,null,null,null,null,null,null,"Crystal Hill"]
[null,null,"Sao Tome and Principe",null,null,"Drygalski Ice Tongue",null,null,null,null,null,null,null,null,null,null,null,null,null,"Crystal Sound"]
[null,null,"Saudi Arabia",null,null,"Duchaylard Island",null,null,null,null,null,null,null,null,null,null,null,null,null,"Cumberland Bay West"]
[null,null,"Senegal",null,null,"Dumont d'Urville Station",null,null,null,null,null,null,null,null,null,null,null,null,null,"Curtiss Bay"]
[null,null,"Serbia",null,null,"Dundee Island",null,null,null,null,null,null,null,null,null,null,null,null,null,"Cuverville Island"]
[null,null,"Serbia and Montenegro",null,null,"Duse Bay",null,null,null,null,null,null,null,null,null,null,null,null,null,"D'Urville Monument"]
[null,null,"Seychelles",null,null,"Duseberg Buttress",null,null,null,null,null,null,null,null,null,null,null,null,null,"Dallmann Bay"]
[null,null,"Sierra Leone",null,null,"Duthiers Point",null,null,null,null,null,null,null,null,null,null,null,null,null,"Damien Bay"]
[null,null,"Singapore",null,null,"Duthoit Point",null,null,null,null,null,null,null,null,null,null,null,null,null,"Damoy Point/Dorian Bay"]
[null,null,"Slovakia",null,null,"Eagle Island",null,null,null,null,null,null,null,null,null,null,null,null,null,"Danco Island"]
[null,null,"Slovenia",null,null,"Eckener Point",null,null,null,null,null,null,null,null,null,null,null,null,null,"Danger Islands"]
[null,null,"Solomon Islands",null,null,"Edgell Bay",null,null,null,null,null,null,null,null,null,null,null,null,null,"Dannebrog Islands"]
[null,null,"Somalia",null,null,"Edinburgh Hill",null,null,null,null,null,null,null,null,null,null,null,null,null,"Darbel Bay"]
[null,null,"South Africa",null,null,"Edwards Point",null,null,null,null,null,null,null,null,null,null,null,null,null,"Darboux Island"]
[null,null,"South Korea",null,null,"Elephant Island",null,null,null,null,null,null,null,null,null,null,null,null,null,"Darwin"]
[null,null,"Spain",null,null,"Elephant Point",null,null,null,null,null,null,null,null,null,null,null,null,null,"Darwin Island"]
[null,null,"Sri Lanka",null,null,"Emona Anchorage",null,null,null,null,null,null,null,null,null,null,null,null,null,"Davis Islands"]
[null,null,"Sudan",null,null,"English Strait",null,null,null,null,null,null,null,null,null,null,null,null,null,"Davis Station"]
[null,null,"Suriname",null,null,"Enterprise Island",null,null,null,null,null,null,null,null,null,null,null,null,null,"Dawin Island"]
[null,null,"Svalbard and Jan Mayen",null,null,"Erebus and Terror Gulf",null,null,null,null,null,null,null,null,null,null,null,null,null,"Day Island"]
[null,null,"Swaziland",null,null,"Errera Channel",null,null,null,null,null,null,null,null,null,null,null,null,null,"Debenham Islands"]
[null,null,"Sweden",null,null,"Erskine Glacier",null,null,null,null,null,null,null,null,null,null,null,null,null,"Decepcion Base"]
[null,null,"Switzerland",null,null,"Esperanza Station",null,null,null,null,null,null,null,null,null,null,null,null,null,"Deception Island"]
[null,null,"Syria",null,null,"Extension Reef",null,null,null,null,null,null,null,null,null,null,null,null,null,"Dee Island"]
[null,null,"Taiwan",null,null,"Eyrie Bay",null,null,null,null,null,null,null,null,null,null,null,null,null,"DeLaca Island"]
[null,null,"Tajikistan",null,null,"False Bay",null,null,null,null,null,null,null,null,null,null,null,null,null,"Delaite Island"]
[null,null,"Tanzania",null,null,"False Island Point",null,null,null,null,null,null,null,null,null,null,null,null,null,"Deloncle Bay"]
[null,null,"Thailand",null,null,"Fanfare Island",null,null,null,null,null,null,null,null,null,null,null,null,null,"Demel Cove"]
[null,null,"Togo",null,null,"Fast Ice",null,null,null,null,null,null,null,null,null,null,null,null,null,"Desolation Island"]
[null,null,"Tokelau",null,null,"Ferguson Channel",null,null,null,null,null,null,null,null,null,null,null,null,null,"Detaille Island"]
[null,null,"Tonga",null,null,"Ferraz Station",null,null,null,null,null,null,null,null,null,null,null,null,null,"Devil Island"]
[null,null,"Trinidad and Tobago",null,null,"Field Cove",null,null,null,null,null,null,null,null,null,null,null,null,null,"Discovery Bay"]
[null,null,"Tunisia",null,null,"Fildes Peninsula",null,null,null,null,null,null,null,null,null,null,null,null,null,"Dobrowolski Island"]
[null,null,"Turkey",null,null,"Fish Islands",null,null,null,null,null,null,null,null,null,null,null,null,null,"Dogs Leg Fjord"]
[null,null,"Turkmenistan",null,null,"Flanders Bay",null,null,null,null,null,null,null,null,null,null,null,null,null,"Dot Island"]
[null,null,"Turks and Caicos Islands",null,null,"Fleurus Island",null,null,null,null,null,null,null,null,null,null,null,null,null,"Doubtful Bay"]
[null,null,"Tuvalu",null,null,"Flounder Island",null,null,null,null,null,null,null,null,null,null,null,null,null,"Doumer Island"]
[null,null,"U.S. Virgin Islands",null,null,"Flutter Rookery",null,null,null,null,null,null,null,null,null,null,null,null,null,"Dream Island"]
[null,null,"USA",null,null,"Forge Islands",null,null,null,null,null,null,null,null,null,null,null,null,null,"Drescher Inlet"]
[null,null,"Uganda",null,null,"Fort Point",null,null,null,null,null,null,null,null,null,null,null,null,null,"Drygalski Fjord - DRG01"]
[null,null,"Ukraine",null,null,"Fournier Bay",null,null,null,null,null,null,null,null,null,null,null,null,null,"Drygalski Ice Tongue"]
[null,null,"United Arab Emirates",null,null,"Foyn Harbor",null,null,null,null,null,null,null,null,null,null,null,null,null,"Duchaylard Island"]
[null,null,"United Kingdom",null,null,"Franklin Island",null,null,null,null,null,null,null,null,null,null,null,null,null,"Ducloz Head"]
[null,null,"United States Minor Outlying Islands",null,null,"Frei Station",null,null,null,null,null,null,null,null,null,null,null,null,null,"Dumont d'Urville Station"]
[null,null,"Uruguay",null,null,"French Passage",null,null,null,null,null,null,null,null,null,null,null,null,null,"Dundee Island"]
[null,null,"Uzbekistan",null,null,"Freud Passage",null,null,null,null,null,null,null,null,null,null,null,null,null,"Duse Bay"]
[null,null,"Vanuatu",null,null,"Fridtjof Island",null,null,null,null,null,null,null,null,null,null,null,null,null,"Duseberg Buttress"]
[null,null,"Vatican",null,null,"Fridtjof Sound",null,null,null,null,null,null,null,null,null,null,null,null,null,"Duthiers Point"]
[null,null,"Venezuela",null,null,"Fulmar Bay",null,null,null,null,null,null,null,null,null,null,null,null,null,"Duthoit Point"]
[null,null,"Vietnam",null,null,"Fumarole Bay",null,null,null,null,null,null,null,null,null,null,null,null,null,"Eagle Island"]
[null,null,"Wallis and Futuna",null,null,"Gabriel de Castilla Station",null,null,null,null,null,null,null,null,null,null,null,null,null,"Eckener Point"]
[null,null,"Western Sahara",null,null,"Galindez Island",null,null,null,null,null,null,null,null,null,null,null,null,null,"Edgell Bay"]
[null,null,"Yemen",null,null,"Gand Island",null,null,null,null,null,null,null,null,null,null,null,null,null,"Edinburgh Hill"]
[null,null,"Zambia",null,null,"Gaston Islands",null,null,null,null,null,null,null,null,null,null,null,null,null,"Edwards Point"]
[null,null,"Zimbabwe",null,null,"George VI Sound",null,null,null,null,null,null,null,null,null,null,null,null,null,"Elephant Cove"]
[null,null,null,null,null,"Gerlache Strait",null,null,null,null,null,null,null,null,null,null,null,null,null,"Elephant Island"]
[null,null,null,null,null,"Gibbs Island",null,null,null,null,null,null,null,null,null,null,null,null,null,"Elephant Point"]
[null,null,null,null,null,"Gin Cove",null,null,null,null,null,null,null,null,null,null,null,null,null,"Elsehul Inner Bay - ELS01"]
[null,null,null,null,null,"Girard Bay",null,null,null,null,null,null,null,null,null,null,null,null,null,"Elsehul Outer Bay - ELS02"]
[null,null,null,null,null,"Gosling Islands",null,null,null,null,null,null,null,null,null,null,null,null,null,"Emona Anchorage"]
[null,null,null,null,null,"Goudier Island",null,null,null,null,null,null,null,null,null,null,null,null,null,"English Strait"]
[null,null,null,null,null,"Gourdin Island",null,null,null,null,null,null,null,null,null,null,null,null,null,"Enterprise Island"]
[null,null,null,null,null,"Governor Islands",null,null,null,null,null,null,null,null,null,null,null,null,null,"Erebus and Terror Gulf"]
[null,null,null,null,null,"Graham Passage",null,null,null,null,null,null,null,null,null,null,null,null,null,"Errera Channel"]
[null,null,null,null,null,"Grandidier Channel",null,null,null,null,null,null,null,null,null,null,null,null,null,"Erskine Glacier"]
[null,null,null,null,null,"Great Wall Station",null,null,null,null,null,null,null,null,null,null,null,null,null,"Esperanza Station"]
[null,null,null,null,null,"Greenwich Island",null,null,null,null,null,null,null,null,null,null,null,null,null,"Extension Reef"]
[null,null,null,null,null,"Guebriant Islands",null,null,null,null,null,null,null,null,null,null,null,null,null,"Eyrie Bay"]
[null,null,null,null,null,"Guepratte Island",null,null,null,null,null,null,null,null,null,null,null,null,null,"Falkland Sound"]
[null,null,null,null,null,"Guyou Islands",null,null,null,null,null,null,null,null,null,null,null,null,null,"False Bay"]
[null,null,null,null,null,"Haddon Bay, Joinville Island",null,null,null,null,null,null,null,null,null,null,null,null,null,"False Island Point"]
[null,null,null,null,null,"Half Moon Island - Base Camara",null,null,null,null,null,null,null,null,null,null,null,null,null,"Fanfare Island"]
[null,null,null,null,null,"Half Moon Island - Chinstrap Colony",null,null,null,null,null,null,null,null,null,null,null,null,null,"Fast Ice"]
[null,null,null,null,null,"Halley Rookery",null,null,null,null,null,null,null,null,null,null,null,null,null,"Faustini Cove"]
[null,null,null,null,null,"Halley Station",null,null,null,null,null,null,null,null,null,null,null,null,null,"Ferguson Channel"]
[null,null,null,null,null,"Hannah Point",null,null,null,null,null,null,null,null,null,null,null,null,null,"Ferraz Station"]
[null,null,null,null,null,"Hanusse Bay",null,null,null,null,null,null,null,null,null,null,null,null,null,"Field Cove"]
[null,null,null,null,null,"Harrison Passage",null,null,null,null,null,null,null,null,null,null,null,null,null,"Fildes Peninsula"]
[null,null,null,null,null,"Harry Island",null,null,null,null,null,null,null,null,null,null,null,null,null,"Fish Islands"]
[null,null,null,null,null,"Heim Glacier",null,null,null,null,null,null,null,null,null,null,null,null,null,"Flanders Bay"]
[null,null,null,null,null,"Herbert Sound",null,null,null,null,null,null,null,null,null,null,null,null,null,"Fleurus Island"]
[null,null,null,null,null,"Heroina Island",null,null,null,null,null,null,null,null,null,null,null,null,null,"Flounder Island"]
[null,null,null,null,null,"Heywood Island",null,null,null,null,null,null,null,null,null,null,null,null,null,"Flutter Rookery"]
[null,null,null,null,null,"Hidden Bay",null,null,null,null,null,null,null,null,null,null,null,null,null,"Forge Islands"]
[null,null,null,null,null,"Holdfast Point",null,null,null,null,null,null,null,null,null,null,null,null,null,"Fort Point"]
[null,null,null,null,null,"Holtedahl Bay",null,null,null,null,null,null,null,null,null,null,null,null,null,"Fortuna Bay Ancorage Bay - FOR01"]
[null,null,null,null,null,"Hoodwink Island",null,null,null,null,null,null,null,null,null,null,null,null,null,"Fortuna Bay Whistle Cove Kings - FOR02"]
[null,null,null,null,null,"Hook Island",null,null,null,null,null,null,null,null,null,null,null,null,null,"Fournier Bay"]
[null,null,null,null,null,"Hope Bay",null,null,null,null,null,null,null,null,null,null,null,null,null,"Foyn Harbor"]
[null,null,null,null,null,"Horseshoe Island",null,null,null,null,null,null,null,null,null,null,null,null,null,"Franklin Island"]
[null,null,null,null,null,"Hovgaard Island",null,null,null,null,null,null,null,null,null,null,null,null,null,"Frei Station"]
[null,null,null,null,null,"Huemul Island",null,null,null,null,null,null,null,null,null,null,null,null,null,"French Passage"]
[null,null,null,null,null,"Hughes Bay",null,null,null,null,null,null,null,null,null,null,null,null,null,"Freud Passage"]
[null,null,null,null,null,"Humps Island",null,null,null,null,null,null,null,null,null,null,null,null,null,"Fridtjof Island"]
[null,null,null,null,null,"Hunt Island",null,null,null,null,null,null,null,null,null,null,null,null,null,"Fridtjof Sound"]
[null,null,null,null,null,"Hut Point",null,null,null,null,null,null,null,null,null,null,null,null,null,"Fulmar Bay"]
[null,null,null,null,null,"Hydrurga Rocks",null,null,null,null,null,null,null,null,null,null,null,null,null,"Fumarole Bay"]
[null,null,null,null,null,"IAATO Islands",null,null,null,null,null,null,null,null,null,null,null,null,null,"Gabriel de Castilla Station"]
[null,null,null,null,null,"Iceberg Point",null,null,null,null,null,null,null,null,null,null,null,null,null,"Galindez Island"]
[null,null,null,null,null,"Inexpressible Island",null,null,null,null,null,null,null,null,null,null,null,null,null,"Gand Island"]
[null,null,null,null,null,"Intercurrence Island",null,null,null,null,null,null,null,null,null,null,null,null,null,"Gaston Islands"]
[null,null,null,null,null,"Ironside Glacier",null,null,null,null,null,null,null,null,null,null,null,null,null,"George Island"]
[null,null,null,null,null,"Isla Pinguino",null,null,null,null,null,null,null,null,null,null,null,null,null,"George VI Sound"]
[null,null,null,null,null,"Jabet Peak",null,null,null,null,null,null,null,null,null,null,null,null,null,"Gerlache Strait"]
[null,null,null,null,null,"Jagged Island",null,null,null,null,null,null,null,null,null,null,null,null,null,"Gibbs Island"]
[null,null,null,null,null,"James Ross Island",null,null,null,null,null,null,null,null,null,null,null,null,null,"Gin Cove"]
[null,null,null,null,null,"Jang Bogo Station",null,null,null,null,null,null,null,null,null,null,null,null,null,"Girard Bay"]
[null,null,null,null,null,"Jenny Island",null,null,null,null,null,null,null,null,null,null,null,null,null,"Godthul - GOD01"]
[null,null,null,null,null,"John Beach",null,null,null,null,null,null,null,null,null,null,null,null,null,"Godthul Walk - GOD02"]
[null,null,null,null,null,"Jonassen Island",null,null,null,null,null,null,null,null,null,null,null,null,null,"Gold Harbour - GOL01"]
[null,null,null,null,null,"Jougla Point",null,null,null,null,null,null,null,null,null,null,null,null,null,"Gold Harbour Walk - GOL02"]
[null,null,null,null,null,"Juan Carlos Primero Station",null,null,null,null,null,null,null,null,null,null,null,null,null,"Goose Green"]
[null,null,null,null,null,"Karelin Islands",null,null,null,null,null,null,null,null,null,null,null,null,null,"Gosling Islands"]
[null,null,null,null,null,"Kayak Bay",null,null,null,null,null,null,null,null,null,null,null,null,null,"Goudier Island"]
[null,null,null,null,null,"Keith Glacier",null,null,null,null,null,null,null,null,null,null,null,null,null,"Gourdin Island"]
[null,null,null,null,null,"King George Bay",null,null,null,null,null,null,null,null,null,null,null,null,null,"Governor Islands"]
[null,null,null,null,null,"King Sejong Station",null,null,null,null,null,null,null,null,null,null,null,null,null,"Graham Passage"]
[null,null,null,null,null,"Kinnes Cove/Madder Cliffs",null,null,null,null,null,null,null,null,null,null,null,null,null,"Granat Point"]
[null,null,null,null,null,"Knobble Head",null,null,null,null,null,null,null,null,null,null,null,null,null,"Grand Jason"]
[null,null,null,null,null,"Lagarrigue Cove",null,null,null,null,null,null,null,null,null,null,null,null,null,"Grandidier Channel"]
[null,null,null,null,null,"Lagoon Island",null,null,null,null,null,null,null,null,null,null,null,null,null,"Grassholm Island"]
[null,null,null,null,null,"Laktionov Island",null,null,null,null,null,null,null,null,null,null,null,null,null,"Grave Cove"]
[null,null,null,null,null,"Lallemand Fjord",null,null,null,null,null,null,null,null,null,null,null,null,null,"Great Wall Station"]
[null,null,null,null,null,"Lampe Cove",null,null,null,null,null,null,null,null,null,null,null,null,null,"Green Harbour"]
[null,null,null,null,null,"Larrouy Island",null,null,null,null,null,null,null,null,null,null,null,null,null,"Greenwich Island"]
[null,null,null,null,null,"Laurie Island",null,null,null,null,null,null,null,null,null,null,null,null,null,"Grytviken - GRY01"]
[null,null,null,null,null,"Lautaro Island",null,null,null,null,null,null,null,null,null,null,null,null,null,"Guebriant Islands"]
[null,null,null,null,null,"Lavoisier Island",null,null,null,null,null,null,null,null,null,null,null,null,null,"Guepratte Island"]
[null,null,null,null,null,"Law-Racoviță Station",null,null,null,null,null,null,null,null,null,null,null,null,null,"Guyou Islands"]
[null,null,null,null,null,"Lefèvre-Utile Point",null,null,null,null,null,null,null,null,null,null,null,null,null,"Gypsy Cove"]
[null,null,null,null,null,"Leith Cove",null,null,null,null,null,null,null,null,null,null,null,null,null,"Haddon Bay, Joinville Island"]
[null,null,null,null,null,"Lemaire Channel",null,null,null,null,null,null,null,null,null,null,null,null,null,"Half Moon Island - Base Camara"]
[null,null,null,null,null,"Lemaire Island",null,null,null,null,null,null,null,null,null,null,null,null,null,"Half Moon Island - Chinstrap Colony"]
[null,null,null,null,null,"Leningradskaya Station",null,null,null,null,null,null,null,null,null,null,null,null,null,"Halley Rookery"]
[null,null,null,null,null,"Liege Island",null,null,null,null,null,null,null,null,null,null,null,null,null,"Halley Station"]
[null,null,null,null,null,"Lindblad Cove",null,null,null,null,null,null,null,null,null,null,null,null,null,"Hamilton Bay"]
[null,null,null,null,null,"Lion Sound",null,null,null,null,null,null,null,null,null,null,null,null,null,"Hannah Point"]
[null,null,null,null,null,"Lippmann Islands",null,null,null,null,null,null,null,null,null,null,null,null,null,"Hanusse Bay"]
[null,null,null,null,null,"Lister Cove",null,null,null,null,null,null,null,null,null,null,null,null,null,"Harrison Passage"]
[null,null,null,null,null,"Livingston Island",null,null,null,null,null,null,null,null,null,null,null,null,null,"Harry Island"]
[null,null,null,null,null,"Lockley Point",null,null,null,null,null,null,null,null,null,null,null,null,null,"Heim Glacier"]
[null,null,null,null,null,"Lord Bank",null,null,null,null,null,null,null,null,null,null,null,null,null,"Herbert Sound"]
[null,null,null,null,null,"Louise Island",null,null,null,null,null,null,null,null,null,null,null,null,null,"Hercules Bay Macaronis - HER01"]
[null,null,null,null,null,"Lystad Bay",null,null,null,null,null,null,null,null,null,null,null,null,null,"Hercules Bay Waterfall - HER 02"]
[null,null,null,null,null,"Macaroni Point",null,null,null,null,null,null,null,null,null,null,null,null,null,"Heroina Island"]
[null,null,null,null,null,"Mackellar Islands",null,null,null,null,null,null,null,null,null,null,null,null,null,"Heywood Island"]
[null,null,null,null,null,"Marambio Station",null,null,null,null,null,null,null,null,null,null,null,null,null,"Hidden Bay"]
[null,null,null,null,null,"Marguerite Bay",null,null,null,null,null,null,null,null,null,null,null,null,null,"Holdfast Point"]
[null,null,null,null,null,"Mario Zucchelli Station",null,null,null,null,null,null,null,null,null,null,null,null,null,"Holmestrand"]
[null,null,null,null,null,"Martel Inlet",null,null,null,null,null,null,null,null,null,null,null,null,null,"Holtedahl Bay"]
[null,null,null,null,null,"Martha Cove",null,null,null,null,null,null,null,null,null,null,null,null,null,"Hoodwink Island"]
[null,null,null,null,null,"Martin Islands",null,null,null,null,null,null,null,null,null,null,null,null,null,"Hook Island"]
[null,null,null,null,null,"Matthew Island",null,null,null,null,null,null,null,null,null,null,null,null,null,"Hope Bay"]
[null,null,null,null,null,"Mawson Station",null,null,null,null,null,null,null,null,null,null,null,null,null,"Horseshoe Island"]
[null,null,null,null,null,"Maxwell Bay, King George Island",null,null,null,null,null,null,null,null,null,null,null,null,null,"Hovgaard Island"]
[null,null,null,null,null,"McFarlane Strait",null,null,null,null,null,null,null,null,null,null,null,null,null,"Huemul Island"]
[null,null,null,null,null,"McMurdo Sound",null,null,null,null,null,null,null,null,null,null,null,null,null,"Hughes Bay"]
[null,null,null,null,null,"McMurdo Station",null,null,null,null,null,null,null,null,null,null,null,null,null,"Hummock Island"]
[null,null,null,null,null,"Melchior Base",null,null,null,null,null,null,null,null,null,null,null,null,null,"Humps Island"]
[null,null,null,null,null,"Melchior Islands",null,null,null,null,null,null,null,null,null,null,null,null,null,"Hunt Island"]
[null,null,null,null,null,"Mendel/Czech Station",null,null,null,null,null,null,null,null,null,null,null,null,null,"Husvik - HUS01"]
[null,null,null,null,null,"Mertz Glacier Tongue",null,null,null,null,null,null,null,null,null,null,null,null,null,"Hut Point"]
[null,null,null,null,null,"Metchnikoff Point",null,null,null,null,null,null,null,null,null,null,null,null,null,"Hydrurga Rocks"]
[null,null,null,null,null,"Miers Bluff",null,null,null,null,null,null,null,null,null,null,null,null,null,"IAATO Islands"]
[null,null,null,null,null,"Mikkelsen Harbor (D'Hainaut)",null,null,null,null,null,null,null,null,null,null,null,null,null,"Ice Fjord"]
[null,null,null,null,null,"Mirny Station",null,null,null,null,null,null,null,null,null,null,null,null,null,"Iceberg Point"]
[null,null,null,null,null,"Mist Rocks",null,null,null,null,null,null,null,null,null,null,null,null,null,"Inexpressible Island"]
[null,null,null,null,null,"Mitchell Cove, Robert Island",null,null,null,null,null,null,null,null,null,null,null,null,null,"Intercurrence Island"]
[null,null,null,null,null,"Molina Point",null,null,null,null,null,null,null,null,null,null,null,null,null,"Iris Bay"]
[null,null,null,null,null,"Monroe Island",null,null,null,null,null,null,null,null,null,null,null,null,null,"Ironside Glacier"]
[null,null,null,null,null,"Moot Point",null,null,null,null,null,null,null,null,null,null,null,null,null,"Isla Pinguino"]
[null,null,null,null,null,"Moreno Rock",null,null,null,null,null,null,null,null,null,null,null,null,null,"Jabet Peak"]
[null,null,null,null,null,"Moubray Bay",null,null,null,null,null,null,null,null,null,null,null,null,null,"Jagged Island"]
[null,null,null,null,null,"Mount Demaria",null,null,null,null,null,null,null,null,null,null,null,null,null,"James Ross Island"]
[null,null,null,null,null,"Mount Discovery",null,null,null,null,null,null,null,null,null,null,null,null,null,"Jane Point"]
[null,null,null,null,null,"Mount Double",null,null,null,null,null,null,null,null,null,null,null,null,null,"Jang Bogo Station"]
[null,null,null,null,null,"Mount Erebus Summit",null,null,null,null,null,null,null,null,null,null,null,null,null,"Jason Harbour - JAS01"]
[null,null,null,null,null,"Mount Rio Branco",null,null,null,null,null,null,null,null,null,null,null,null,null,"Jenny Island"]
[null,null,null,null,null,"Mount Shackleton",null,null,null,null,null,null,null,null,null,null,null,null,null,"John Beach"]
[null,null,null,null,null,"Mount Victoria",null,null,null,null,null,null,null,null,null,null,null,null,null,"Jonassen Island"]
[null,null,null,null,null,"Mount Williams",null,null,null,null,null,null,null,null,null,null,null,null,null,"Jossac Bight"]
[null,null,null,null,null,"Moureaux Islands",null,null,null,null,null,null,null,null,null,null,null,null,null,"Jougla Point"]
[null,null,null,null,null,"Muckle Bluff",null,null,null,null,null,null,null,null,null,null,null,null,null,"Juan Carlos Primero Station"]
[null,null,null,null,null,"Mudge Passage",null,null,null,null,null,null,null,null,null,null,null,null,null,"Jumbo Cove"]
[null,null,null,null,null,"Murray Harbour",null,null,null,null,null,null,null,null,null,null,null,null,null,"Karelin Islands"]
[null,null,null,null,null,"Mutton Cove",null,null,null,null,null,null,null,null,null,null,null,null,null,"Kayak Bay"]
[null,null,null,null,null,"Nansen Island",null,null,null,null,null,null,null,null,null,null,null,null,null,"Keith Glacier"]
[null,null,null,null,null,"Neko Harbor",null,null,null,null,null,null,null,null,null,null,null,null,null,"Kidney Cove"]
[null,null,null,null,null,"Nelson Island",null,null,null,null,null,null,null,null,null,null,null,null,null,"King Edward Point"]
[null,null,null,null,null,"Neny Bay",null,null,null,null,null,null,null,null,null,null,null,null,null,"King George Bay"]
[null,null,null,null,null,"Neny Fjord",null,null,null,null,null,null,null,null,null,null,null,null,null,"King Haakon Bay"]
[null,null,null,null,null,"Neptunes Bellows",null,null,null,null,null,null,null,null,null,null,null,null,null,"King Sejong Station"]
[null,null,null,null,null,"Neumayer Channel",null,null,null,null,null,null,null,null,null,null,null,null,null,"Kinnes Cove/Madder Cliffs"]
[null,null,null,null,null,"Neumayer Station",null,null,null,null,null,null,null,null,null,null,null,null,null,"Knobble Head"]
[null,null,null,null,null,"Neyt Point",null,null,null,null,null,null,null,null,null,null,null,null,null,"Konig Glacier Cumberland West Bay"]
[null,null,null,null,null,"North Point",null,null,null,null,null,null,null,null,null,null,null,null,null,"Lagarrigue Cove"]
[null,null,null,null,null,"Novo Airbase",null,null,null,null,null,null,null,null,null,null,null,null,null,"Lagoon Island"]
[null,null,null,null,null,"Novolazarevskaya Station",null,null,null,null,null,null,null,null,null,null,null,null,null,"Laktionov Island"]
[null,null,null,null,null,"O'Higgins Station",null,null,null,null,null,null,null,null,null,null,null,null,null,"Lallemand Fjord"]
[null,null,null,null,null,"Observation Hill",null,null,null,null,null,null,null,null,null,null,null,null,null,"Lampe Cove"]
[null,null,null,null,null,"Ohridski Station, Bulgarian Station",null,null,null,null,null,null,null,null,null,null,null,null,null,"Larrouy Island"]
[null,null,null,null,null,"Orcadas Station",null,null,null,null,null,null,null,null,null,null,null,null,null,"Larsen Harbour - LAR01"]
[null,null,null,null,null,"Orford Cliff",null,null,null,null,null,null,null,null,null,null,null,null,null,"Laurie Island"]
[null,null,null,null,null,"Orne Harbor",null,null,null,null,null,null,null,null,null,null,null,null,null,"Lautaro Island"]
[null,null,null,null,null,"Orne Islands",null,null,null,null,null,null,null,null,null,null,null,null,null,"Lavoisier Island"]
[null,null,null,null,null,"Palaver Point",null,null,null,null,null,null,null,null,null,null,null,null,null,"Law-Racoviță Station"]
[null,null,null,null,null,"Palmer Station",null,null,null,null,null,null,null,null,null,null,null,null,null,"Lefèvre-Utile Point"]
[null,null,null,null,null,"Paradise Harbor",null,null,null,null,null,null,null,null,null,null,null,null,null,"Leith Cove"]
[null,null,null,null,null,"Pastorizo Bay",null,null,null,null,null,null,null,null,null,null,null,null,null,"Leith Harbour - LEI02"]
[null,null,null,null,null,"Patagonia Bay",null,null,null,null,null,null,null,null,null,null,null,null,null,"Leith Harbour Walk - LEI01"]
[null,null,null,null,null,"Patella Island",null,null,null,null,null,null,null,null,null,null,null,null,null,"Lemaire Channel"]
[null,null,null,null,null,"Patriot Hills",null,null,null,null,null,null,null,null,null,null,null,null,null,"Lemaire Island"]
[null,null,null,null,null,"Paulet Island",null,null,null,null,null,null,null,null,null,null,null,null,null,"Leningradskaya Station"]
[null,null,null,null,null,"Peltier Channel",null,null,null,null,null,null,null,null,null,null,null,null,null,"Liege Island"]
[null,null,null,null,null,"Pendulum Cove",null,null,null,null,null,null,null,null,null,null,null,null,null,"Lindblad Cove"]
[null,null,null,null,null,"Penguin Island",null,null,null,null,null,null,null,null,null,null,null,null,null,"Lion Sound"]
[null,null,null,null,null,"Penguin Point",null,null,null,null,null,null,null,null,null,null,null,null,null,"Lippmann Islands"]
[null,null,null,null,null,"Penola Strait",null,null,null,null,null,null,null,null,null,null,null,null,null,"Lister Cove"]
[null,null,null,null,null,"Peon Peak",null,null,null,null,null,null,null,null,null,null,null,null,null,"Little Bense Island"]
[null,null,null,null,null,"Peter Glacier",null,null,null,null,null,null,null,null,null,null,null,null,null,"Little Moltke Harbour - ROY03"]
[null,null,null,null,null,"Peter I Island",null,null,null,null,null,null,null,null,null,null,null,null,null,"Livingston Island"]
[null,null,null,null,null,"Petermann Island",null,null,null,null,null,null,null,null,null,null,null,null,null,"Lockley Point"]
[null,null,null,null,null,"Petrel Cove",null,null,null,null,null,null,null,null,null,null,null,null,null,"Lord Bank"]
[null,null,null,null,null,"Phantom Coast",null,null,null,null,null,null,null,null,null,null,null,null,null,"Louise Island"]
[null,null,null,null,null,"Philippa Glacier",null,null,null,null,null,null,null,null,null,null,null,null,null,"Lystad Bay"]
[null,null,null,null,null,"Pitt Islands",null,null,null,null,null,null,null,null,null,null,null,null,null,"Macaroni Point"]
[null,null,null,null,null,"Pitt Point",null,null,null,null,null,null,null,null,null,null,null,null,null,"Mackellar Islands"]
[null,null,null,null,null,"Plata Passage",null,null,null,null,null,null,null,null,null,null,null,null,null,"Maiviken - MAI01"]
[null,null,null,null,null,"Platter Island",null,null,null,null,null,null,null,null,null,null,null,null,null,"Marambio Station"]
[null,null,null,null,null,"Pleneau Island",null,null,null,null,null,null,null,null,null,null,null,null,null,"Marguerite Bay"]
[null,null,null,null,null,"Point Martin",null,null,null,null,null,null,null,null,null,null,null,null,null,"Mario Zucchelli Station"]
[null,null,null,null,null,"Point Wild",null,null,null,null,null,null,null,null,null,null,null,null,null,"Martel Inlet"]
[null,null,null,null,null,"Poncet Point",null,null,null,null,null,null,null,null,null,null,null,null,null,"Martha Cove"]
[null,null,null,null,null,"Port Charcot",null,null,null,null,null,null,null,null,null,null,null,null,null,"Martin Islands"]
[null,null,null,null,null,"Port Foster",null,null,null,null,null,null,null,null,null,null,null,null,null,"Matthew Island"]
[null,null,null,null,null,"Portal Point",null,null,null,null,null,null,null,null,null,null,null,null,null,"Mawson Station"]
[null,null,null,null,null,"Possession Island",null,null,null,null,null,null,null,null,null,null,null,null,null,"Maxwell Bay, King George Island"]
[null,null,null,null,null,"Potter Cove",null,null,null,null,null,null,null,null,null,null,null,null,null,"McDonald Bay"]
[null,null,null,null,null,"Pourquoi Pas Island",null,null,null,null,null,null,null,null,null,null,null,null,null,"McFarlane Strait"]
[null,null,null,null,null,"Powell Island",null,null,null,null,null,null,null,null,null,null,null,null,null,"McMurdo Sound"]
[null,null,null,null,null,"President Head",null,null,null,null,null,null,null,null,null,null,null,null,null,"McMurdo Station"]
[null,null,null,null,null,"Primero de Mayo Bay",null,null,null,null,null,null,null,null,null,null,null,null,null,"Melchior Base"]
[null,null,null,null,null,"Prospect Point",null,null,null,null,null,null,null,null,null,null,null,null,null,"Melchior Islands"]
[null,null,null,null,null,"Pursuit Point",null,null,null,null,null,null,null,null,null,null,null,null,null,"Mendel/Czech Station"]
[null,null,null,null,null,"Quinton Point",null,null,null,null,null,null,null,null,null,null,null,null,null,"Mertz Glacier Tongue"]
[null,null,null,null,null,"Rabot Island",null,null,null,null,null,null,null,null,null,null,null,null,null,"Metchnikoff Point"]
[null,null,null,null,null,"Recess Cove",null,null,null,null,null,null,null,null,null,null,null,null,null,"Miers Bluff"]
[null,null,null,null,null,"Red Rock Ridge",null,null,null,null,null,null,null,null,null,null,null,null,null,"Mikkelsen Harbor (D'Hainaut)"]
[null,null,null,null,null,"Refuge Island",null,null,null,null,null,null,null,null,null,null,null,null,null,"Miles Bay"]
[null,null,null,null,null,"Refugio Gabriel de Castilla",null,null,null,null,null,null,null,null,null,null,null,null,null,"Mirny Station"]
[null,null,null,null,null,"Renaud Island",null,null,null,null,null,null,null,null,null,null,null,null,null,"Mist Rocks"]
[null,null,null,null,null,"Riiser-Larsen Ice Shelf",null,null,null,null,null,null,null,null,null,null,null,null,null,"Mitchell Cove, Robert Island"]
[null,null,null,null,null,"Robert Point",null,null,null,null,null,null,null,null,null,null,null,null,null,"Molina Point"]
[null,null,null,null,null,"Robertson Island",null,null,null,null,null,null,null,null,null,null,null,null,null,"Moltke Harbour - ROY02"]
[null,null,null,null,null,"Roget Rocks",null,null,null,null,null,null,null,null,null,null,null,null,null,"Monroe Island"]
[null,null,null,null,null,"Roman Four Promontory",null,null,null,null,null,null,null,null,null,null,null,null,null,"Montague Island"]
[null,null,null,null,null,"Ronge Island Ketley Point",null,null,null,null,null,null,null,null,null,null,null,null,null,"Moot Point"]
[null,null,null,null,null,"Ronge Island/Georges Point",null,null,null,null,null,null,null,null,null,null,null,null,null,"Moreno Rock"]
[null,null,null,null,null,"Ronge Island/Kerr Point",null,null,null,null,null,null,null,null,null,null,null,null,null,"Morsa Bay"]
[null,null,null,null,null,"Rosamel Island",null,null,null,null,null,null,null,null,null,null,null,null,null,"Moubray Bay"]
[null,null,null,null,null,"Rosenthal Islands",null,null,null,null,null,null,null,null,null,null,null,null,null,"Mount Demaria"]
[null,null,null,null,null,"Ross Ice Shelf",null,null,null,null,null,null,null,null,null,null,null,null,null,"Mount Discovery"]
[null,null,null,null,null,"Ross Sea",null,null,null,null,null,null,null,null,null,null,null,null,null,"Mount Double"]
[null,null,null,null,null,"Rossa Point",null,null,null,null,null,null,null,null,null,null,null,null,null,"Mount Erebus Summit"]
[null,null,null,null,null,"Rothera Station",null,null,null,null,null,null,null,null,null,null,null,null,null,"Mount Rio Branco"]
[null,null,null,null,null,"Rum Cove",null,null,null,null,null,null,null,null,null,null,null,null,null,"Mount Shackleton"]
[null,null,null,null,null,"Rush Glacier",null,null,null,null,null,null,null,null,null,null,null,null,null,"Mount Victoria"]
[null,null,null,null,null,"Sable Pinnacles",null,null,null,null,null,null,null,null,null,null,null,null,null,"Mount Williams"]
[null,null,null,null,null,"Sabrina Island",null,null,null,null,null,null,null,null,null,null,null,null,null,"Moureaux Islands"]
[null,null,null,null,null,"Sabrina Island, Balleny Islands",null,null,null,null,null,null,null,null,null,null,null,null,null,"Mouse Cove"]
[null,null,null,null,null,"Sadler Point",null,null,null,null,null,null,null,null,null,null,null,null,null,"Muckle Bluff"]
[null,null,null,null,null,"Sally Rocks",null,null,null,null,null,null,null,null,null,null,null,null,null,"Mudge Passage"]
[null,null,null,null,null,"Salvesen Cove",null,null,null,null,null,null,null,null,null,null,null,null,null,"Muller Point"]
[null,null,null,null,null,"San Martin Station",null,null,null,null,null,null,null,null,null,null,null,null,null,"Murray Harbour"]
[null,null,null,null,null,"Sandefjord Bay",null,null,null,null,null,null,null,null,null,null,null,null,null,"Mutton Cove"]
[null,null,null,null,null,"Santos Peak",null,null,null,null,null,null,null,null,null,null,null,null,null,"Nansen Island"]
[null,null,null,null,null,"Schoeling Glacier",null,null,null,null,null,null,null,null,null,null,null,null,null,"Narval Bay"]
[null,null,null,null,null,"Scholander Island",null,null,null,null,null,null,null,null,null,null,null,null,null,"Neko Harbor"]
[null,null,null,null,null,"Schollaert Channel",null,null,null,null,null,null,null,null,null,null,null,null,null,"Nelson Island"]
[null,null,null,null,null,"Scott Base",null,null,null,null,null,null,null,null,null,null,null,null,null,"Neny Bay"]
[null,null,null,null,null,"Scott Island",null,null,null,null,null,null,null,null,null,null,null,null,null,"Neny Fjord"]
[null,null,null,null,null,"Screen Islands",null,null,null,null,null,null,null,null,null,null,null,null,null,"Neptunes Bellows"]
[null,null,null,null,null,"Seal Islands",null,null,null,null,null,null,null,null,null,null,null,null,null,"Neumayer Channel"]
[null,null,null,null,null,"Security Bay",null,null,null,null,null,null,null,null,null,null,null,null,null,"Neumayer Station"]
[null,null,null,null,null,"Seymour Island",null,null,null,null,null,null,null,null,null,null,null,null,null,"New Island - North Harbour"]
[null,null,null,null,null,"Shackleton Ice Shelf",null,null,null,null,null,null,null,null,null,null,null,null,null,"New Island - Ship Harbour"]
[null,null,null,null,null,"Sheldon Glacier",null,null,null,null,null,null,null,null,null,null,null,null,null,"New Island - South Harbour"]
[null,null,null,null,null,"Shepard Island",null,null,null,null,null,null,null,null,null,null,null,null,null,"New Island Settlement"]
[null,null,null,null,null,"Shingle Cove",null,null,null,null,null,null,null,null,null,null,null,null,null,"Neyt Point"]
[null,null,null,null,null,"Shirley Island",null,null,null,null,null,null,null,null,null,null,null,null,null,"Nilse Hullet"]
[null,null,null,null,null,"Signy Island Station",null,null,null,null,null,null,null,null,null,null,null,null,null,"Nordenskjold Glacier - NOR01"]
[null,null,null,null,null,"Sikorsky Glacier",null,null,null,null,null,null,null,null,null,null,null,null,null,"North Point"]
[null,null,null,null,null,"Siple Island",null,null,null,null,null,null,null,null,null,null,null,null,null,"Novo Airbase"]
[null,null,null,null,null,"Skog Bay",null,null,null,null,null,null,null,null,null,null,null,null,null,"Novolazarevskaya Station"]
[null,null,null,null,null,"Skontorp Cove",null,null,null,null,null,null,null,null,null,null,null,null,null,"O'Higgins Station"]
[null,null,null,null,null,"Skottsberg Point",null,null,null,null,null,null,null,null,null,null,null,null,null,"Observation Hill"]
[null,null,null,null,null,"Skua Island",null,null,null,null,null,null,null,null,null,null,null,null,null,"Ocean Harbour - OCE01"]
[null,null,null,null,null,"Slumkey Island",null,null,null,null,null,null,null,null,null,null,null,null,null,"Ocean Harbour Walk - OCE02"]
[null,null,null,null,null,"Small Island",null,null,null,null,null,null,null,null,null,null,null,null,null,"Ohridski Station, Bulgarian Station"]
[null,null,null,null,null,"Smiggers Island",null,null,null,null,null,null,null,null,null,null,null,null,null,"Olsen Valley Walk - HUS02"]
[null,null,null,null,null,"Snow Hill Island - Emperor Penguin Colony",null,null,null,null,null,null,null,null,null,null,null,null,null,"Orcadas Station"]
[null,null,null,null,null,"Snow Hill Island - Nordenskjold's Hut",null,null,null,null,null,null,null,null,null,null,null,null,null,"Orford Cliff"]
[null,null,null,null,null,"Snow Hill Island- Ice Edge Landing",null,null,null,null,null,null,null,null,null,null,null,null,null,"Orne Harbor"]
[null,null,null,null,null,"Snow Island",null,null,null,null,null,null,null,null,null,null,null,null,null,"Orne Islands"]
[null,null,null,null,null,"Solvay Mountains",null,null,null,null,null,null,null,null,null,null,null,null,null,"Palaver Point"]
[null,null,null,null,null,"Sophie Rocks",null,null,null,null,null,null,null,null,null,null,null,null,null,"Palmer Station"]
[null,null,null,null,null,"Sorge Island",null,null,null,null,null,null,null,null,null,null,null,null,null,"Paradise Harbor"]
[null,null,null,null,null,"South Bay/Johnsons Dock",null,null,null,null,null,null,null,null,null,null,null,null,null,"Pastorizo Bay"]
[null,null,null,null,null,"South Orkney Islands",null,null,null,null,null,null,null,null,null,null,null,null,null,"Patagonia Bay"]
[null,null,null,null,null,"South Pole",null,null,null,null,null,null,null,null,null,null,null,null,null,"Patella Island"]
[null,null,null,null,null,"South Shetland Islands",null,null,null,null,null,null,null,null,null,null,null,null,null,"Patriot Hills"]
[null,null,null,null,null,"Spert Island",null,null,null,null,null,null,null,null,null,null,null,null,null,"Paulet Island"]
[null,null,null,null,null,"Spigot Peak",null,null,null,null,null,null,null,null,null,null,null,null,null,"Pebble Island"]
[null,null,null,null,null,"Splettstoesser Glacier",null,null,null,null,null,null,null,null,null,null,null,null,null,"Peggotty Bluff - KIN02"]
[null,null,null,null,null,"Spring Point",null,null,null,null,null,null,null,null,null,null,null,null,null,"Peltier Channel"]
[null,null,null,null,null,"St. Kliment Ohridski Base - Bulgaria",null,null,null,null,null,null,null,null,null,null,null,null,null,"Pendulum Cove"]
[null,null,null,null,null,"Stancomb Wills Rookery",null,null,null,null,null,null,null,null,null,null,null,null,null,"Penguin Island"]
[null,null,null,null,null,"Stanley Patch",null,null,null,null,null,null,null,null,null,null,null,null,null,"Penguin Point"]
[null,null,null,null,null,"Stanley Shoal",null,null,null,null,null,null,null,null,null,null,null,null,null,"Penola Strait"]
[null,null,null,null,null,"Stefan Ice Piedmont",null,null,null,null,null,null,null,null,null,null,null,null,null,"Peon Peak"]
[null,null,null,null,null,"Steinheil Point",null,null,null,null,null,null,null,null,null,null,null,null,null,"Peter Glacier"]
[null,null,null,null,null,"Sterneck Island",null,null,null,null,null,null,null,null,null,null,null,null,null,"Peter I Island"]
[null,null,null,null,null,"Stonington Island",null,null,null,null,null,null,null,null,null,null,null,null,null,"Petermann Island"]
[null,null,null,null,null,"Stony Point",null,null,null,null,null,null,null,null,null,null,null,null,null,"Petrel Cove"]
[null,null,null,null,null,"Straggle Islands",null,null,null,null,null,null,null,null,null,null,null,null,null,"Phantom Coast"]
[null,null,null,null,null,"Suárez Glacier",null,null,null,null,null,null,null,null,null,null,null,null,null,"Philippa Glacier"]
[null,null,null,null,null,"Tadpole Island",null,null,null,null,null,null,null,null,null,null,null,null,null,"Pitt Islands"]
[null,null,null,null,null,"Tay Head",null,null,null,null,null,null,null,null,null,null,null,null,null,"Pitt Point"]
[null,null,null,null,null,"Taylor Valley/Canada Glacier",null,null,null,null,null,null,null,null,null,null,null,null,null,"Plata Passage"]
[null,null,null,null,null,"Telefon Bay",null,null,null,null,null,null,null,null,null,null,null,null,null,"Platter Island"]
[null,null,null,null,null,"Terra Firma Islands",null,null,null,null,null,null,null,null,null,null,null,null,null,"Pleneau Island"]
[null,null,null,null,null,"Terra Nova Bay",null,null,null,null,null,null,null,null,null,null,null,null,null,"Point Martin"]
[null,null,null,null,null,"Terrada Point",null,null,null,null,null,null,null,null,null,null,null,null,null,"Point Wild"]
[null,null,null,null,null,"Tetra Rocks",null,null,null,null,null,null,null,null,null,null,null,null,null,"Poncet Point"]
[null,null,null,null,null,"Tetrad Islands",null,null,null,null,null,null,null,null,null,null,null,null,null,"Port Charcot"]
[null,null,null,null,null,"The Gullet",null,null,null,null,null,null,null,null,null,null,null,null,null,"Port Egmont"]
[null,null,null,null,null,"The Naze",null,null,null,null,null,null,null,null,null,null,null,null,null,"Port Foster"]
[null,null,null,null,null,"The Snares",null,null,null,null,null,null,null,null,null,null,null,null,null,"Port Howard"]
[null,null,null,null,null,"The Triplets",null,null,null,null,null,null,null,null,null,null,null,null,null,"Portal Point"]
[null,null,null,null,null,"The Waifs",null,null,null,null,null,null,null,null,null,null,null,null,null,"Possession Bay Brighton Beach - POS01"]
[null,null,null,null,null,"Thurston Island",null,null,null,null,null,null,null,null,null,null,null,null,null,"Possession Bay Brown Point - POS02"]
[null,null,null,null,null,"Torgersen Island",null,null,null,null,null,null,null,null,null,null,null,null,null,"Possession Island"]
[null,null,null,null,null,"Tourmaline Plateau",null,null,null,null,null,null,null,null,null,null,null,null,null,"Potter Cove"]
[null,null,null,null,null,"Tournachon Peak",null,null,null,null,null,null,null,null,null,null,null,null,null,"Pourquoi Pas Island"]
[null,null,null,null,null,"Triangle Point",null,null,null,null,null,null,null,null,null,null,null,null,null,"Powell Island"]
[null,null,null,null,null,"Trinity Island",null,null,null,null,null,null,null,null,null,null,null,null,null,"President Head"]
[null,null,null,null,null,"Trinity Peninsula",null,null,null,null,null,null,null,null,null,null,null,null,null,"Primero de Mayo Bay"]
[null,null,null,null,null,"Troll Airfield",null,null,null,null,null,null,null,null,null,null,null,null,null,"Prince Olav Harbour - POH01"]
[null,null,null,null,null,"Truant Island",null,null,null,null,null,null,null,null,null,null,null,null,null,"Prion Island - PRI01"]
[null,null,null,null,null,"Turret Point",null,null,null,null,null,null,null,null,null,null,null,null,null,"Prospect Point"]
[null,null,null,null,null,"Two Hummock Island",null,null,null,null,null,null,null,null,null,null,null,null,null,"Pursuit Point"]
[null,null,null,null,null,"Unger Island",null,null,null,null,null,null,null,null,null,null,null,null,null,"Quinton Point"]
[null,null,null,null,null,"Union Glacier",null,null,null,null,null,null,null,null,null,null,null,null,null,"Rabot Island"]
[null,null,null,null,null,"Unnamed Emperor Rookery",null,null,null,null,null,null,null,null,null,null,null,null,null,"Recess Cove"]
[null,null,null,null,null,"Uruguay Island",null,null,null,null,null,null,null,null,null,null,null,null,null,"Red Rock Ridge"]
[null,null,null,null,null,"Useful Island",null,null,null,null,null,null,null,null,null,null,null,null,null,"Refuge Island"]
[null,null,null,null,null,"Valdivia Point",null,null,null,null,null,null,null,null,null,null,null,null,null,"Refugio Gabriel de Castilla"]
[null,null,null,null,null,"Vedel Islands",null,null,null,null,null,null,null,null,null,null,null,null,null,"Renaud Island"]
[null,null,null,null,null,"Vega Island",null,null,null,null,null,null,null,null,null,null,null,null,null,"Right Whale Bay - RIG01"]
[null,null,null,null,null,"Vernadsky Station",null,null,null,null,null,null,null,null,null,null,null,null,null,"Riiser-Larsen Ice Shelf"]
[null,null,null,null,null,"Victor Hugo Island",null,null,null,null,null,null,null,null,null,null,null,null,null,"Robert Point"]
[null,null,null,null,null,"Vieugue Island",null,null,null,null,null,null,null,null,null,null,null,null,null,"Robertson Island"]
[null,null,null,null,null,"View Point",null,null,null,null,null,null,null,null,null,null,null,null,null,"Roget Rocks"]
[null,null,null,null,null,"Vortex Island",null,null,null,null,null,null,null,null,null,null,null,null,null,"Rogged Bay"]
[null,null,null,null,null,"Waddington Bay",null,null,null,null,null,null,null,null,null,null,null,null,null,"Roman Four Promontory"]
[null,null,null,null,null,"Walker Bay (by Hannah Point)",null,null,null,null,null,null,null,null,null,null,null,null,null,"Ronge Island Ketley Point"]
[null,null,null,null,null,"Wandel Peak",null,null,null,null,null,null,null,null,null,null,null,null,null,"Ronge Island/Georges Point"]
[null,null,null,null,null,"Waterboat Point/Gonzalez Videla Station",null,null,null,null,null,null,null,null,null,null,null,null,null,"Ronge Island/Kerr Point"]
[null,null,null,null,null,"Watkins Island",null,null,null,null,null,null,null,null,null,null,null,null,null,"Rookery Point Walk - ROO01"]
[null,null,null,null,null,"Wauwermans Islands",null,null,null,null,null,null,null,null,null,null,null,null,null,"Rosamel Island"]
[null,null,null,null,null,"Webb Island",null,null,null,null,null,null,null,null,null,null,null,null,null,"Rosenthal Islands"]
[null,null,null,null,null,"Weddell Sea",null,null,null,null,null,null,null,null,null,null,null,null,null,"Rosita Harbour - ROS01"]
[null,null,null,null,null,"West Antarctic Ice Sheet",null,null,null,null,null,null,null,null,null,null,null,null,null,"Ross Ice Shelf"]
[null,null,null,null,null,"Whalers Bay",null,null,null,null,null,null,null,null,null,null,null,null,null,"Ross Sea"]
[null,null,null,null,null,"Wiggins Glacier",null,null,null,null,null,null,null,null,null,null,null,null,null,"Rossa Point"]
[null,null,null,null,null,"Wilhelmina Bay",null,null,null,null,null,null,null,null,null,null,null,null,null,"Rothera Station"]
[null,null,null,null,null,"Wilson Piedmont Glacier",null,null,null,null,null,null,null,null,null,null,null,null,null,"Royal Bay Kings - ROY04"]
[null,null,null,null,null,"Winter Island",null,null,null,null,null,null,null,null,null,null,null,null,null,"Royal Bay Koppen Point - ROY01"]
[null,null,null,null,null,"Wohlschlag Bay",null,null,null,null,null,null,null,null,null,null,null,null,null,"Royal Bay Macaronis - ROY05"]
[null,null,null,null,null,"Wolfs Fang Runway",null,null,null,null,null,null,null,null,null,null,null,null,null,"Rum Cove"]
[null,null,null,null,null,"Woolpack Island",null,null,null,null,null,null,null,null,null,null,null,null,null,"Rush Glacier"]
[null,null,null,null,null,"Wordie Hut",null,null,null,null,null,null,null,null,null,null,null,null,null,"Sable Pinnacles"]
[null,null,null,null,null,"Wyatt Earp Islands",null,null,null,null,null,null,null,null,null,null,null,null,null,"Sabrina Island"]
[null,null,null,null,null,"Wylie Bay",null,null,null,null,null,null,null,null,null,null,null,null,null,"Sabrina Island, Balleny Islands"]
[null,null,null,null,null,"Yalour Islands",null,null,null,null,null,null,null,null,null,null,null,null,null,"Saddle Island"]
[null,null,null,null,null,"Yankee Harbor",null,null,null,null,null,null,null,null,null,null,null,null,null,"Sadler Point"]
[null,null,null,null,null,"Yelcho Point",null,null,null,null,null,null,null,null,null,null,null,null,null,"Salisbury Plain - SAL01"]
[null,null,null,null,null,"Young Island",null,null,null,null,null,null,null,null,null,null,null,null,null,"Sally Rocks"]
[null,null,null,null,null,"Zhongshan Station",null,null,null,null,null,null,null,null,null,null,null,null,null,"Salvesen Cove"]
[null,null,null,null,null,"Zigzag Island",null,null,null,null,null,null,null,null,null,null,null,null,null,"San Martin Station"]
[null,null,null,null,null,null,null,null,null,null,null,null,null,null,null,null,null,null,null,"Sandebugten Walk - GOD03"]
[null,null,null,null,null,null,null,null,null,null,null,null,null,null,null,null,null,null,null,"Sandebukten"]
[null,null,null,null,null,null,null,null,null,null,null,null,null,null,null,null,null,null,null,"Sandefjord Bay"]
[null,null,null,null,null,null,null,null,null,null,null,null,null,null,null,null,null,null,null,"Santos Peak"]
[null,null,null,null,null,null,null,null,null,null,null,null,null,null,null,null,null,null,null,"Saunders Island - Neck"]
[null,null,null,null,null,null,null,null,null,null,null,null,null,null,null,null,null,null,null,"Saunders Island - Settlement"]
[null,null,null,null,null,null,null,null,null,null,null,null,null,null,null,null,null,null,null,"Saunders Island - South Sandwich Islands"]
[null,null,null,null,null,null,null,null,null,null,null,null,null,null,null,null,null,null,null,"Saunders Island - The Rookery"]
[null,null,null,null,null,null,null,null,null,null,null,null,null,null,null,null,null,null,null,"Schlieper Bay"]
[null,null,null,null,null,null,null,null,null,null,null,null,null,null,null,null,null,null,null,"Schoeling Glacier"]
[null,null,null,null,null,null,null,null,null,null,null,null,null,null,null,null,null,null,null,"Scholander Island"]
[null,null,null,null,null,null,null,null,null,null,null,null,null,null,null,null,null,null,null,"Schollaert Channel"]
[null,null,null,null,null,null,null,null,null,null,null,null,null,null,null,null,null,null,null,"Scott Base"]
[null,null,null,null,null,null,null,null,null,null,null,null,null,null,null,null,null,null,null,"Scott Island"]
[null,null,null,null,null,null,null,null,null,null,null,null,null,null,null,null,null,null,null,"Screen Islands"]
[null,null,null,null,null,null,null,null,null,null,null,null,null,null,null,null,null,null,null,"Sea Leopard Fjord"]
[null,null,null,null,null,null,null,null,null,null,null,null,null,null,null,null,null,null,null,"Sea Lion Island"]
[null,null,null,null,null,null,null,null,null,null,null,null,null,null,null,null,null,null,null,"Seal Islands"]
[null,null,null,null,null,null,null,null,null,null,null,null,null,null,null,null,null,null,null,"Second Passage - Northern Landing"]
[null,null,null,null,null,null,null,null,null,null,null,null,null,null,null,null,null,null,null,"Security Bay"]
[null,null,null,null,null,null,null,null,null,null,null,null,null,null,null,null,null,null,null,"Seymour Island"]
[null,null,null,null,null,null,null,null,null,null,null,null,null,null,null,null,null,null,null,"Shackleton Ice Shelf"]
[null,null,null,null,null,null,null,null,null,null,null,null,null,null,null,null,null,null,null,"Shackleton Walk (Fortuna/Stromness) - FOR03"]
[null,null,null,null,null,null,null,null,null,null,null,null,null,null,null,null,null,null,null,"Shag Rocks"]
[null,null,null,null,null,null,null,null,null,null,null,null,null,null,null,null,null,null,null,"Sheldon Glacier"]
[null,null,null,null,null,null,null,null,null,null,null,null,null,null,null,null,null,null,null,"Shepard Island"]
[null,null,null,null,null,null,null,null,null,null,null,null,null,null,null,null,null,null,null,"Shingle Cove"]
[null,null,null,null,null,null,null,null,null,null,null,null,null,null,null,null,null,null,null,"Shirley Island"]
[null,null,null,null,null,null,null,null,null,null,null,null,null,null,null,null,null,null,null,"Signy Island Station"]
[null,null,null,null,null,null,null,null,null,null,null,null,null,null,null,null,null,null,null,"Sikorsky Glacier"]
[null,null,null,null,null,null,null,null,null,null,null,null,null,null,null,null,null,null,null,"Siple Island"]
[null,null,null,null,null,null,null,null,null,null,null,null,null,null,null,null,null,null,null,"Skog Bay"]
[null,null,null,null,null,null,null,null,null,null,null,null,null,null,null,null,null,null,null,"Skontorp Cove"]
[null,null,null,null,null,null,null,null,null,null,null,null,null,null,null,null,null,null,null,"Skottsberg Point"]
[null,null,null,null,null,null,null,null,null,null,null,null,null,null,null,null,null,null,null,"Skua Bay"]
[null,null,null,null,null,null,null,null,null,null,null,null,null,null,null,null,null,null,null,"Skua Island"]
[null,null,null,null,null,null,null,null,null,null,null,null,null,null,null,null,null,null,null,"Slumkey Island"]
[null,null,null,null,null,null,null,null,null,null,null,null,null,null,null,null,null,null,null,"Smaaland"]
[null,null,null,null,null,null,null,null,null,null,null,null,null,null,null,null,null,null,null,"Small Island"]
[null,null,null,null,null,null,null,null,null,null,null,null,null,null,null,null,null,null,null,"Smiggers Island"]
[null,null,null,null,null,null,null,null,null,null,null,null,null,null,null,null,null,null,null,"Snow Hill Island - Emperor Penguin Colony"]
[null,null,null,null,null,null,null,null,null,null,null,null,null,null,null,null,null,null,null,"Snow Hill Island - Nordenskjold's Hut"]
[null,null,null,null,null,null,null,null,null,null,null,null,null,null,null,null,null,null,null,"Snow Hill Island- Ice Edge Landing"]
[null,null,null,null,null,null,null,null,null,null,null,null,null,null,null,null,null,null,null,"Snow Island"]
[null,null,null,null,null,null,null,null,null,null,null,null,null,null,null,null,null,null,null,"Solvay Mountains"]
[null,null,null,null,null,null,null,null,null,null,null,null,null,null,null,null,null,null,null,"Sophie Rocks"]
[null,null,null,null,null,null,null,null,null,null,null,null,null,null,null,null,null,null,null,"Sorge Island"]
[null,null,null,null,null,null,null,null,null,null,null,null,null,null,null,null,null,null,null,"Sorling Valley"]
[null,null,null,null,null,null,null,null,null,null,null,null,null,null,null,null,null,null,null,"Sorn and Bernt islands"]
[null,null,null,null,null,null,null,null,null,null,null,null,null,null,null,null,null,null,null,"South Bay/Johnsons Dock"]
[null,null,null,null,null,null,null,null,null,null,null,null,null,null,null,null,null,null,null,"South Orkney Islands"]
[null,null,null,null,null,null,null,null,null,null,null,null,null,null,null,null,null,null,null,"South Pole"]
[null,null,null,null,null,null,null,null,null,null,null,null,null,null,null,null,null,null,null,"South Sandwich Islands"]
[null,null,null,null,null,null,null,null,null,null,null,null,null,null,null,null,null,null,null,"South Shetland Islands"]
[null,null,null,null,null,null,null,null,null,null,null,null,null,null,null,null,null,null,null,"Southern Thule"]
[null,null,null,null,null,null,null,null,null,null,null,null,null,null,null,null,null,null,null,"Spert Island"]
[null,null,null,null,null,null,null,null,null,null,null,null,null,null,null,null,null,null,null,"Spigot Peak"]
[null,null,null,null,null,null,null,null,null,null,null,null,null,null,null,null,null,null,null,"Splettstoesser Glacier"]
[null,null,null,null,null,null,null,null,null,null,null,null,null,null,null,null,null,null,null,"Spring Point"]
[null,null,null,null,null,null,null,null,null,null,null,null,null,null,null,null,null,null,null,"St. Andrews Bay - STA01"]
[null,null,null,null,null,null,null,null,null,null,null,null,null,null,null,null,null,null,null,"St. Kliment Ohridski Base - Bulgaria"]
[null,null,null,null,null,null,null,null,null,null,null,null,null,null,null,null,null,null,null,"Stancomb Wills Rookery"]
[null,null,null,null,null,null,null,null,null,null,null,null,null,null,null,null,null,null,null,"Stanley"]
[null,null,null,null,null,null,null,null,null,null,null,null,null,null,null,null,null,null,null,"Stanley Patch"]
[null,null,null,null,null,null,null,null,null,null,null,null,null,null,null,null,null,null,null,"Stanley Shoal"]
[null,null,null,null,null,null,null,null,null,null,null,null,null,null,null,null,null,null,null,"Start Point"]
[null,null,null,null,null,null,null,null,null,null,null,null,null,null,null,null,null,null,null,"Steeple Jason"]
[null,null,null,null,null,null,null,null,null,null,null,null,null,null,null,null,null,null,null,"Stefan Ice Piedmont"]
[null,null,null,null,null,null,null,null,null,null,null,null,null,null,null,null,null,null,null,"Steinheil Point"]
[null,null,null,null,null,null,null,null,null,null,null,null,null,null,null,null,null,null,null,"Sterneck Island"]
[null,null,null,null,null,null,null,null,null,null,null,null,null,null,null,null,null,null,null,"Stonington Island"]
[null,null,null,null,null,null,null,null,null,null,null,null,null,null,null,null,null,null,null,"Stony Point"]
[null,null,null,null,null,null,null,null,null,null,null,null,null,null,null,null,null,null,null,"Straggle Islands"]
[null,null,null,null,null,null,null,null,null,null,null,null,null,null,null,null,null,null,null,"Stromness - STR01"]
[null,null,null,null,null,null,null,null,null,null,null,null,null,null,null,null,null,null,null,"Suárez Glacier"]
[null,null,null,null,null,null,null,null,null,null,null,null,null,null,null,null,null,null,null,"Tadpole Island"]
[null,null,null,null,null,null,null,null,null,null,null,null,null,null,null,null,null,null,null,"Tay Head"]
[null,null,null,null,null,null,null,null,null,null,null,null,null,null,null,null,null,null,null,"Taylor Valley/Canada Glacier"]
[null,null,null,null,null,null,null,null,null,null,null,null,null,null,null,null,null,null,null,"Telefon Bay"]
[null,null,null,null,null,null,null,null,null,null,null,null,null,null,null,null,null,null,null,"Tern Island"]
[null,null,null,null,null,null,null,null,null,null,null,null,null,null,null,null,null,null,null,"Terra Firma Islands"]
[null,null,null,null,null,null,null,null,null,null,null,null,null,null,null,null,null,null,null,"Terra Nova Bay"]
[null,null,null,null,null,null,null,null,null,null,null,null,null,null,null,null,null,null,null,"Terrada Point"]
[null,null,null,null,null,null,null,null,null,null,null,null,null,null,null,null,null,null,null,"Tetra Rocks"]
[null,null,null,null,null,null,null,null,null,null,null,null,null,null,null,null,null,null,null,"Tetrad Islands"]
[null,null,null,null,null,null,null,null,null,null,null,null,null,null,null,null,null,null,null,"The Gullet"]
[null,null,null,null,null,null,null,null,null,null,null,null,null,null,null,null,null,null,null,"The Naze"]
[null,null,null,null,null,null,null,null,null,null,null,null,null,null,null,null,null,null,null,"The Snares"]
[null,null,null,null,null,null,null,null,null,null,null,null,null,null,null,null,null,null,null,"The Triplets"]
[null,null,null,null,null,null,null,null,null,null,null,null,null,null,null,null,null,null,null,"The Waifs"]
[null,null,null,null,null,null,null,null,null,null,null,null,null,null,null,null,null,null,null,"Thurston Island"]
[null,null,null,null,null,null,null,null,null,null,null,null,null,null,null,null,null,null,null,"Torgersen Island"]
[null,null,null,null,null,null,null,null,null,null,null,null,null,null,null,null,null,null,null,"Totorore Cove"]
[null,null,null,null,null,null,null,null,null,null,null,null,null,null,null,null,null,null,null,"Tourmaline Plateau"]
[null,null,null,null,null,null,null,null,null,null,null,null,null,null,null,null,null,null,null,"Tournachon Peak"]
[null,null,null,null,null,null,null,null,null,null,null,null,null,null,null,null,null,null,null,"Triangle Point"]
[null,null,null,null,null,null,null,null,null,null,null,null,null,null,null,null,null,null,null,"Trinity Island"]
[null,null,null,null,null,null,null,null,null,null,null,null,null,null,null,null,null,null,null,"Trinity Peninsula"]
[null,null,null,null,null,null,null,null,null,null,null,null,null,null,null,null,null,null,null,"Troll Airfield"]
[null,null,null,null,null,null,null,null,null,null,null,null,null,null,null,null,null,null,null,"Trollhul"]
[null,null,null,null,null,null,null,null,null,null,null,null,null,null,null,null,null,null,null,"Truant Island"]
[null,null,null,null,null,null,null,null,null,null,null,null,null,null,null,null,null,null,null,"Turret Point"]
[null,null,null,null,null,null,null,null,null,null,null,null,null,null,null,null,null,null,null,"Two Hummock Island"]
[null,null,null,null,null,null,null,null,null,null,null,null,null,null,null,null,null,null,null,"Undine Harbour"]
[null,null,null,null,null,null,null,null,null,null,null,null,null,null,null,null,null,null,null,"Undine South Harbour"]
[null,null,null,null,null,null,null,null,null,null,null,null,null,null,null,null,null,null,null,"Unger Island"]
[null,null,null,null,null,null,null,null,null,null,null,null,null,null,null,null,null,null,null,"Union Glacier"]
[null,null,null,null,null,null,null,null,null,null,null,null,null,null,null,null,null,null,null,"Unnamed Emperor Rookery"]
[null,null,null,null,null,null,null,null,null,null,null,null,null,null,null,null,null,null,null,"Uruguay Island"]
[null,null,null,null,null,null,null,null,null,null,null,null,null,null,null,null,null,null,null,"Useful Island"]
[null,null,null,null,null,null,null,null,null,null,null,null,null,null,null,null,null,null,null,"Valdivia Point"]
[null,null,null,null,null,null,null,null,null,null,null,null,null,null,null,null,null,null,null,"Vedel Islands"]
[null,null,null,null,null,null,null,null,null,null,null,null,null,null,null,null,null,null,null,"Vega Island"]
[null,null,null,null,null,null,null,null,null,null,null,null,null,null,null,null,null,null,null,"Vernadsky Station"]
[null,null,null,null,null,null,null,null,null,null,null,null,null,null,null,null,null,null,null,"Victor Hugo Island"]
[null,null,null,null,null,null,null,null,null,null,null,null,null,null,null,null,null,null,null,"Vieugue Island"]
[null,null,null,null,null,null,null,null,null,null,null,null,null,null,null,null,null,null,null,"View Point"]
[null,null,null,null,null,null,null,null,null,null,null,null,null,null,null,null,null,null,null,"Volunteer Point"]
[null,null,null,null,null,null,null,null,null,null,null,null,null,null,null,null,null,null,null,"Vortex Island"]
[null,null,null,null,null,null,null,null,null,null,null,null,null,null,null,null,null,null,null,"Waddington Bay"]
[null,null,null,null,null,null,null,null,null,null,null,null,null,null,null,null,null,null,null,"Walker Bay (by Hannah Point)"]
[null,null,null,null,null,null,null,null,null,null,null,null,null,null,null,null,null,null,null,"Wandel Peak"]
[null,null,null,null,null,null,null,null,null,null,null,null,null,null,null,null,null,null,null,"Waterboat Point/Gonzalez Videla Station"]
[null,null,null,null,null,null,null,null,null,null,null,null,null,null,null,null,null,null,null,"Watkins Island"]
[null,null,null,null,null,null,null,null,null,null,null,null,null,null,null,null,null,null,null,"Wauwermans Islands"]
[null,null,null,null,null,null,null,null,null,null,null,null,null,null,null,null,null,null,null,"Webb Island"]
[null,null,null,null,null,null,null,null,null,null,null,null,null,null,null,null,null,null,null,"Weddell Sea"]
[null,null,null,null,null,null,null,null,null,null,null,null,null,null,null,null,null,null,null,"Welcome Islands - WEL01"]
[null,null,null,null,null,null,null,null,null,null,null,null,null,null,null,null,null,null,null,"West Antarctic Ice Sheet"]
[null,null,null,null,null,null,null,null,null,null,null,null,null,null,null,null,null,null,null,"West Point Island"]
[null,null,null,null,null,null,null,null,null,null,null,null,null,null,null,null,null,null,null,"Whale's Head"]
[null,null,null,null,null,null,null,null,null,null,null,null,null,null,null,null,null,null,null,"Whalers Bay"]
[null,null,null,null,null,null,null,null,null,null,null,null,null,null,null,null,null,null,null,"Wiggins Glacier"]
[null,null,null,null,null,null,null,null,null,null,null,null,null,null,null,null,null,null,null,"Wilhelmina Bay"]
[null,null,null,null,null,null,null,null,null,null,null,null,null,null,null,null,null,null,null,"Will Point"]
[null,null,null,null,null,null,null,null,null,null,null,null,null,null,null,null,null,null,null,"Willis Islands"]
[null,null,null,null,null,null,null,null,null,null,null,null,null,null,null,null,null,null,null,"Wilson Harbour"]
[null,null,null,null,null,null,null,null,null,null,null,null,null,null,null,null,null,null,null,"Wilson Piedmont Glacier"]
[null,null,null,null,null,null,null,null,null,null,null,null,null,null,null,null,null,null,null,"Winter Island"]
[null,null,null,null,null,null,null,null,null,null,null,null,null,null,null,null,null,null,null,"Wirik Bay"]
[null,null,null,null,null,null,null,null,null,null,null,null,null,null,null,null,null,null,null,"Wohlschlag Bay"]
[null,null,null,null,null,null,null,null,null,null,null,null,null,null,null,null,null,null,null,"Wolfs Fang Runway"]
[null,null,null,null,null,null,null,null,null,null,null,null,null,null,null,null,null,null,null,"Woolpack Island"]
[null,null,null,null,null,null,null,null,null,null,null,null,null,null,null,null,null,null,null,"Wordie Hut"]
[null,null,null,null,null,null,null,null,null,null,null,null,null,null,null,null,null,null,null,"Wyatt Earp Islands"]
[null,null,null,null,null,null,null,null,null,null,null,null,null,null,null,null,null,null,null,"Wylie Bay"]
[null,null,null,null,null,null,null,null,null,null,null,null,null,null,null,null,null,null,null,"Yalour Islands"]
[null,null,null,null,null,null,null,null,null,null,null,null,null,null,null,null,null,null,null,"Yankee Harbor"]
[null,null,null,null,null,null,null,null,null,null,null,null,null,null,null,null,null,null,null,"Yelcho Point"]
[null,null,null,null,null,null,null,null,null,null,null,null,null,null,null,null,null,null,null,"Young Island"]
[null,null,null,null,null,null,null,null,null,null,null,null,null,null,null,null,null,null,null,"Zavodovski Island"]
[null,null,null,null,null,null,null,null,null,null,null,null,null,null,null,null,null,null,null,"Zhongshan Station"]
[null,null,null,null,null,null,null,null,null,null,null,null,null,null,null,null,null,null,null,"Zigzag Island"]

{"sheet":"Variables","index":9,"n_rows":128,"n_cols":12,"rows_kept":128,"cut":false,"hidden":true,"merged":[]}
["Nationalities:",null,"Expedition Values:",null,"Sites","Latitude","Longitude","Location",null,null,"ID Code","ID Date"]
[null,null,"Ship",null," "," "," ",null,null,null,"PVR0203R002CBR170902-1002","2002-09-17"]
["United States",null,"Yacht",null,"Admirality Bay","62°10'S","058°48'W","C. Ferraz"]
["Albania",null,"Aircraft",null,"Aitcho Islands","62°24'S","059°47'W","English Strait. SSI"]
["Andorra",null,null,null,"Alcock Island","64°14'S","061°08'W","Hughes Bay"]
["Argentina",null,null,null,"Almirante","64°52'S","062°52'W","Almirante"]
["Australia",null,null,null,"Arago Glacier","64°51'S","062°23'W","Andvord Bay"]
["Austria",null,null,null,"Arctowski","62°15'S","058°51'W"]
["Bangladesh",null,null,null,"Ardley Island","62°13'S","058°56'W","SW KGI, SSI"]
["Belgium",null,null,null,"Argentine Islands","65°15'S","064°16'W","Penola Strait"]
["Bermuda",null,null,null,"Astrolabe Island","63°17'S","058°40'W","Bransfield Strait"]
["Bosnia/Herzego.",null,null,null,"Baily Head","62°58'S","060°30'W","Deception Island, SSI"]
["Brazil",null,null,null,"Barcroft Islands","66°27'S","067°10'W","Biscoe Islands"]
["Bulgaria",null,null,null,"Bennett Islands","66°56'S","067°40'W","Hanusse Bay"]
["Canada",null,null,null,"Berthelot Islands","65°20'S","064°09'W","Grandidier Channel"]
["Chile",null,null,null,"Blaiklock Island","67°33'S","067°04'W","NE Marguerite Bay"]
["China",null,null,null,"Bongrain Point","67°43'S","067°48'W","W side Pourquoi Pas Island"]
["Colombia ",null,null,null,"Brown Bluff","63°32'S","056°55'W","Tabarin Peninsula"]
["Costa Rica",null,null,null,"Camp Point","67°58'S","067°19'W","Eastern Marguerite Bay"]
["Czechslovakia",null,null,null,"Challenger Island","64°21'S","061°35'W","Gerlache Strait"]
["Denmark",null,null,null,"Charcot, Port","65°04'S","064°00'W","Booth Island"]
["Dominican",null,null,null,"Christiania Islands","63°57'S","061°27'W","Between Liege & Trinity Is."]
["Ecuador",null,null,null,"Cierva Cove","64°09'S","061°07'W"]
["Egypt",null,null,null,"Comb Ridge","65°55'S","057°28'W","Northern James Ross Island"]
["Ethiopia",null,null,null,"Cormorant Island","64°48'S","063°58'W","South side of Anvers I."]
["Fiji",null,null,null,"Crystal Hill","63°39'S","057°44'W","Prince Gustav Channel"]
["Finland ",null,null,null,"Cuverville Island","64°41'S","062°38'W","Errera Channel"]
["France",null,null,null,"Damoy Point","64°49'S","063°32'W","Wiencke Island (hut at Dorian Bay)"]
["Germany",null,null,null,"Danco Island","64°44'S","062°37'W","Errera Channel"]
["Greece",null,null,null,"Danger Islands","63°25'S","054°40'W","SE of Joinville Island"]
["Greenland",null,null,null,"Detaille Island","66°52'S","066°48'W","Crystal Sound"]
["Hong Kong",null,null,null,"Devil Island","63°48'S","057°17'W","E. of James Ross Island"]
["Hungary ",null,null,null,"Dorian Bay ","64°49'S","063°32'W","Wiencke Island (hut at Dorian Bay)"]
["Iceland",null,null,null,"Dubouzet, Cape","63°16'S","057°03'W","NE Trinity Peninsula"]
["India",null,null,null,"Dundas, Cape","60°44'S","044°24'W","Eastern Laurie Island, SOI"]
["Indonesia",null,null,null,"D'Urville Monument","63°25'S","056°18'W","SW Joinville Island"]
["Iran ",null,null,null,"Duthiers Point","64°48'S","062°49'W","Gerlache Strait"]
["Ireland ",null,null,null,"Duthoit Point","62°19'S","058°50'W","Eastern Nelson Island, SSI"]
["Israel",null,null,null,"Enterprise Island","64°32'S","062°00'W","Gerlache Strait"]
["Italy",null,null,null,"Esperanza","63°44'S","056°59'W"]
["Jamaica",null,null,null,"Evensen, Cape","66°09'S","065°44'W","Crystal Sound"]
["Japan",null,null,null,"Fildes Peninsula","62°12'S","058°58'W","SW KGI, SSI"]
["Jordan",null,null,null,"Fish Islands","66°02'S","065°25'W","Holtedahl Bay"]
["Korea ",null,null,null,"Frey Station","62°12'S","058°57'W"]
["Liechtenstein",null,null,null,"Gage, Cape","64°10'S","057°05'W","Eastern James Ross Island"]
["Luxemborg",null,null,null,"Gaston Islands","64°28'S","061°50'W","Gerlache Strait"]
["Malaysia",null,null,null,"Georges Point","64°40'S","062°40'W","Northern Ronge Island"]
["Malta",null,null,null,"Gibbs Island","61°28'S","055°34'W","SW of Elephant Island, SSI"]
["Mauritius",null,null,null,"Gin Cove","64°03'S","058°25'W","Western James Ross Island"]
["Mexico",null,null,null,"Girard Bay","65°08'S","064°00'W","Lemaire Channel"]
["Netherlands ",null,null,null,"Gosling Islands","60°39'S","045°55'W","South of Coronation I., SOI"]
["New Zealand",null,null,null,"Goudier Island, Port Lockroy","64°50'S","063°30'W","Port Lockroy hut -see also Jougla Pt"]
["Norway ",null,null,null,"Gourdin Island","63°12'S","057°18'W","N. tip Antarctic Peninsula"]
["Oman",null,null,null,"Half Moon Island","62°36'S","059°55'W","East Side of Livingston I."]
["Panama",null,null,null,"Hannah Point","62°39'S","060°37'W","Livington Island, SSI"]
["Peru",null,null,null,"Heim Glacier","67°28'S","066°55'W","Southern Arrowsmith Peninsula"]
["Phillipines",null,null,null,"Heroina Island","63°24'S","054°36'W","See Danger Islands"]
["Poland",null,null,null,"Heywood Island","62°20'S","059°41'W","Off Robert I., SSI"]
["Portugal",null,null,null,"Hope Bay (Esperanza)","63°53'S","056°59'W","Esperanza"]
["Russia ",null,null,null,"Horseshoe Island","67°51'S","067°12'W","NE Marguerite Bay"]
["Singapore ",null,null,null,"Hovgaard Island","65°08'S","064°08'W","Penola Strait"]
["Slovenia",null,null,null,"Huemul Island","63°40'S","060°50'W","Northern Trinity Peninsula"]
["South Africa",null,null,null,"Hydrurga Rocks","64°08'S","061°37'W","Gerlache Strait"]
["Spain",null,null,null,"Intercurrence Island","63°55'S","061°24'W","Gerlache Strait"]
["Sweden",null,null,null,"Jonassen Island","63°33'S","056°40'W","Antarctic Sound"]
["Switzerland",null,null,null,"Jougla Point, Port Lockroy","64°50'S","063°30'W","Port Lockroy (see also Goudier Is)"]
["Taiwan ",null,null,null,"Jubany","62°14'S","058°40'W","Jubany"]
["Thailand",null,null,null,"Kinnes, Cape","63°22'S","056°33'W","Joinville Island (see Madder Cliffs)"]
["Turkey ",null,null,null,"Kjellman, Cape","63°44'S","059°24'W","Charcot Bay"]
["U. Arab Emirates",null,null,null,"Lagarrigue Cove","64°39'S","062°34'W","Errera Channel (near Spigot Peak)"]
["Ukraine",null,null,null,"Laurie Island","60°45'S","044°44'W","Orcadas"]
["United Kingdom",null,null,null,"Lemair Channel","65°04'S","063°57'W"]
["UNKNOWN",null,null,null,"Lookout, Cape","61°16'S","055°12'W","Southern Elephant I., SSI"]
["Venezuela",null,null,null,"Macaroni Point","62°54'S","060°32'W","Deception Island, SSI"]
[null,null,null,null,"Madder Cliffs","63°18'S","056°29'W","Joinville Island "]
[null,null,null,null,"Martin, Point","60°47'S","044°41'W","S coast Laurie Island, SOI"]
[null,null,null,null,"Melchior Islands","64°19'S","062°57'W","Dallmann Bay"]
[null,null,null,null,"Melville, Cape","62°02'S","057°37'W","Eastern KGI, SSI"]
[null,null,null,null,"Metchnikoff Point","64°03'S","062°34'W","Northern Brabant Island"]
[null,null,null,null,"Mikkelsen Harbor","63°55'S","060°47'W"]
[null,null,null,null,"Murray Island","64°22'S","061°34'W","Hughes Bay"]
[null,null,null,null,"Neko Harbor","64°50'S","062°33'W","Andvord Bay (Arg. refuge hut)"]
[null,null,null,null,"Neumayer Canal","64°47'S","063°30'W"]
[null,null,null,null,"Orcadas (Laurie Island)","60°45'S","044°44'W","Laurie Island"]
[null,null,null,null,"Orne Islands","64°40'S","062°40'W","Northern Ronge Island"]
[null,null,null,null,"Palaver Point","64°09'S","061°45'W","West of Two Hummock Island"]
[null,null,null,null,"Palmer Station","64°46'S","064°05'W"]
[null,null,null,null,"Paradise Bay (Almirante)","64°52'S","062°52'W","Almirante"]
[null,null,null,null,"Paulet Island","63°35'S","055°47'W","South of Dundee Island"]
[null,null,null,null,"Pendulum Cove","62°56'S","060°36'W","Deception Island - geothermal beach"]
[null,null,null,null,"Penguin Island","62°06'S","057°54'W","King George Bay, KGI"]
[null,null,null,null,"Penguin Point","64°19'S","056°43'W","Seymour Island"]
[null,null,null,null,"Petermann Island","65°10'S","064°10'W","Penola Strait"]
[null,null,null,null,"Pitt Islands","65°26'S","065°30'W","North of Renaud Is, Biscoe Islands"]
[null,null,null,null,"Pitt Point","63°51'S","058°22'W","Trinity Peninsula (Victory Glacier)"]
[null,null,null,null,"Pléneau Island","65°06'S","064°04'W","Penola Strait"]
[null,null,null,null,"Portal Point","64°30'S","061°46'W","Reclus Peninsula"]
[null,null,null,null,"Potter Cove (Jubany)","62°14'S","058°40'W","Jubany"]
[null,null,null,null,"Prospect Point","66°01'S","065°21'W","Holtedahl Bay"]
[null,null,null,null,"Robert Point","62°28'S","059°23'W","Robert Island, SSI"]
[null,null,null,null,"Rongé Island","64°43'S","062°41'W","West side of Errera Channel"]
[null,null,null,null,"Rosamel Island","63°34'S","056°17'W","Antarctic Sound"]
[null,null,null,null,"Rum Cove","64°06'S","058°25'W","James Ross Is"]
[null,null,null,null,"Seymour Island ","64°19'S","056°43'W","Seymour Island"]
[null,null,null,null,"Shingle Cove","60°39'S","045°34'W","South coast of Coronation I., SOI"]
[null,null,null,null,"Skontorp Cove","64°54'S","062°52'W","Paradise Harbor – if landing"]
[null,null,null,null,"Small Island","64°00'S","061°27'W","Off Intercurrence Island"]
[null,null,null,null,"Snow Hill Island","64°28'S","057°12'W","Admiralty Sound"]
[null,null,null,null,"Spigot Peak","64°39'S","062°34'W","Errera Channel (near Spigot Peak)"]
[null,null,null,null,"Spring Point","64°18'S","061°03'W","Hughes Bay"]
[null,null,null,null,"Stonington Island","68°11'S","067°00'W","East Marguerite Bay"]
[null,null,null,null,"Suárez Glacier","64°56'S","062°56'W","Paradise Harbor"]
[null,null,null,null,"Telefon Bay","62°56'S","060°40'W","Deception Island – walk to craters"]
[null,null,null,null,"Torgersen Island","64°46'S","064°05'W","Arthur Harbor, Anvers I."]
[null,null,null,null,"Turret Point","62°05'S","057°55'W","King George Island, SSI"]
[null,null,null,null,"Tuxen, Cape","65°16'S","064°08'W","Waddington Bay (Mt. Demaria)"]
[null,null,null,null,"Useful Island","64°43'S","062°52'W","West of Ronge Island"]
[null,null,null,null,"Valentine, Cape","61°06'S","054°39'W","Eastern Elephant I., SSI"]
[null,null,null,null,"View Point","63°33'S","057°22'W","Duse Bay, Trinity Peninsula"]
[null,null,null,null,"Waddington Bay","65°16'S","064°05'W","Penola Strait (Mt. Mill)"]
[null,null,null,null,"Waterboat Point","64°49'S","062°52'W","G Videla"]
[null,null,null,null,"Wauwermans Islands","64°55'S","063°53'W","South of Anvers Island"]
[null,null,null,null,"Whalers Bay","62°59'S","060°34'W","Deception Island – old stations"]
[null,null,null,null,"Wiggins Glacier","65°14'S","064°03'W","Grandidier Channel"]
[null,null,null,null,"Wild, Point","61°06'S","054°52'W","Northern Elephant I., SSI"]
[null,null,null,null,"Wilhelmira Bay","64°38'S","062°00'W"]
[null,null,null,null,"Yalour Islands","65°14'S","064°10'W","Penola Strait"]
[null,null,null,null,"Yankee Harbor","62°32'S","059°47'W","Greenwich I., SSI - Spit Point"]